Workbook

Sheet INFORMATION
C6: ANY ISSUES SHOULD BE COMMUNICATED TO IAN SHORTLEY
C8: ian.shortley@volvo.com
C9: TEL. +44 (0)7771 806 659
C12: This Excel file is intended a support tool only
C13: Data files can get out of date, or corrupted, We suggest that you cross check your results
C14: You are ultimately responsibility for your account accuracy
C16: BECAUSE THERE ARE OFTEN UPDATES TO THE CATALOGUE PLEASE ENSURE THAT YOU ARE WORKING WITH THE LATEST COPY
C17: TERMINALS / DEPOTS AND INTERNAL USERS PLEASE CHECK ON TEAMPLACE
C18: CUSTOMERS ,USERS & RELEASERS PLEASE CONTACT YOUR VLC REPRESENTATIVE

Sheet INPUT
E6: S-LOC NUMBER | G6: DELIVERY NUMBER | I6: COMPANY | K6: RECEIVING LOCATION | N6: S-LOC NUMBER
I7: =IF(E7=0,"",IF(EXACT($E$7,LOOKUP($E$7,'Releaser list '!B2:B15000)),LOOKUP($E$7,'Releaser list '!B2:B15000,'Releaser list '!C2:C15000),"")) -> 
E8: DATE | G8: TRAILER NUMBER | I8: LOCATION | K8: UNLOADED / LOADED BY | N8: SIGNED
D9: VERSION | I9: =IF(E7=0,"",IF(EXACT($E$7,LOOKUP($E$7,'Releaser list '!B2:B15000)),LOOKUP($E$7,'Releaser list '!B2:B15000,'Releaser list '!D2:D15000),"")) -> 
D10: 70 | E10: HAULIER | I10: DRIVERS NAME / SIGNATURE | K10: START TIME | M10: END TIME
K13: LOCATION ( WAREHOUSE ADMIN )
D14: OLD/SHORT EMB Number | E14: RECEIVED BUNDLE QTY | F14: Extra Pieces | G14: FULL BUNDLE Number | I14: DESCRIPTION | K14: MAIN | L14: WASH | M14: REPAIR | N14: BLOCKED | O14: SCRAP
D16: 0 | E16: 1 | G16: =IF(D16=0,"0",IF(EXACT($D16,LOOKUP($D16,Data!$B$3:$B$10177)),LOOKUP($D16,Data!$B$3:$B$10177,Data!$A$3:$A$10177),"0")) -> 0 | I16: =IF(D16=0,"0",IF(EXACT($D16,LOOKUP($D16,Data!$B$3:$B$10177)),LOOKUP($D16,Data!$B$3:$B$10177,Data!$E$3:$E$10177),"0")) -> 0
C17: 1 | G17: =IF(D17>0,IF(D17<19999,D17+9900010000,D17+9899990000),1) -> 1 | I17: =IF(G17>9900000000,LOOKUP(G17-9900010000,RESULTS!D$16:$D$644,RESULTS!$E$16:$E$644),"-") -> -
C18: 2 | G18: 1 | I18: =IF(G18>9900000000,LOOKUP(G18-9900010000,RESULTS!D$16:$D$644,RESULTS!$E$16:$E$644),"-") -> -
C19: 3 | G19: 1 | I19: =IF(G19>9900000000,LOOKUP(G19-9900010000,RESULTS!D$16:$D$644,RESULTS!$E$16:$E$644),"-") -> -
C20: 4 | G20: 1 | I20: =IF(G20>9900000000,LOOKUP(G20-9900010000,RESULTS!D$16:$D$644,RESULTS!$E$16:$E$644),"-") -> -
C21: 5 | G21: 1 | I21: =IF(G21>9900000000,LOOKUP(G21-9900010000,RESULTS!D$16:$D$644,RESULTS!$E$16:$E$644),"-") -> -
C22: 6 | G22: 1 | I22: =IF(G22>9900000000,LOOKUP(G22-9900010000,RESULTS!D$16:$D$644,RESULTS!$E$16:$E$644),"-") -> -
C23: 7 | G23: 1 | I23: =IF(G23>9900000000,LOOKUP(G23-9900010000,RESULTS!D$16:$D$644,RESULTS!$E$16:$E$644),"-") -> -
C24: 8 | G24: 1 | I24: =IF(G24>9900000000,LOOKUP(G24-9900010000,RESULTS!D$16:$D$644,RESULTS!$E$16:$E$644),"-") -> -
C25: 9 | G25: 1 | I25: =IF(G25>9900000000,LOOKUP(G25-9900010000,RESULTS!D$16:$D$644,RESULTS!$E$16:$E$644),"-") -> -
C26: 10 | G26: 1 | I26: =IF(G26>9900000000,LOOKUP(G26-9900010000,RESULTS!D$16:$D$644,RESULTS!$E$16:$E$644),"-") -> -
C27: 11 | G27: 1 | I27: =IF(G27>9900000000,LOOKUP(G27-9900010000,RESULTS!D$16:$D$644,RESULTS!$E$16:$E$644),"-") -> -
C28: 12 | G28: 1 | I28: =IF(G28>9900000000,LOOKUP(G28-9900010000,RESULTS!D$16:$D$644,RESULTS!$E$16:$E$644),"-") -> -
C29: 13 | G29: 1 | I29: =IF(G29>9900000000,LOOKUP(G29-9900010000,RESULTS!D$16:$D$644,RESULTS!$E$16:$E$644),"-") -> -
C30: 14 | G30: 1 | I30: =IF(G30>9900000000,LOOKUP(G30-9900010000,RESULTS!D$16:$D$644,RESULTS!$E$16:$E$644),"-") -> -
C31: 15 | G31: 1 | I31: =IF(G31>9900000000,LOOKUP(G31-9900010000,RESULTS!D$16:$D$644,RESULTS!$E$16:$E$644),"-") -> -
C32: 16 | G32: 1 | I32: =IF(G32>9900000000,LOOKUP(G32-9900010000,RESULTS!D$16:$D$644,RESULTS!$E$16:$E$644),"-") -> -
C33: 17 | G33: 1 | I33: =IF(G33>9900000000,LOOKUP(G33-9900010000,RESULTS!D$16:$D$644,RESULTS!$E$16:$E$644),"-") -> -
C34: 18 | G34: 1 | I34: =IF(G34>9900000000,LOOKUP(G34-9900010000,RESULTS!D$16:$D$644,RESULTS!$E$16:$E$644),"-") -> -
C35: 19 | G35: 1 | I35: =IF(G35>9900000000,LOOKUP(G35-9900010000,RESULTS!D$16:$D$644,RESULTS!$E$16:$E$644),"-") -> -
C36: 20 | G36: 1 | I36: =IF(G36>9900000000,LOOKUP(G36-9900010000,RESULTS!D$16:$D$644,RESULTS!$E$16:$E$644),"-") -> -
C37: 21 | G37: 1 | I37: =IF(G37>9900000000,LOOKUP(G37-9900010000,RESULTS!D$16:$D$644,RESULTS!$E$16:$E$644),"-") -> -
C38: 22 | G38: 1 | I38: =IF(G38>9900000000,LOOKUP(G38-9900010000,RESULTS!D$16:$D$644,RESULTS!$E$16:$E$644),"-") -> -
C39: 23 | G39: 1 | I39: =IF(G39>9900000000,LOOKUP(G39-9900010000,RESULTS!D$16:$D$644,RESULTS!$E$16:$E$644),"-") -> -
C40: 24 | G40: 1 | I40: =IF(G40>9900000000,LOOKUP(G40-9900010000,RESULTS!D$16:$D$644,RESULTS!$E$16:$E$644),"-") -> -
C41: 25 | G41: 1 | I41: =IF(G41>9900000000,LOOKUP(G41-9900010000,RESULTS!D$16:$D$644,RESULTS!$E$16:$E$644),"-") -> -
C42: 26 | G42: 1 | I42: =IF(G42>9900000000,LOOKUP(G42-9900010000,RESULTS!D$16:$D$644,RESULTS!$E$16:$E$644),"-") -> -
C43: 27 | G43: 1 | I43: =IF(G43>9900000000,LOOKUP(G43-9900010000,RESULTS!D$16:$D$644,RESULTS!$E$16:$E$644),"-") -> -
C44: 28 | G44: 1 | I44: =IF(G44>9900000000,LOOKUP(G44-9900010000,RESULTS!D$16:$D$644,RESULTS!$E$16:$E$644),"-") -> -
C45: 29 | G45: 1 | I45: =IF(G45>9900000000,LOOKUP(G45-9900010000,RESULTS!D$16:$D$644,RESULTS!$E$16:$E$644),"-") -> -
C46: 30 | G46: 1 | I46: =IF(G46>9900000000,LOOKUP(G46-9900010000,RESULTS!D$16:$D$644,RESULTS!$E$16:$E$644),"-") -> -
C47: 31 | G47: 1 | I47: =IF(G47>9900000000,LOOKUP(G47-9900010000,RESULTS!D$16:$D$644,RESULTS!$E$16:$E$644),"-") -> -
C48: 32 | G48: 1 | I48: =IF(G48>9900000000,LOOKUP(G48-9900010000,RESULTS!D$16:$D$644,RESULTS!$E$16:$E$644),"-") -> -
C49: 33 | G49: 1 | I49: =IF(G49>9900000000,LOOKUP(G49-9900010000,RESULTS!D$16:$D$644,RESULTS!$E$16:$E$644),"-") -> -
C50: 34 | G50: 1 | I50: =IF(G50>9900000000,LOOKUP(G50-9900010000,RESULTS!D$16:$D$644,RESULTS!$E$16:$E$644),"-") -> -
C51: 35 | G51: 1 | I51: =IF(G51>9900000000,LOOKUP(G51-9900010000,RESULTS!D$16:$D$644,RESULTS!$E$16:$E$644),"-") -> -
C52: 36 | G52: 1 | I52: =IF(G52>9900000000,LOOKUP(G52-9900010000,RESULTS!D$16:$D$644,RESULTS!$E$16:$E$644),"-") -> -
C53: 37 | G53: 1 | I53: =IF(G53>9900000000,LOOKUP(G53-9900010000,RESULTS!D$16:$D$644,RESULTS!$E$16:$E$644),"-") -> -
C54: 38 | G54: 1 | I54: =IF(G54>9900000000,LOOKUP(G54-9900010000,RESULTS!D$16:$D$644,RESULTS!$E$16:$E$644),"-") -> -
C55: 39 | G55: =IF(D55>0,IF(D55<19999,D55+9900010000,D55+9899990000),1) -> 1 | I55: =IF(G55>9900000000,LOOKUP(G55-9900010000,RESULTS!D$16:$D$644,RESULTS!$E$16:$E$644),"-") -> -
C56: 40 | G56: 1 | I56: =IF(G56>9900000000,LOOKUP(G56-9900010000,RESULTS!D$16:$D$644,RESULTS!$E$16:$E$644),"-") -> -
C57: 41 | G57: 1 | I57: =IF(G57>9900000000,LOOKUP(G57-9900010000,RESULTS!D$16:$D$644,RESULTS!$E$16:$E$644),"-") -> -
C58: 42 | G58: 1 | I58: =IF(G58>9900000000,LOOKUP(G58-9900010000,RESULTS!D$16:$D$644,RESULTS!$E$16:$E$644),"-") -> -
C59: 43 | G59: 1 | I59: =IF(G59>9900000000,LOOKUP(G59-9900010000,RESULTS!D$16:$D$644,RESULTS!$E$16:$E$644),"-") -> -
C60: 44 | G60: 1 | I60: =IF(G60>9900000000,LOOKUP(G60-9900010000,RESULTS!D$16:$D$644,RESULTS!$E$16:$E$644),"-") -> -
C61: 45 | G61: 1 | I61: =IF(G61>9900000000,LOOKUP(G61-9900010000,RESULTS!D$16:$D$644,RESULTS!$E$16:$E$644),"-") -> -
C62: 46 | G62: 1 | I62: =IF(G62>9900000000,LOOKUP(G62-9900010000,RESULTS!D$16:$D$644,RESULTS!$E$16:$E$644),"-") -> -
C63: 47 | G63: 1 | I63: =IF(G63>9900000000,LOOKUP(G63-9900010000,RESULTS!D$16:$D$644,RESULTS!$E$16:$E$644),"-") -> -
C64: 48 | G64: 1 | I64: =IF(G64>9900000000,LOOKUP(G64-9900010000,RESULTS!D$16:$D$644,RESULTS!$E$16:$E$644),"-") -> -
C65: 49 | G65: 1 | I65: =IF(G65>9900000000,LOOKUP(G65-9900010000,RESULTS!D$16:$D$644,RESULTS!$E$16:$E$644),"-") -> -
C66: 50 | G66: 1 | I66: =IF(G66>9900000000,LOOKUP(G66-9900010000,RESULTS!D$16:$D$644,RESULTS!$E$16:$E$644),"-") -> -
C67: 51 | G67: 1 | I67: =IF(G67>9900000000,LOOKUP(G67-9900010000,RESULTS!D$16:$D$644,RESULTS!$E$16:$E$644),"-") -> -
C68: 52 | G68: 1 | I68: =IF(G68>9900000000,LOOKUP(G68-9900010000,RESULTS!D$16:$D$644,RESULTS!$E$16:$E$644),"-") -> -
C69: 53 | G69: 1 | I69: =IF(G69>9900000000,LOOKUP(G69-9900010000,RESULTS!D$16:$D$644,RESULTS!$E$16:$E$644),"-") -> -
C70: 54 | G70: 1 | I70: =IF(G70>9900000000,LOOKUP(G70-9900010000,RESULTS!D$16:$D$644,RESULTS!$E$16:$E$644),"-") -> -
C71: 55 | G71: 1 | I71: =IF(G71>9900000000,LOOKUP(G71-9900010000,RESULTS!D$16:$D$644,RESULTS!$E$16:$E$644),"-") -> -
C72: 56 | G72: 1 | I72: =IF(G72>9900000000,LOOKUP(G72-9900010000,RESULTS!D$16:$D$644,RESULTS!$E$16:$E$644),"-") -> -
C73: 57 | G73: 1 | I73: =IF(G73>9900000000,LOOKUP(G73-9900010000,RESULTS!D$16:$D$644,RESULTS!$E$16:$E$644),"-") -> -
C74: 58 | G74: 1 | I74: =IF(G74>9900000000,LOOKUP(G74-9900010000,RESULTS!D$16:$D$644,RESULTS!$E$16:$E$644),"-") -> -
C75: 59 | G75: 1 | I75: =IF(G75>9900000000,LOOKUP(G75-9900010000,RESULTS!D$16:$D$644,RESULTS!$E$16:$E$644),"-") -> -
C76: 60 | G76: 1 | I76: =IF(G76>9900000000,LOOKUP(G76-9900010000,RESULTS!D$16:$D$644,RESULTS!$E$16:$E$644),"-") -> -
C77: 61 | G77: 1 | I77: =IF(G77>9900000000,LOOKUP(G77-9900010000,RESULTS!D$16:$D$644,RESULTS!$E$16:$E$644),"-") -> -
C78: 62 | G78: 1 | I78: =IF(G78>9900000000,LOOKUP(G78-9900010000,RESULTS!D$16:$D$644,RESULTS!$E$16:$E$644),"-") -> -
C79: 63 | G79: 1 | I79: =IF(G79>9900000000,LOOKUP(G79-9900010000,RESULTS!D$16:$D$644,RESULTS!$E$16:$E$644),"-") -> -
C80: 64 | G80: 1 | I80: =IF(G80>9900000000,LOOKUP(G80-9900010000,RESULTS!D$16:$D$644,RESULTS!$E$16:$E$644),"-") -> -
C81: 65 | G81: 1 | I81: =IF(G81>9900000000,LOOKUP(G81-9900010000,RESULTS!D$16:$D$644,RESULTS!$E$16:$E$644),"-") -> -
C82: 66 | G82: 1 | I82: =IF(G82>9900000000,LOOKUP(G82-9900010000,RESULTS!D$16:$D$644,RESULTS!$E$16:$E$644),"-") -> -
C83: 67 | G83: 1 | I83: =IF(G83>9900000000,LOOKUP(G83-9900010000,RESULTS!D$16:$D$644,RESULTS!$E$16:$E$644),"-") -> -
C84: 68 | G84: 1 | I84: =IF(G84>9900000000,LOOKUP(G84-9900010000,RESULTS!D$16:$D$644,RESULTS!$E$16:$E$644),"-") -> -
C85: 69 | G85: 1 | I85: =IF(G85>9900000000,LOOKUP(G85-9900010000,RESULTS!D$16:$D$644,RESULTS!$E$16:$E$644),"-") -> -
C86: 70 | G86: 1 | I86: =IF(G86>9900000000,LOOKUP(G86-9900010000,RESULTS!D$16:$D$644,RESULTS!$E$16:$E$644),"-") -> -
C87: 71 | G87: =IF(D87>0,IF(D87<19999,D87+9900010000,D87+9899990000),1) -> 1 | I87: =IF(G87>9900000000,LOOKUP(G87-9900010000,RESULTS!D$16:$D$644,RESULTS!$E$16:$E$644),"-") -> -
C88: 72 | G88: 1 | I88: =IF(G88>9900000000,LOOKUP(G88-9900010000,RESULTS!D$16:$D$644,RESULTS!$E$16:$E$644),"-") -> -
C89: 73 | G89: 1 | I89: =IF(G89>9900000000,LOOKUP(G89-9900010000,RESULTS!D$16:$D$644,RESULTS!$E$16:$E$644),"-") -> -
C90: 74 | G90: 1 | I90: =IF(G90>9900000000,LOOKUP(G90-9900010000,RESULTS!D$16:$D$644,RESULTS!$E$16:$E$644),"-") -> -
C91: 75 | G91: 1 | I91: =IF(G91>9900000000,LOOKUP(G91-9900010000,RESULTS!D$16:$D$644,RESULTS!$E$16:$E$644),"-") -> -
C92: 76 | G92: 1 | I92: =IF(G92>9900000000,LOOKUP(G92-9900010000,RESULTS!D$16:$D$644,RESULTS!$E$16:$E$644),"-") -> -
C93: 77 | G93: 1 | I93: =IF(G93>9900000000,LOOKUP(G93-9900010000,RESULTS!D$16:$D$644,RESULTS!$E$16:$E$644),"-") -> -
C94: 78 | G94: 1 | I94: =IF(G94>9900000000,LOOKUP(G94-9900010000,RESULTS!D$16:$D$644,RESULTS!$E$16:$E$644),"-") -> -
C95: 79 | G95: 1 | I95: =IF(G95>9900000000,LOOKUP(G95-9900010000,RESULTS!D$16:$D$644,RESULTS!$E$16:$E$644),"-") -> -
C96: 80 | G96: 1 | I96: =IF(G96>9900000000,LOOKUP(G96-9900010000,RESULTS!D$16:$D$644,RESULTS!$E$16:$E$644),"-") -> -
C97: 81 | G97: 1 | I97: =IF(G97>9900000000,LOOKUP(G97-9900010000,RESULTS!D$16:$D$644,RESULTS!$E$16:$E$644),"-") -> -
C98: 82 | G98: 1 | I98: =IF(G98>9900000000,LOOKUP(G98-9900010000,RESULTS!D$16:$D$644,RESULTS!$E$16:$E$644),"-") -> -
C99: 83 | G99: 1 | I99: =IF(G99>9900000000,LOOKUP(G99-9900010000,RESULTS!D$16:$D$644,RESULTS!$E$16:$E$644),"-") -> -
C100: 84 | G100: 1 | I100: =IF(G100>9900000000,LOOKUP(G100-9900010000,RESULTS!D$16:$D$644,RESULTS!$E$16:$E$644),"-") -> -
C101: 85 | G101: 1 | I101: =IF(G101>9900000000,LOOKUP(G101-9900010000,RESULTS!D$16:$D$644,RESULTS!$E$16:$E$644),"-") -> -
C102: 86 | G102: 1 | I102: =IF(G102>9900000000,LOOKUP(G102-9900010000,RESULTS!D$16:$D$644,RESULTS!$E$16:$E$644),"-") -> -
C103: 87 | G103: 1 | I103: =IF(G103>9900000000,LOOKUP(G103-9900010000,RESULTS!D$16:$D$644,RESULTS!$E$16:$E$644),"-") -> -
C104: 88 | G104: 1 | I104: =IF(G104>9900000000,LOOKUP(G104-9900010000,RESULTS!D$16:$D$644,RESULTS!$E$16:$E$644),"-") -> -
C105: 89 | G105: 1 | I105: =IF(G105>9900000000,LOOKUP(G105-9900010000,RESULTS!D$16:$D$644,RESULTS!$E$16:$E$644),"-") -> -
C106: 90 | G106: 1 | I106: =IF(G106>9900000000,LOOKUP(G106-9900010000,RESULTS!D$16:$D$644,RESULTS!$E$16:$E$644),"-") -> -
C107: 91 | G107: 1 | I107: =IF(G107>9900000000,LOOKUP(G107-9900010000,RESULTS!D$16:$D$644,RESULTS!$E$16:$E$644),"-") -> -
C108: 92 | G108: 1 | I108: =IF(G108>9900000000,LOOKUP(G108-9900010000,RESULTS!D$16:$D$644,RESULTS!$E$16:$E$644),"-") -> -
C109: 93 | G109: 1 | I109: =IF(G109>9900000000,LOOKUP(G109-9900010000,RESULTS!D$16:$D$644,RESULTS!$E$16:$E$644),"-") -> -
C110: 94 | G110: 1 | I110: =IF(G110>9900000000,LOOKUP(G110-9900010000,RESULTS!D$16:$D$644,RESULTS!$E$16:$E$644),"-") -> -
C111: 95 | G111: 1 | I111: =IF(G111>9900000000,LOOKUP(G111-9900010000,RESULTS!D$16:$D$644,RESULTS!$E$16:$E$644),"-") -> -
C112: 96 | G112: 1 | I112: =IF(G112>9900000000,LOOKUP(G112-9900010000,RESULTS!D$16:$D$644,RESULTS!$E$16:$E$644),"-") -> -
C113: 97 | G113: 1 | I113: =IF(G113>9900000000,LOOKUP(G113-9900010000,RESULTS!D$16:$D$644,RESULTS!$E$16:$E$644),"-") -> -
C114: 98 | G114: 1 | I114: =IF(G114>9900000000,LOOKUP(G114-9900010000,RESULTS!D$16:$D$644,RESULTS!$E$16:$E$644),"-") -> -
C115: 99 | G115: 1 | I115: =IF(G115>9900000000,LOOKUP(G115-9900010000,RESULTS!D$16:$D$644,RESULTS!$E$16:$E$644),"-") -> -
C116: 100 | G116: 1 | I116: =IF(G116>9900000000,LOOKUP(G116-9900010000,RESULTS!D$16:$D$644,RESULTS!$E$16:$E$644),"-") -> -
D117: Total Bundles | E117: =SUM(E17:E116) -> 0
D119: NOTES
D123: VGLS INSPECTION dept. VERSION 70 updated 24/09/2025 (BY: Ian Shortley)

Sheet RESULTS
E7: DELIVERY NUMBER | I7: TRAILER no. | S7: SENDING CUSTOMER | V7: LOCATION | X7: S-LOC Number
C8: ='INPUT '!D10 -> 70 | E8: ='INPUT '!G7 -> 0 | I8: ='INPUT '!G9 -> 0 | S8: ='INPUT '!I7 ->  | V8: ='INPUT '!I9 ->  | X8: ='INPUT '!E7 -> 0
C10: DATE | E10: CHECKED BY : | I10: SIGNED | S10: RECEIVING TERMINAL | X10: S-LOC Number
C11: ='INPUT '!E9 -> 00:00:00 | X11: ='INPUT '!N7 -> 0
U13: LOCATION ( WAREHOUSE ADMIN )
C14: FULL Piece No. | D14: SHORT No. | E14: DESCRIPTION | F14: MATERIAL | G14: KG | H14: SUM KG | I14: TOTAL | J14: Pieces | K14: TOTAL | L14: TOTAL | M14: TOTAL | N14: TOTAL | O14: TOTAL | P14: TOTAL | Q14: TOTAL | R14: RECD | S14: CHECK | T14: STATUS | U14: MAIN | V14: WASH | W14: REPAIR | X14: SCRAP | Y14: BLOCKED
C15: 9900000000 | D15: =C15-9900000000 -> 0 | E15: ADMIN | I15: =SUM(K15:P15) -> 1 | K15: =SUMIF(Data!$H$2:$H$10177,$C15,Data!$J$2:$J$10177) -> 1 | L15: =SUMIF(Data!$K$2:$K$10177,$C15,Data!$M$2:$M$10177) -> 0 | M15: =SUMIF(Data!$N$2:$N$10177,$C15,Data!$P$2:$P$10177) -> 0 | N15: =SUMIF(Data!$Q$2:$R$10177,$C15,Data!$S$2:$S$10177) -> 0 | O15: =SUMIF(Data!$T$2:$U$10177,$C15,Data!$V$2:$V$10177) -> 0 | P15: =SUMIF(Data!$W$2:$W$10177,$C15,Data!$Y$2:$Y$10177) -> 0
C16: 9900000001 | D16: =C16-9900000000 -> 1 | E16: PALLET OF WOOD, TYPE L | F16: WOOD | G16: 22.288 | H16: =G16*I16 -> 0 | I16: =SUM(J16:P16) -> 0 | J16: =SUMIF(Data!$H$2:$H$10177,$C16,Data!$D$2:$D$10177) -> 0 | K16: =SUMIF(Data!$H$2:$H$10177,$C16,Data!$J$2:$J$10177) -> 0 | L16: =SUMIF(Data!$K$2:$K$10177,$C16,Data!$M$2:$M$10177) -> 0 | M16: =SUMIF(Data!$N$2:$N$10177,$C16,Data!$P$2:$P$10177) -> 0 | N16: =SUMIF(Data!$Q$2:$R$10177,$C16,Data!$S$2:$S$10177) -> 0 | O16: =SUMIF(Data!$T$2:$U$10177,$C16,Data!$V$2:$V$10177) -> 0 | P16: =SUMIF(Data!$W$2:$W$10177,$C16,Data!$Y$2:$Y$10177) -> 0
C17: 9900000002 | D17: =C17-9900000000 -> 2 | E17: PALLET OF WOOD, TYPE K | F17: WOOD | G17: 9.675 | H17: 0 | I17: 0 | J17: =SUMIF(Data!$H$2:$H$10177,$C17,Data!$D$2:$D$10177) -> 0 | K17: =SUMIF(Data!$H$2:$H$10177,$C17,Data!$J$2:$J$10177) -> 0 | L17: =SUMIF(Data!$K$2:$K$10177,$C17,Data!$M$2:$M$10177) -> 0 | M17: =SUMIF(Data!$N$2:$N$10177,$C17,Data!$P$2:$P$10177) -> 0 | N17: =SUMIF(Data!$Q$2:$R$10177,$C17,Data!$S$2:$S$10177) -> 0 | O17: =SUMIF(Data!$T$2:$U$10177,$C17,Data!$V$2:$V$10177) -> 0 | P17: =SUMIF(Data!$W$2:$W$10177,$C17,Data!$Y$2:$Y$10177) -> 0
C18: 9900000005 | D18: =C18-9900000000 -> 5 | E18: PALLET OF WOOD, TYPE F | F18: WOOD | G18: 40.576 | H18: 0 | I18: 0 | J18: =SUMIF(Data!$H$2:$H$10177,$C18,Data!$D$2:$D$10177) -> 0 | K18: =SUMIF(Data!$H$2:$H$10177,$C18,Data!$J$2:$J$10177) -> 0 | L18: =SUMIF(Data!$K$2:$K$10177,$C18,Data!$M$2:$M$10177) -> 0 | M18: =SUMIF(Data!$N$2:$N$10177,$C18,Data!$P$2:$P$10177) -> 0 | N18: =SUMIF(Data!$Q$2:$R$10177,$C18,Data!$S$2:$S$10177) -> 0 | O18: =SUMIF(Data!$T$2:$U$10177,$C18,Data!$V$2:$V$10177) -> 0 | P18: =SUMIF(Data!$W$2:$W$10177,$C18,Data!$Y$2:$Y$10177) -> 0
C19: 9900000006 | D19: =C19-9900000000 -> 6 | E19: PALLET OF WOOD, TYPE G | F19: WOOD | G19: 27.05 | H19: 0 | I19: 0 | J19: =SUMIF(Data!$H$2:$H$10177,$C19,Data!$D$2:$D$10177) -> 0 | K19: =SUMIF(Data!$H$2:$H$10177,$C19,Data!$J$2:$J$10177) -> 0 | L19: =SUMIF(Data!$K$2:$K$10177,$C19,Data!$M$2:$M$10177) -> 0 | M19: =SUMIF(Data!$N$2:$N$10177,$C19,Data!$P$2:$P$10177) -> 0 | N19: =SUMIF(Data!$Q$2:$R$10177,$C19,Data!$S$2:$S$10177) -> 0 | O19: =SUMIF(Data!$T$2:$U$10177,$C19,Data!$V$2:$V$10177) -> 0 | P19: =SUMIF(Data!$W$2:$W$10177,$C19,Data!$Y$2:$Y$10177) -> 0
C20: 9900000009 | D20: 9 | E20: PALLET OF WOOD, TYPE H | F20: WOOD | G20: 32.817 | H20: 0 | I20: 0 | J20: =SUMIF(Data!$H$2:$H$10177,$C20,Data!$D$2:$D$10177) -> 0 | K20: =SUMIF(Data!$H$2:$H$10177,$C20,Data!$J$2:$J$10177) -> 0 | L20: =SUMIF(Data!$K$2:$K$10177,$C20,Data!$M$2:$M$10177) -> 0 | M20: =SUMIF(Data!$N$2:$N$10177,$C20,Data!$P$2:$P$10177) -> 0 | N20: =SUMIF(Data!$Q$2:$R$10177,$C20,Data!$S$2:$S$10177) -> 0 | O20: =SUMIF(Data!$T$2:$U$10177,$C20,Data!$V$2:$V$10177) -> 0 | P20: =SUMIF(Data!$W$2:$W$10177,$C20,Data!$Y$2:$Y$10177) -> 0
C21: 9900000021 | D21: 21 | E21: FRAME OF WOOD, TYPE L | F21: WOOD | G21: 8.978 | H21: 0 | I21: 0 | J21: =SUMIF(Data!$H$2:$H$10177,$C21,Data!$D$2:$D$10177) -> 0 | K21: =SUMIF(Data!$H$2:$H$10177,$C21,Data!$J$2:$J$10177) -> 0 | L21: =SUMIF(Data!$K$2:$K$10177,$C21,Data!$M$2:$M$10177) -> 0 | M21: =SUMIF(Data!$N$2:$N$10177,$C21,Data!$P$2:$P$10177) -> 0 | N21: =SUMIF(Data!$Q$2:$R$10177,$C21,Data!$S$2:$S$10177) -> 0 | O21: =SUMIF(Data!$T$2:$U$10177,$C21,Data!$V$2:$V$10177) -> 0 | P21: =SUMIF(Data!$W$2:$W$10177,$C21,Data!$Y$2:$Y$10177) -> 0
C22: 9900000022 | D22: 22 | E22: FRAME OF WOOD, TYPE K | F22: WOOD | G22: 6.748 | H22: 0 | I22: 0 | J22: =SUMIF(Data!$H$2:$H$10177,$C22,Data!$D$2:$D$10177) -> 0 | K22: =SUMIF(Data!$H$2:$H$10177,$C22,Data!$J$2:$J$10177) -> 0 | L22: =SUMIF(Data!$K$2:$K$10177,$C22,Data!$M$2:$M$10177) -> 0 | M22: =SUMIF(Data!$N$2:$N$10177,$C22,Data!$P$2:$P$10177) -> 0 | N22: =SUMIF(Data!$Q$2:$R$10177,$C22,Data!$S$2:$S$10177) -> 0 | O22: =SUMIF(Data!$T$2:$U$10177,$C22,Data!$V$2:$V$10177) -> 0 | P22: =SUMIF(Data!$W$2:$W$10177,$C22,Data!$Y$2:$Y$10177) -> 0
C23: 9900000025 | D23: 25 | E23: FRAME OF WOOD, TYPE F | F23: WOOD | G23: 13.093 | H23: 0 | I23: 0 | J23: =SUMIF(Data!$H$2:$H$10177,$C23,Data!$D$2:$D$10177) -> 0 | K23: =SUMIF(Data!$H$2:$H$10177,$C23,Data!$J$2:$J$10177) -> 0 | L23: =SUMIF(Data!$K$2:$K$10177,$C23,Data!$M$2:$M$10177) -> 0 | M23: =SUMIF(Data!$N$2:$N$10177,$C23,Data!$P$2:$P$10177) -> 0 | N23: =SUMIF(Data!$Q$2:$R$10177,$C23,Data!$S$2:$S$10177) -> 0 | O23: =SUMIF(Data!$T$2:$U$10177,$C23,Data!$V$2:$V$10177) -> 0 | P23: =SUMIF(Data!$W$2:$W$10177,$C23,Data!$Y$2:$Y$10177) -> 0
C24: 9900000026 | D24: 26 | E24: FRAME OF WOOD, TYPE G | F24: WOOD | G24: 9.835 | H24: 0 | I24: 0 | J24: =SUMIF(Data!$H$2:$H$10177,$C24,Data!$D$2:$D$10177) -> 0 | K24: =SUMIF(Data!$H$2:$H$10177,$C24,Data!$J$2:$J$10177) -> 0 | L24: =SUMIF(Data!$K$2:$K$10177,$C24,Data!$M$2:$M$10177) -> 0 | M24: =SUMIF(Data!$N$2:$N$10177,$C24,Data!$P$2:$P$10177) -> 0 | N24: =SUMIF(Data!$Q$2:$R$10177,$C24,Data!$S$2:$S$10177) -> 0 | O24: =SUMIF(Data!$T$2:$U$10177,$C24,Data!$V$2:$V$10177) -> 0 | P24: =SUMIF(Data!$W$2:$W$10177,$C24,Data!$Y$2:$Y$10177) -> 0
C25: 9900000029 | D25: 29 | E25: FRAME OF WOOD, TYPE H | F25: WOOD | G25: 10.854 | H25: 0 | I25: 0 | J25: =SUMIF(Data!$H$2:$H$10177,$C25,Data!$D$2:$D$10177) -> 0 | K25: =SUMIF(Data!$H$2:$H$10177,$C25,Data!$J$2:$J$10177) -> 0 | L25: =SUMIF(Data!$K$2:$K$10177,$C25,Data!$M$2:$M$10177) -> 0 | M25: =SUMIF(Data!$N$2:$N$10177,$C25,Data!$P$2:$P$10177) -> 0 | N25: =SUMIF(Data!$Q$2:$R$10177,$C25,Data!$S$2:$S$10177) -> 0 | O25: =SUMIF(Data!$T$2:$U$10177,$C25,Data!$V$2:$V$10177) -> 0 | P25: =SUMIF(Data!$W$2:$W$10177,$C25,Data!$Y$2:$Y$10177) -> 0
C26: 9900000031 | D26: 31 | E26: SPACER OF PLYWOOD, L OUTER | F26: WOOD | G26: 4.5 | H26: 0 | I26: 0 | J26: =SUMIF(Data!$H$2:$H$10177,$C26,Data!$D$2:$D$10177) -> 0 | K26: =SUMIF(Data!$H$2:$H$10177,$C26,Data!$J$2:$J$10177) -> 0 | L26: =SUMIF(Data!$K$2:$K$10177,$C26,Data!$M$2:$M$10177) -> 0 | M26: =SUMIF(Data!$N$2:$N$10177,$C26,Data!$P$2:$P$10177) -> 0 | N26: =SUMIF(Data!$Q$2:$R$10177,$C26,Data!$S$2:$S$10177) -> 0 | O26: =SUMIF(Data!$T$2:$U$10177,$C26,Data!$V$2:$V$10177) -> 0 | P26: =SUMIF(Data!$W$2:$W$10177,$C26,Data!$Y$2:$Y$10177) -> 0
C27: 9900000035 | D27: 35 | E27: SPACER OF PLYWOOD, F OUTER | F27: WOOD | G27: 13 | H27: 0 | I27: 0 | J27: =SUMIF(Data!$H$2:$H$10177,$C27,Data!$D$2:$D$10177) -> 0 | K27: =SUMIF(Data!$H$2:$H$10177,$C27,Data!$J$2:$J$10177) -> 0 | L27: =SUMIF(Data!$K$2:$K$10177,$C27,Data!$M$2:$M$10177) -> 0 | M27: =SUMIF(Data!$N$2:$N$10177,$C27,Data!$P$2:$P$10177) -> 0 | N27: =SUMIF(Data!$Q$2:$R$10177,$C27,Data!$S$2:$S$10177) -> 0 | O27: =SUMIF(Data!$T$2:$U$10177,$C27,Data!$V$2:$V$10177) -> 0 | P27: =SUMIF(Data!$W$2:$W$10177,$C27,Data!$Y$2:$Y$10177) -> 0
C28: 9900000041 | D28: 41 | E28: SPACER OF PLYWOOD, L INNER | F28: WOOD | G28: 4 | H28: 0 | I28: 0 | J28: =SUMIF(Data!$H$2:$H$10177,$C28,Data!$D$2:$D$10177) -> 0 | K28: =SUMIF(Data!$H$2:$H$10177,$C28,Data!$J$2:$J$10177) -> 0 | L28: =SUMIF(Data!$K$2:$K$10177,$C28,Data!$M$2:$M$10177) -> 0 | M28: =SUMIF(Data!$N$2:$N$10177,$C28,Data!$P$2:$P$10177) -> 0 | N28: =SUMIF(Data!$Q$2:$R$10177,$C28,Data!$S$2:$S$10177) -> 0 | O28: =SUMIF(Data!$T$2:$U$10177,$C28,Data!$V$2:$V$10177) -> 0 | P28: =SUMIF(Data!$W$2:$W$10177,$C28,Data!$Y$2:$Y$10177) -> 0
C29: 9900000045 | D29: 45 | E29: SPACER OF PLYWOOD, F INNER | F29: WOOD | G29: 11 | H29: 0 | I29: 0 | J29: =SUMIF(Data!$H$2:$H$10177,$C29,Data!$D$2:$D$10177) -> 0 | K29: =SUMIF(Data!$H$2:$H$10177,$C29,Data!$J$2:$J$10177) -> 0 | L29: =SUMIF(Data!$K$2:$K$10177,$C29,Data!$M$2:$M$10177) -> 0 | M29: =SUMIF(Data!$N$2:$N$10177,$C29,Data!$P$2:$P$10177) -> 0 | N29: =SUMIF(Data!$Q$2:$R$10177,$C29,Data!$S$2:$S$10177) -> 0 | O29: =SUMIF(Data!$T$2:$U$10177,$C29,Data!$V$2:$V$10177) -> 0 | P29: =SUMIF(Data!$W$2:$W$10177,$C29,Data!$Y$2:$Y$10177) -> 0
C30: 9900000051 | D30: 51 | E30: SPACER OF WOOD FIBRE, L OUTER | F30: WOOD | G30: 3 | H30: 0 | I30: 0 | J30: =SUMIF(Data!$H$2:$H$10177,$C30,Data!$D$2:$D$10177) -> 0 | K30: =SUMIF(Data!$H$2:$H$10177,$C30,Data!$J$2:$J$10177) -> 0 | L30: =SUMIF(Data!$K$2:$K$10177,$C30,Data!$M$2:$M$10177) -> 0 | M30: =SUMIF(Data!$N$2:$N$10177,$C30,Data!$P$2:$P$10177) -> 0 | N30: =SUMIF(Data!$Q$2:$R$10177,$C30,Data!$S$2:$S$10177) -> 0 | O30: =SUMIF(Data!$T$2:$U$10177,$C30,Data!$V$2:$V$10177) -> 0 | P30: =SUMIF(Data!$W$2:$W$10177,$C30,Data!$Y$2:$Y$10177) -> 0
C31: 9900000052 | D31: 52 | E31: SPACER OF WOOD FIBRE, K OUTER | F31: WOOD | G31: 1.5 | H31: 0 | I31: 0 | J31: =SUMIF(Data!$H$2:$H$10177,$C31,Data!$D$2:$D$10177) -> 0 | K31: =SUMIF(Data!$H$2:$H$10177,$C31,Data!$J$2:$J$10177) -> 0 | L31: =SUMIF(Data!$K$2:$K$10177,$C31,Data!$M$2:$M$10177) -> 0 | M31: =SUMIF(Data!$N$2:$N$10177,$C31,Data!$P$2:$P$10177) -> 0 | N31: =SUMIF(Data!$Q$2:$R$10177,$C31,Data!$S$2:$S$10177) -> 0 | O31: =SUMIF(Data!$T$2:$U$10177,$C31,Data!$V$2:$V$10177) -> 0 | P31: =SUMIF(Data!$W$2:$W$10177,$C31,Data!$Y$2:$Y$10177) -> 0
C32: 9900000055 | D32: 55 | E32: SPACER OF WOOD FIBRE, F OUTER | F32: WOOD | G32: 6 | H32: 0 | I32: 0 | J32: =SUMIF(Data!$H$2:$H$10177,$C32,Data!$D$2:$D$10177) -> 0 | K32: =SUMIF(Data!$H$2:$H$10177,$C32,Data!$J$2:$J$10177) -> 0 | L32: =SUMIF(Data!$K$2:$K$10177,$C32,Data!$M$2:$M$10177) -> 0 | M32: =SUMIF(Data!$N$2:$N$10177,$C32,Data!$P$2:$P$10177) -> 0 | N32: =SUMIF(Data!$Q$2:$R$10177,$C32,Data!$S$2:$S$10177) -> 0 | O32: =SUMIF(Data!$T$2:$U$10177,$C32,Data!$V$2:$V$10177) -> 0 | P32: =SUMIF(Data!$W$2:$W$10177,$C32,Data!$Y$2:$Y$10177) -> 0
C33: 9900000056 | D33: 56 | E33: SPACER OF WOOD FIBRE, G OUTER | F33: WOOD | G33: 3.5 | H33: 0 | I33: 0 | J33: =SUMIF(Data!$H$2:$H$10177,$C33,Data!$D$2:$D$10177) -> 0 | K33: =SUMIF(Data!$H$2:$H$10177,$C33,Data!$J$2:$J$10177) -> 0 | L33: =SUMIF(Data!$K$2:$K$10177,$C33,Data!$M$2:$M$10177) -> 0 | M33: =SUMIF(Data!$N$2:$N$10177,$C33,Data!$P$2:$P$10177) -> 0 | N33: =SUMIF(Data!$Q$2:$R$10177,$C33,Data!$S$2:$S$10177) -> 0 | O33: =SUMIF(Data!$T$2:$U$10177,$C33,Data!$V$2:$V$10177) -> 0 | P33: =SUMIF(Data!$W$2:$W$10177,$C33,Data!$Y$2:$Y$10177) -> 0
C34: 9900000059 | D34: 59 | E34: SPACER OF WOOD FIBRE, H OUTER | F34: WOOD | G34: 4.4 | H34: 0 | I34: 0 | J34: =SUMIF(Data!$H$2:$H$10177,$C34,Data!$D$2:$D$10177) -> 0 | K34: =SUMIF(Data!$H$2:$H$10177,$C34,Data!$J$2:$J$10177) -> 0 | L34: =SUMIF(Data!$K$2:$K$10177,$C34,Data!$M$2:$M$10177) -> 0 | M34: =SUMIF(Data!$N$2:$N$10177,$C34,Data!$P$2:$P$10177) -> 0 | N34: =SUMIF(Data!$Q$2:$R$10177,$C34,Data!$S$2:$S$10177) -> 0 | O34: =SUMIF(Data!$T$2:$U$10177,$C34,Data!$V$2:$V$10177) -> 0 | P34: =SUMIF(Data!$W$2:$W$10177,$C34,Data!$Y$2:$Y$10177) -> 0
C35: 9900000061 | D35: 61 | E35: SPACER OF WOOD FIBRE, L INNER | F35: SOLIDBOARD | G35: 2.015 | H35: 0 | I35: 0 | J35: =SUMIF(Data!$H$2:$H$10177,$C35,Data!$D$2:$D$10177) -> 0 | K35: =SUMIF(Data!$H$2:$H$10177,$C35,Data!$J$2:$J$10177) -> 0 | L35: =SUMIF(Data!$K$2:$K$10177,$C35,Data!$M$2:$M$10177) -> 0 | M35: =SUMIF(Data!$N$2:$N$10177,$C35,Data!$P$2:$P$10177) -> 0 | N35: =SUMIF(Data!$Q$2:$R$10177,$C35,Data!$S$2:$S$10177) -> 0 | O35: =SUMIF(Data!$T$2:$U$10177,$C35,Data!$V$2:$V$10177) -> 0 | P35: =SUMIF(Data!$W$2:$W$10177,$C35,Data!$Y$2:$Y$10177) -> 0
C36: 9900000062 | D36: 62 | E36: SPACER OF WOOD FIBRE, K INNER | F36: SOLIDBOARD | G36: 0.921 | H36: 0 | I36: 0 | J36: =SUMIF(Data!$H$2:$H$10177,$C36,Data!$D$2:$D$10177) -> 0 | K36: =SUMIF(Data!$H$2:$H$10177,$C36,Data!$J$2:$J$10177) -> 0 | L36: =SUMIF(Data!$K$2:$K$10177,$C36,Data!$M$2:$M$10177) -> 0 | M36: =SUMIF(Data!$N$2:$N$10177,$C36,Data!$P$2:$P$10177) -> 0 | N36: =SUMIF(Data!$Q$2:$R$10177,$C36,Data!$S$2:$S$10177) -> 0 | O36: =SUMIF(Data!$T$2:$U$10177,$C36,Data!$V$2:$V$10177) -> 0 | P36: =SUMIF(Data!$W$2:$W$10177,$C36,Data!$Y$2:$Y$10177) -> 0
C37: 9900000065 | D37: 65 | E37: SPACER OF WOOD FIBRE, F INNER | F37: WOOD | G37: 5.249 | H37: 0 | I37: 0 | J37: =SUMIF(Data!$H$2:$H$10177,$C37,Data!$D$2:$D$10177) -> 0 | K37: =SUMIF(Data!$H$2:$H$10177,$C37,Data!$J$2:$J$10177) -> 0 | L37: =SUMIF(Data!$K$2:$K$10177,$C37,Data!$M$2:$M$10177) -> 0 | M37: =SUMIF(Data!$N$2:$N$10177,$C37,Data!$P$2:$P$10177) -> 0 | N37: =SUMIF(Data!$Q$2:$R$10177,$C37,Data!$S$2:$S$10177) -> 0 | O37: =SUMIF(Data!$T$2:$U$10177,$C37,Data!$V$2:$V$10177) -> 0 | P37: =SUMIF(Data!$W$2:$W$10177,$C37,Data!$Y$2:$Y$10177) -> 0
C38: 9900000066 | D38: 66 | E38: SPACER OF WOOD FIBRE, G INNER | F38: WOOD | G38: 3.008 | H38: 0 | I38: 0 | J38: =SUMIF(Data!$H$2:$H$10177,$C38,Data!$D$2:$D$10177) -> 0 | K38: =SUMIF(Data!$H$2:$H$10177,$C38,Data!$J$2:$J$10177) -> 0 | L38: =SUMIF(Data!$K$2:$K$10177,$C38,Data!$M$2:$M$10177) -> 0 | M38: =SUMIF(Data!$N$2:$N$10177,$C38,Data!$P$2:$P$10177) -> 0 | N38: =SUMIF(Data!$Q$2:$R$10177,$C38,Data!$S$2:$S$10177) -> 0 | O38: =SUMIF(Data!$T$2:$U$10177,$C38,Data!$V$2:$V$10177) -> 0 | P38: =SUMIF(Data!$W$2:$W$10177,$C38,Data!$Y$2:$Y$10177) -> 0
C39: 9900000069 | D39: 69 | E39: SPACER OF WOOD FIBRE, H INNER | F39: WOOD | G39: 3.405 | H39: 0 | I39: 0 | J39: =SUMIF(Data!$H$2:$H$10177,$C39,Data!$D$2:$D$10177) -> 0 | K39: =SUMIF(Data!$H$2:$H$10177,$C39,Data!$J$2:$J$10177) -> 0 | L39: =SUMIF(Data!$K$2:$K$10177,$C39,Data!$M$2:$M$10177) -> 0 | M39: =SUMIF(Data!$N$2:$N$10177,$C39,Data!$P$2:$P$10177) -> 0 | N39: =SUMIF(Data!$Q$2:$R$10177,$C39,Data!$S$2:$S$10177) -> 0 | O39: =SUMIF(Data!$T$2:$U$10177,$C39,Data!$V$2:$V$10177) -> 0 | P39: =SUMIF(Data!$W$2:$W$10177,$C39,Data!$Y$2:$Y$10177) -> 0
C40: 9900000071 | D40: 71 | E40: LID OF PLYWOOD, TYPE L | F40: WOOD | G40: 5.927 | H40: 0 | I40: 0 | J40: =SUMIF(Data!$H$2:$H$10177,$C40,Data!$D$2:$D$10177) -> 0 | K40: =SUMIF(Data!$H$2:$H$10177,$C40,Data!$J$2:$J$10177) -> 0 | L40: =SUMIF(Data!$K$2:$K$10177,$C40,Data!$M$2:$M$10177) -> 0 | M40: =SUMIF(Data!$N$2:$N$10177,$C40,Data!$P$2:$P$10177) -> 0 | N40: =SUMIF(Data!$Q$2:$R$10177,$C40,Data!$S$2:$S$10177) -> 0 | O40: =SUMIF(Data!$T$2:$U$10177,$C40,Data!$V$2:$V$10177) -> 0 | P40: =SUMIF(Data!$W$2:$W$10177,$C40,Data!$Y$2:$Y$10177) -> 0
C41: 9900000072 | D41: 72 | E41: LID OF PLYWOOD, TYPE K | F41: WOOD | G41: 3.183 | H41: 0 | I41: 0 | J41: =SUMIF(Data!$H$2:$H$10177,$C41,Data!$D$2:$D$10177) -> 0 | K41: =SUMIF(Data!$H$2:$H$10177,$C41,Data!$J$2:$J$10177) -> 0 | L41: =SUMIF(Data!$K$2:$K$10177,$C41,Data!$M$2:$M$10177) -> 0 | M41: =SUMIF(Data!$N$2:$N$10177,$C41,Data!$P$2:$P$10177) -> 0 | N41: =SUMIF(Data!$Q$2:$R$10177,$C41,Data!$S$2:$S$10177) -> 0 | O41: =SUMIF(Data!$T$2:$U$10177,$C41,Data!$V$2:$V$10177) -> 0 | P41: =SUMIF(Data!$W$2:$W$10177,$C41,Data!$Y$2:$Y$10177) -> 0
C42: 9900000075 | D42: 75 | E42: LID OF PLYWOOD, TYPE F | F42: WOOD | G42: 11.807 | H42: 0 | I42: 0 | J42: =SUMIF(Data!$H$2:$H$10177,$C42,Data!$D$2:$D$10177) -> 0 | K42: =SUMIF(Data!$H$2:$H$10177,$C42,Data!$J$2:$J$10177) -> 0 | L42: =SUMIF(Data!$K$2:$K$10177,$C42,Data!$M$2:$M$10177) -> 0 | M42: =SUMIF(Data!$N$2:$N$10177,$C42,Data!$P$2:$P$10177) -> 0 | N42: =SUMIF(Data!$Q$2:$R$10177,$C42,Data!$S$2:$S$10177) -> 0 | O42: =SUMIF(Data!$T$2:$U$10177,$C42,Data!$V$2:$V$10177) -> 0 | P42: =SUMIF(Data!$W$2:$W$10177,$C42,Data!$Y$2:$Y$10177) -> 0
C43: 9900000076 | D43: 76 | E43: LID OF PLYWOOD, TYPE G | F43: WOOD | G43: 6.807 | H43: 0 | I43: 0 | J43: =SUMIF(Data!$H$2:$H$10177,$C43,Data!$D$2:$D$10177) -> 0 | K43: =SUMIF(Data!$H$2:$H$10177,$C43,Data!$J$2:$J$10177) -> 0 | L43: =SUMIF(Data!$K$2:$K$10177,$C43,Data!$M$2:$M$10177) -> 0 | M43: =SUMIF(Data!$N$2:$N$10177,$C43,Data!$P$2:$P$10177) -> 0 | N43: =SUMIF(Data!$Q$2:$R$10177,$C43,Data!$S$2:$S$10177) -> 0 | O43: =SUMIF(Data!$T$2:$U$10177,$C43,Data!$V$2:$V$10177) -> 0 | P43: =SUMIF(Data!$W$2:$W$10177,$C43,Data!$Y$2:$Y$10177) -> 0
C44: 9900000079 | D44: 79 | E44: LID OF PLYWOOD, TYPE H | F44: WOOD | G44: 9.026 | H44: 0 | I44: 0 | J44: =SUMIF(Data!$H$2:$H$10177,$C44,Data!$D$2:$D$10177) -> 0 | K44: =SUMIF(Data!$H$2:$H$10177,$C44,Data!$J$2:$J$10177) -> 0 | L44: =SUMIF(Data!$K$2:$K$10177,$C44,Data!$M$2:$M$10177) -> 0 | M44: =SUMIF(Data!$N$2:$N$10177,$C44,Data!$P$2:$P$10177) -> 0 | N44: =SUMIF(Data!$Q$2:$R$10177,$C44,Data!$S$2:$S$10177) -> 0 | O44: =SUMIF(Data!$T$2:$U$10177,$C44,Data!$V$2:$V$10177) -> 0 | P44: =SUMIF(Data!$W$2:$W$10177,$C44,Data!$Y$2:$Y$10177) -> 0
C45: 9900000081 | D45: 81 | E45: SPACER OF PLASTIC, L INNER | F45: PLASTIC | G45: 3.036 | H45: 0 | I45: 0 | J45: =SUMIF(Data!$H$2:$H$10177,$C45,Data!$D$2:$D$10177) -> 0 | K45: =SUMIF(Data!$H$2:$H$10177,$C45,Data!$J$2:$J$10177) -> 0 | L45: =SUMIF(Data!$K$2:$K$10177,$C45,Data!$M$2:$M$10177) -> 0 | M45: =SUMIF(Data!$N$2:$N$10177,$C45,Data!$P$2:$P$10177) -> 0 | N45: =SUMIF(Data!$Q$2:$R$10177,$C45,Data!$S$2:$S$10177) -> 0 | O45: =SUMIF(Data!$T$2:$U$10177,$C45,Data!$V$2:$V$10177) -> 0 | P45: =SUMIF(Data!$W$2:$W$10177,$C45,Data!$Y$2:$Y$10177) -> 0
C46: 9900000082 | D46: 82 | E46: SPACER OF PLASTIC, K INNER | F46: PLASTIC | G46: 1.221 | H46: 0 | I46: 0 | J46: =SUMIF(Data!$H$2:$H$10177,$C46,Data!$D$2:$D$10177) -> 0 | K46: =SUMIF(Data!$H$2:$H$10177,$C46,Data!$J$2:$J$10177) -> 0 | L46: =SUMIF(Data!$K$2:$K$10177,$C46,Data!$M$2:$M$10177) -> 0 | M46: =SUMIF(Data!$N$2:$N$10177,$C46,Data!$P$2:$P$10177) -> 0 | N46: =SUMIF(Data!$Q$2:$R$10177,$C46,Data!$S$2:$S$10177) -> 0 | O46: =SUMIF(Data!$T$2:$U$10177,$C46,Data!$V$2:$V$10177) -> 0 | P46: =SUMIF(Data!$W$2:$W$10177,$C46,Data!$Y$2:$Y$10177) -> 0
C47: 9900000091 | D47: 91 | E47: LID OF PLASTIC | F47: PLASTIC | G47: 4.176 | H47: 0 | I47: 0 | J47: =SUMIF(Data!$H$2:$H$10177,$C47,Data!$D$2:$D$10177) -> 0 | K47: =SUMIF(Data!$H$2:$H$10177,$C47,Data!$J$2:$J$10177) -> 0 | L47: =SUMIF(Data!$K$2:$K$10177,$C47,Data!$M$2:$M$10177) -> 0 | M47: =SUMIF(Data!$N$2:$N$10177,$C47,Data!$P$2:$P$10177) -> 0 | N47: =SUMIF(Data!$Q$2:$R$10177,$C47,Data!$S$2:$S$10177) -> 0 | O47: =SUMIF(Data!$T$2:$U$10177,$C47,Data!$V$2:$V$10177) -> 0 | P47: =SUMIF(Data!$W$2:$W$10177,$C47,Data!$Y$2:$Y$10177) -> 0
C48: 9900000092 | D48: 92 | E48: LID OF PLASTIC | F48: PLASTIC | G48: 2.126 | H48: 0 | I48: 0 | J48: =SUMIF(Data!$H$2:$H$10177,$C48,Data!$D$2:$D$10177) -> 0 | K48: =SUMIF(Data!$H$2:$H$10177,$C48,Data!$J$2:$J$10177) -> 0 | L48: =SUMIF(Data!$K$2:$K$10177,$C48,Data!$M$2:$M$10177) -> 0 | M48: =SUMIF(Data!$N$2:$N$10177,$C48,Data!$P$2:$P$10177) -> 0 | N48: =SUMIF(Data!$Q$2:$R$10177,$C48,Data!$S$2:$S$10177) -> 0 | O48: =SUMIF(Data!$T$2:$U$10177,$C48,Data!$V$2:$V$10177) -> 0 | P48: =SUMIF(Data!$W$2:$W$10177,$C48,Data!$Y$2:$Y$10177) -> 0
C49: 9900000099 | D49: 99 | E49: BAG OF PLASTIC (5L) Disposable | F49: PLASTIC | G49: 0.05 | H49: 0 | I49: 0 | J49: =SUMIF(Data!$H$2:$H$10177,$C49,Data!$D$2:$D$10177) -> 0 | K49: =SUMIF(Data!$H$2:$H$10177,$C49,Data!$J$2:$J$10177) -> 0 | L49: =SUMIF(Data!$K$2:$K$10177,$C49,Data!$M$2:$M$10177) -> 0 | M49: =SUMIF(Data!$N$2:$N$10177,$C49,Data!$P$2:$P$10177) -> 0 | N49: =SUMIF(Data!$Q$2:$R$10177,$C49,Data!$S$2:$S$10177) -> 0 | O49: =SUMIF(Data!$T$2:$U$10177,$C49,Data!$V$2:$V$10177) -> 0 | P49: =SUMIF(Data!$W$2:$W$10177,$C49,Data!$Y$2:$Y$10177) -> 0
C50: 9900000105 | D50: 105 | E50: PLASTIC BASE | F50: PLASTIC | G50: 4 | H50: 0 | I50: 0 | J50: =SUMIF(Data!$H$2:$H$10177,$C50,Data!$D$2:$D$10177) -> 0 | K50: =SUMIF(Data!$H$2:$H$10177,$C50,Data!$J$2:$J$10177) -> 0 | L50: =SUMIF(Data!$K$2:$K$10177,$C50,Data!$M$2:$M$10177) -> 0 | M50: =SUMIF(Data!$N$2:$N$10177,$C50,Data!$P$2:$P$10177) -> 0 | N50: =SUMIF(Data!$Q$2:$R$10177,$C50,Data!$S$2:$S$10177) -> 0 | O50: =SUMIF(Data!$T$2:$U$10177,$C50,Data!$V$2:$V$10177) -> 0 | P50: =SUMIF(Data!$W$2:$W$10177,$C50,Data!$Y$2:$Y$10177) -> 0
C51: 9900000107 | D51: 107 | E51: PALLET OF WOOD | F51: WOOD | G51: 35 | H51: 0 | I51: 0 | J51: =SUMIF(Data!$H$2:$H$10177,$C51,Data!$D$2:$D$10177) -> 0 | K51: =SUMIF(Data!$H$2:$H$10177,$C51,Data!$J$2:$J$10177) -> 0 | L51: =SUMIF(Data!$K$2:$K$10177,$C51,Data!$M$2:$M$10177) -> 0 | M51: =SUMIF(Data!$N$2:$N$10177,$C51,Data!$P$2:$P$10177) -> 0 | N51: =SUMIF(Data!$Q$2:$R$10177,$C51,Data!$S$2:$S$10177) -> 0 | O51: =SUMIF(Data!$T$2:$U$10177,$C51,Data!$V$2:$V$10177) -> 0 | P51: =SUMIF(Data!$W$2:$W$10177,$C51,Data!$Y$2:$Y$10177) -> 0
C52: 9900000110 | D52: 110 | E52: FIXING OF PLASTIC | F52: PLASTIC | G52: 4.5 | H52: 0 | I52: 0 | J52: =SUMIF(Data!$H$2:$H$10177,$C52,Data!$D$2:$D$10177) -> 0 | K52: =SUMIF(Data!$H$2:$H$10177,$C52,Data!$J$2:$J$10177) -> 0 | L52: =SUMIF(Data!$K$2:$K$10177,$C52,Data!$M$2:$M$10177) -> 0 | M52: =SUMIF(Data!$N$2:$N$10177,$C52,Data!$P$2:$P$10177) -> 0 | N52: =SUMIF(Data!$Q$2:$R$10177,$C52,Data!$S$2:$S$10177) -> 0 | O52: =SUMIF(Data!$T$2:$U$10177,$C52,Data!$V$2:$V$10177) -> 0 | P52: =SUMIF(Data!$W$2:$W$10177,$C52,Data!$Y$2:$Y$10177) -> 0
C53: 9900000116 | D53: 116 | E53: SPACER OF FLEX TEXTILE | F53: PLASTIC | G53: 0.379 | H53: 0 | I53: 0 | J53: =SUMIF(Data!$H$2:$H$10177,$C53,Data!$D$2:$D$10177) -> 0 | K53: =SUMIF(Data!$H$2:$H$10177,$C53,Data!$J$2:$J$10177) -> 0 | L53: =SUMIF(Data!$K$2:$K$10177,$C53,Data!$M$2:$M$10177) -> 0 | M53: =SUMIF(Data!$N$2:$N$10177,$C53,Data!$P$2:$P$10177) -> 0 | N53: =SUMIF(Data!$Q$2:$R$10177,$C53,Data!$S$2:$S$10177) -> 0 | O53: =SUMIF(Data!$T$2:$U$10177,$C53,Data!$V$2:$V$10177) -> 0 | P53: =SUMIF(Data!$W$2:$W$10177,$C53,Data!$Y$2:$Y$10177) -> 0
C54: 9900000119 | D54: 119 | E54: SPACER OF CORR.BOARD/FOAM | F54: COMPOSITE | G54: 0.424 | H54: 0 | I54: 0 | J54: =SUMIF(Data!$H$2:$H$10177,$C54,Data!$D$2:$D$10177) -> 0 | K54: =SUMIF(Data!$H$2:$H$10177,$C54,Data!$J$2:$J$10177) -> 0 | L54: =SUMIF(Data!$K$2:$K$10177,$C54,Data!$M$2:$M$10177) -> 0 | M54: =SUMIF(Data!$N$2:$N$10177,$C54,Data!$P$2:$P$10177) -> 0 | N54: =SUMIF(Data!$Q$2:$R$10177,$C54,Data!$S$2:$S$10177) -> 0 | O54: =SUMIF(Data!$T$2:$U$10177,$C54,Data!$V$2:$V$10177) -> 0 | P54: =SUMIF(Data!$W$2:$W$10177,$C54,Data!$Y$2:$Y$10177) -> 0
C55: 9900000121 | D55: 121 | E55: SPACER OF FLEX TEXTILE | F55: PLASTIC | G55: 0.352 | H55: 0 | I55: 0 | J55: =SUMIF(Data!$H$2:$H$10177,$C55,Data!$D$2:$D$10177) -> 0 | K55: =SUMIF(Data!$H$2:$H$10177,$C55,Data!$J$2:$J$10177) -> 0 | L55: =SUMIF(Data!$K$2:$K$10177,$C55,Data!$M$2:$M$10177) -> 0 | M55: =SUMIF(Data!$N$2:$N$10177,$C55,Data!$P$2:$P$10177) -> 0 | N55: =SUMIF(Data!$Q$2:$R$10177,$C55,Data!$S$2:$S$10177) -> 0 | O55: =SUMIF(Data!$T$2:$U$10177,$C55,Data!$V$2:$V$10177) -> 0 | P55: =SUMIF(Data!$W$2:$W$10177,$C55,Data!$Y$2:$Y$10177) -> 0
C56: 9900000140 | D56: 140 | E56: PSP- KIT | F56: PLASTIC | G56: 9.5 | H56: 0 | I56: 0 | J56: =SUMIF(Data!$H$2:$H$10177,$C56,Data!$D$2:$D$10177) -> 0 | K56: =SUMIF(Data!$H$2:$H$10177,$C56,Data!$J$2:$J$10177) -> 0 | L56: =SUMIF(Data!$K$2:$K$10177,$C56,Data!$M$2:$M$10177) -> 0 | M56: =SUMIF(Data!$N$2:$N$10177,$C56,Data!$P$2:$P$10177) -> 0 | N56: =SUMIF(Data!$Q$2:$R$10177,$C56,Data!$S$2:$S$10177) -> 0 | O56: =SUMIF(Data!$T$2:$U$10177,$C56,Data!$V$2:$V$10177) -> 0 | P56: =SUMIF(Data!$W$2:$W$10177,$C56,Data!$Y$2:$Y$10177) -> 0
C57: 9900000141 | D57: 141 | E57: PSC-PALLET | F57: PLASTIC | G57: 26 | H57: 0 | I57: 0 | J57: =SUMIF(Data!$H$2:$H$10177,$C57,Data!$D$2:$D$10177) -> 0 | K57: =SUMIF(Data!$H$2:$H$10177,$C57,Data!$J$2:$J$10177) -> 0 | L57: =SUMIF(Data!$K$2:$K$10177,$C57,Data!$M$2:$M$10177) -> 0 | M57: =SUMIF(Data!$N$2:$N$10177,$C57,Data!$P$2:$P$10177) -> 0 | N57: =SUMIF(Data!$Q$2:$R$10177,$C57,Data!$S$2:$S$10177) -> 0 | O57: =SUMIF(Data!$T$2:$U$10177,$C57,Data!$V$2:$V$10177) -> 0 | P57: =SUMIF(Data!$W$2:$W$10177,$C57,Data!$Y$2:$Y$10177) -> 0
C58: 9900000142 | D58: 142 | E58: PSC- SLEEVE | F58: PLASTIC | G58: 5 | H58: 0 | I58: 0 | J58: =SUMIF(Data!$H$2:$H$10177,$C58,Data!$D$2:$D$10177) -> 0 | K58: =SUMIF(Data!$H$2:$H$10177,$C58,Data!$J$2:$J$10177) -> 0 | L58: =SUMIF(Data!$K$2:$K$10177,$C58,Data!$M$2:$M$10177) -> 0 | M58: =SUMIF(Data!$N$2:$N$10177,$C58,Data!$P$2:$P$10177) -> 0 | N58: =SUMIF(Data!$Q$2:$R$10177,$C58,Data!$S$2:$S$10177) -> 0 | O58: =SUMIF(Data!$T$2:$U$10177,$C58,Data!$V$2:$V$10177) -> 0 | P58: =SUMIF(Data!$W$2:$W$10177,$C58,Data!$Y$2:$Y$10177) -> 0
C59: 9900000143 | D59: 143 | E59: PSC- LID | F59: PLASTIC | G59: 5 | H59: 0 | I59: 0 | J59: =SUMIF(Data!$H$2:$H$10177,$C59,Data!$D$2:$D$10177) -> 0 | K59: =SUMIF(Data!$H$2:$H$10177,$C59,Data!$J$2:$J$10177) -> 0 | L59: =SUMIF(Data!$K$2:$K$10177,$C59,Data!$M$2:$M$10177) -> 0 | M59: =SUMIF(Data!$N$2:$N$10177,$C59,Data!$P$2:$P$10177) -> 0 | N59: =SUMIF(Data!$Q$2:$R$10177,$C59,Data!$S$2:$S$10177) -> 0 | O59: =SUMIF(Data!$T$2:$U$10177,$C59,Data!$V$2:$V$10177) -> 0 | P59: =SUMIF(Data!$W$2:$W$10177,$C59,Data!$Y$2:$Y$10177) -> 0
C60: 9900000153 | D60: 153 | E60: GOODS LABEL HOLDER | F60: CARDBOARD | G60: 0.05 | H60: 0 | I60: 0 | J60: =SUMIF(Data!$H$2:$H$10177,$C60,Data!$D$2:$D$10177) -> 0 | K60: =SUMIF(Data!$H$2:$H$10177,$C60,Data!$J$2:$J$10177) -> 0 | L60: =SUMIF(Data!$K$2:$K$10177,$C60,Data!$M$2:$M$10177) -> 0 | M60: =SUMIF(Data!$N$2:$N$10177,$C60,Data!$P$2:$P$10177) -> 0 | N60: =SUMIF(Data!$Q$2:$R$10177,$C60,Data!$S$2:$S$10177) -> 0 | O60: =SUMIF(Data!$T$2:$U$10177,$C60,Data!$V$2:$V$10177) -> 0 | P60: =SUMIF(Data!$W$2:$W$10177,$C60,Data!$Y$2:$Y$10177) -> 0
C61: 9900000156 | D61: 156 | E61: BOX OF CORRUGATED BOARD | F61: CARDBOARD | G61: 0.09 | H61: 0 | I61: 0 | J61: =SUMIF(Data!$H$2:$H$10177,$C61,Data!$D$2:$D$10177) -> 0 | K61: =SUMIF(Data!$H$2:$H$10177,$C61,Data!$J$2:$J$10177) -> 0 | L61: =SUMIF(Data!$K$2:$K$10177,$C61,Data!$M$2:$M$10177) -> 0 | M61: =SUMIF(Data!$N$2:$N$10177,$C61,Data!$P$2:$P$10177) -> 0 | N61: =SUMIF(Data!$Q$2:$R$10177,$C61,Data!$S$2:$S$10177) -> 0 | O61: =SUMIF(Data!$T$2:$U$10177,$C61,Data!$V$2:$V$10177) -> 0 | P61: =SUMIF(Data!$W$2:$W$10177,$C61,Data!$Y$2:$Y$10177) -> 0
C62: 9900000170 | D62: 170 | E62: RACK OF STEEL | F62: METAL | G62: 84 | H62: 0 | I62: 0 | J62: =SUMIF(Data!$H$2:$H$10177,$C62,Data!$D$2:$D$10177) -> 0 | K62: =SUMIF(Data!$H$2:$H$10177,$C62,Data!$J$2:$J$10177) -> 0 | L62: =SUMIF(Data!$K$2:$K$10177,$C62,Data!$M$2:$M$10177) -> 0 | M62: =SUMIF(Data!$N$2:$N$10177,$C62,Data!$P$2:$P$10177) -> 0 | N62: =SUMIF(Data!$Q$2:$R$10177,$C62,Data!$S$2:$S$10177) -> 0 | O62: =SUMIF(Data!$T$2:$U$10177,$C62,Data!$V$2:$V$10177) -> 0 | P62: =SUMIF(Data!$W$2:$W$10177,$C62,Data!$Y$2:$Y$10177) -> 0
C63: 9900000175 | D63: 175 | E63: BATTEN OF WOOD | F63: WOOD | G63: 1.74 | H63: 0 | I63: 0 | J63: =SUMIF(Data!$H$2:$H$10177,$C63,Data!$D$2:$D$10177) -> 0 | K63: =SUMIF(Data!$H$2:$H$10177,$C63,Data!$J$2:$J$10177) -> 0 | L63: =SUMIF(Data!$K$2:$K$10177,$C63,Data!$M$2:$M$10177) -> 0 | M63: =SUMIF(Data!$N$2:$N$10177,$C63,Data!$P$2:$P$10177) -> 0 | N63: =SUMIF(Data!$Q$2:$R$10177,$C63,Data!$S$2:$S$10177) -> 0 | O63: =SUMIF(Data!$T$2:$U$10177,$C63,Data!$V$2:$V$10177) -> 0 | P63: =SUMIF(Data!$W$2:$W$10177,$C63,Data!$Y$2:$Y$10177) -> 0
C64: 9900000176 | D64: 176 | E64: BATTEN OF WOOD | F64: WOOD | G64: 1.74 | H64: 0 | I64: 0 | J64: =SUMIF(Data!$H$2:$H$10177,$C64,Data!$D$2:$D$10177) -> 0 | K64: =SUMIF(Data!$H$2:$H$10177,$C64,Data!$J$2:$J$10177) -> 0 | L64: =SUMIF(Data!$K$2:$K$10177,$C64,Data!$M$2:$M$10177) -> 0 | M64: =SUMIF(Data!$N$2:$N$10177,$C64,Data!$P$2:$P$10177) -> 0 | N64: =SUMIF(Data!$Q$2:$R$10177,$C64,Data!$S$2:$S$10177) -> 0 | O64: =SUMIF(Data!$T$2:$U$10177,$C64,Data!$V$2:$V$10177) -> 0 | P64: =SUMIF(Data!$W$2:$W$10177,$C64,Data!$Y$2:$Y$10177) -> 0
C65: 9900000190 | D65: 190 | E65: PALLET OF PLASTIC | F65: PLASTIC | G65: 21.9 | H65: 0 | I65: 0 | J65: =SUMIF(Data!$H$2:$H$10177,$C65,Data!$D$2:$D$10177) -> 0 | K65: =SUMIF(Data!$H$2:$H$10177,$C65,Data!$J$2:$J$10177) -> 0 | L65: =SUMIF(Data!$K$2:$K$10177,$C65,Data!$M$2:$M$10177) -> 0 | M65: =SUMIF(Data!$N$2:$N$10177,$C65,Data!$P$2:$P$10177) -> 0 | N65: =SUMIF(Data!$Q$2:$R$10177,$C65,Data!$S$2:$S$10177) -> 0 | O65: =SUMIF(Data!$T$2:$U$10177,$C65,Data!$V$2:$V$10177) -> 0 | P65: =SUMIF(Data!$W$2:$W$10177,$C65,Data!$Y$2:$Y$10177) -> 0
C66: 9900000191 | D66: 191 | E66: LID OF PLASTIC | F66: PLASTIC | G66: 4.1 | H66: 0 | I66: 0 | J66: =SUMIF(Data!$H$2:$H$10177,$C66,Data!$D$2:$D$10177) -> 0 | K66: =SUMIF(Data!$H$2:$H$10177,$C66,Data!$J$2:$J$10177) -> 0 | L66: =SUMIF(Data!$K$2:$K$10177,$C66,Data!$M$2:$M$10177) -> 0 | M66: =SUMIF(Data!$N$2:$N$10177,$C66,Data!$P$2:$P$10177) -> 0 | N66: =SUMIF(Data!$Q$2:$R$10177,$C66,Data!$S$2:$S$10177) -> 0 | O66: =SUMIF(Data!$T$2:$U$10177,$C66,Data!$V$2:$V$10177) -> 0 | P66: =SUMIF(Data!$W$2:$W$10177,$C66,Data!$Y$2:$Y$10177) -> 0
C67: 9900000215 | D67: 215 | E67: RACK OF STEEL | F67: METAL | G67: 126 | H67: 0 | I67: 0 | J67: =SUMIF(Data!$H$2:$H$10177,$C67,Data!$D$2:$D$10177) -> 0 | K67: =SUMIF(Data!$H$2:$H$10177,$C67,Data!$J$2:$J$10177) -> 0 | L67: =SUMIF(Data!$K$2:$K$10177,$C67,Data!$M$2:$M$10177) -> 0 | M67: =SUMIF(Data!$N$2:$N$10177,$C67,Data!$P$2:$P$10177) -> 0 | N67: =SUMIF(Data!$Q$2:$R$10177,$C67,Data!$S$2:$S$10177) -> 0 | O67: =SUMIF(Data!$T$2:$U$10177,$C67,Data!$V$2:$V$10177) -> 0 | P67: =SUMIF(Data!$W$2:$W$10177,$C67,Data!$Y$2:$Y$10177) -> 0
C68: 9900000233 | D68: 233 | E68: SUPPORT OF STEEL | F68: METAL | G68: 9.5 | H68: 0 | I68: 0 | J68: =SUMIF(Data!$H$2:$H$10177,$C68,Data!$D$2:$D$10177) -> 0 | K68: =SUMIF(Data!$H$2:$H$10177,$C68,Data!$J$2:$J$10177) -> 0 | L68: =SUMIF(Data!$K$2:$K$10177,$C68,Data!$M$2:$M$10177) -> 0 | M68: =SUMIF(Data!$N$2:$N$10177,$C68,Data!$P$2:$P$10177) -> 0 | N68: =SUMIF(Data!$Q$2:$R$10177,$C68,Data!$S$2:$S$10177) -> 0 | O68: =SUMIF(Data!$T$2:$U$10177,$C68,Data!$V$2:$V$10177) -> 0 | P68: =SUMIF(Data!$W$2:$W$10177,$C68,Data!$Y$2:$Y$10177) -> 0
C69: 9900000234 | D69: 234 | E69: SUPPORT OF STEEL | F69: METAL | G69: 10 | H69: 0 | I69: 0 | J69: =SUMIF(Data!$H$2:$H$10177,$C69,Data!$D$2:$D$10177) -> 0 | K69: =SUMIF(Data!$H$2:$H$10177,$C69,Data!$J$2:$J$10177) -> 0 | L69: =SUMIF(Data!$K$2:$K$10177,$C69,Data!$M$2:$M$10177) -> 0 | M69: =SUMIF(Data!$N$2:$N$10177,$C69,Data!$P$2:$P$10177) -> 0 | N69: =SUMIF(Data!$Q$2:$R$10177,$C69,Data!$S$2:$S$10177) -> 0 | O69: =SUMIF(Data!$T$2:$U$10177,$C69,Data!$V$2:$V$10177) -> 0 | P69: =SUMIF(Data!$W$2:$W$10177,$C69,Data!$Y$2:$Y$10177) -> 0
C70: 9900000236 | D70: 236 | E70: LID OF PLYWOOD | F70: WOOD | G70: 12.142 | H70: 0 | I70: 0 | J70: =SUMIF(Data!$H$2:$H$10177,$C70,Data!$D$2:$D$10177) -> 0 | K70: =SUMIF(Data!$H$2:$H$10177,$C70,Data!$J$2:$J$10177) -> 0 | L70: =SUMIF(Data!$K$2:$K$10177,$C70,Data!$M$2:$M$10177) -> 0 | M70: =SUMIF(Data!$N$2:$N$10177,$C70,Data!$P$2:$P$10177) -> 0 | N70: =SUMIF(Data!$Q$2:$R$10177,$C70,Data!$S$2:$S$10177) -> 0 | O70: =SUMIF(Data!$T$2:$U$10177,$C70,Data!$V$2:$V$10177) -> 0 | P70: =SUMIF(Data!$W$2:$W$10177,$C70,Data!$Y$2:$Y$10177) -> 0
C71: 9900000260 | D71: 260 | E71: SPACER OF FOAM | F71: PLASTIC | G71: 0.22 | H71: 0 | I71: 0 | J71: =SUMIF(Data!$H$2:$H$10177,$C71,Data!$D$2:$D$10177) -> 0 | K71: =SUMIF(Data!$H$2:$H$10177,$C71,Data!$J$2:$J$10177) -> 0 | L71: =SUMIF(Data!$K$2:$K$10177,$C71,Data!$M$2:$M$10177) -> 0 | M71: =SUMIF(Data!$N$2:$N$10177,$C71,Data!$P$2:$P$10177) -> 0 | N71: =SUMIF(Data!$Q$2:$R$10177,$C71,Data!$S$2:$S$10177) -> 0 | O71: =SUMIF(Data!$T$2:$U$10177,$C71,Data!$V$2:$V$10177) -> 0 | P71: =SUMIF(Data!$W$2:$W$10177,$C71,Data!$Y$2:$Y$10177) -> 0
C72: 9900000268 | D72: 268 | E72: SPACER OF CARDBOARD | F72: CARDBOARD | G72: 0.14 | H72: 0 | I72: 0 | J72: =SUMIF(Data!$H$2:$H$10177,$C72,Data!$D$2:$D$10177) -> 0 | K72: =SUMIF(Data!$H$2:$H$10177,$C72,Data!$J$2:$J$10177) -> 0 | L72: =SUMIF(Data!$K$2:$K$10177,$C72,Data!$M$2:$M$10177) -> 0 | M72: =SUMIF(Data!$N$2:$N$10177,$C72,Data!$P$2:$P$10177) -> 0 | N72: =SUMIF(Data!$Q$2:$R$10177,$C72,Data!$S$2:$S$10177) -> 0 | O72: =SUMIF(Data!$T$2:$U$10177,$C72,Data!$V$2:$V$10177) -> 0 | P72: =SUMIF(Data!$W$2:$W$10177,$C72,Data!$Y$2:$Y$10177) -> 0
C73: 9900000270 | D73: 270 | E73: SPACER OF WOOD | F73: WOOD | G73: 1 | H73: 0 | I73: 0 | J73: =SUMIF(Data!$H$2:$H$10177,$C73,Data!$D$2:$D$10177) -> 0 | K73: =SUMIF(Data!$H$2:$H$10177,$C73,Data!$J$2:$J$10177) -> 0 | L73: =SUMIF(Data!$K$2:$K$10177,$C73,Data!$M$2:$M$10177) -> 0 | M73: =SUMIF(Data!$N$2:$N$10177,$C73,Data!$P$2:$P$10177) -> 0 | N73: =SUMIF(Data!$Q$2:$R$10177,$C73,Data!$S$2:$S$10177) -> 0 | O73: =SUMIF(Data!$T$2:$U$10177,$C73,Data!$V$2:$V$10177) -> 0 | P73: =SUMIF(Data!$W$2:$W$10177,$C73,Data!$Y$2:$Y$10177) -> 0
C74: 9900000274 | D74: 274 | E74: SPACER OF PLASTIC | F74: PLASTIC | G74: 1.4 | H74: 0 | I74: 0 | J74: =SUMIF(Data!$H$2:$H$10177,$C74,Data!$D$2:$D$10177) -> 0 | K74: =SUMIF(Data!$H$2:$H$10177,$C74,Data!$J$2:$J$10177) -> 0 | L74: =SUMIF(Data!$K$2:$K$10177,$C74,Data!$M$2:$M$10177) -> 0 | M74: =SUMIF(Data!$N$2:$N$10177,$C74,Data!$P$2:$P$10177) -> 0 | N74: =SUMIF(Data!$Q$2:$R$10177,$C74,Data!$S$2:$S$10177) -> 0 | O74: =SUMIF(Data!$T$2:$U$10177,$C74,Data!$V$2:$V$10177) -> 0 | P74: =SUMIF(Data!$W$2:$W$10177,$C74,Data!$Y$2:$Y$10177) -> 0
C75: 9900000284 | D75: 284 | E75: RACK OF STEEL | F75: METAL | G75: 265 | H75: 0 | I75: 0 | J75: =SUMIF(Data!$H$2:$H$10177,$C75,Data!$D$2:$D$10177) -> 0 | K75: =SUMIF(Data!$H$2:$H$10177,$C75,Data!$J$2:$J$10177) -> 0 | L75: =SUMIF(Data!$K$2:$K$10177,$C75,Data!$M$2:$M$10177) -> 0 | M75: =SUMIF(Data!$N$2:$N$10177,$C75,Data!$P$2:$P$10177) -> 0 | N75: =SUMIF(Data!$Q$2:$R$10177,$C75,Data!$S$2:$S$10177) -> 0 | O75: =SUMIF(Data!$T$2:$U$10177,$C75,Data!$V$2:$V$10177) -> 0 | P75: =SUMIF(Data!$W$2:$W$10177,$C75,Data!$Y$2:$Y$10177) -> 0
C76: 9900000285 | D76: 285 | E76: RACK OF STEEL | F76: METAL | G76: 290 | H76: 0 | I76: 0 | J76: =SUMIF(Data!$H$2:$H$10177,$C76,Data!$D$2:$D$10177) -> 0 | K76: =SUMIF(Data!$H$2:$H$10177,$C76,Data!$J$2:$J$10177) -> 0 | L76: =SUMIF(Data!$K$2:$K$10177,$C76,Data!$M$2:$M$10177) -> 0 | M76: =SUMIF(Data!$N$2:$N$10177,$C76,Data!$P$2:$P$10177) -> 0 | N76: =SUMIF(Data!$Q$2:$R$10177,$C76,Data!$S$2:$S$10177) -> 0 | O76: =SUMIF(Data!$T$2:$U$10177,$C76,Data!$V$2:$V$10177) -> 0 | P76: =SUMIF(Data!$W$2:$W$10177,$C76,Data!$Y$2:$Y$10177) -> 0
C77: 9900000287 | D77: 287 | E77: RACK OF STEEL | F77: METAL | G77: 95 | H77: 0 | I77: 0 | J77: =SUMIF(Data!$H$2:$H$10177,$C77,Data!$D$2:$D$10177) -> 0 | K77: =SUMIF(Data!$H$2:$H$10177,$C77,Data!$J$2:$J$10177) -> 0 | L77: =SUMIF(Data!$K$2:$K$10177,$C77,Data!$M$2:$M$10177) -> 0 | M77: =SUMIF(Data!$N$2:$N$10177,$C77,Data!$P$2:$P$10177) -> 0 | N77: =SUMIF(Data!$Q$2:$R$10177,$C77,Data!$S$2:$S$10177) -> 0 | O77: =SUMIF(Data!$T$2:$U$10177,$C77,Data!$V$2:$V$10177) -> 0 | P77: =SUMIF(Data!$W$2:$W$10177,$C77,Data!$Y$2:$Y$10177) -> 0
C78: 9900000288 | D78: 288 | E78: FIXING SPACER OF STEEL/ALU | F78: METAL | G78: 3.35 | H78: 0 | I78: 0 | J78: =SUMIF(Data!$H$2:$H$10177,$C78,Data!$D$2:$D$10177) -> 0 | K78: =SUMIF(Data!$H$2:$H$10177,$C78,Data!$J$2:$J$10177) -> 0 | L78: =SUMIF(Data!$K$2:$K$10177,$C78,Data!$M$2:$M$10177) -> 0 | M78: =SUMIF(Data!$N$2:$N$10177,$C78,Data!$P$2:$P$10177) -> 0 | N78: =SUMIF(Data!$Q$2:$R$10177,$C78,Data!$S$2:$S$10177) -> 0 | O78: =SUMIF(Data!$T$2:$U$10177,$C78,Data!$V$2:$V$10177) -> 0 | P78: =SUMIF(Data!$W$2:$W$10177,$C78,Data!$Y$2:$Y$10177) -> 0
C79: 9900000291 | D79: 291 | E79: PLASTIC CONTAINER FSC | F79: PLASTIC | G79: 45.73 | H79: 0 | I79: 0 | J79: =SUMIF(Data!$H$2:$H$10177,$C79,Data!$D$2:$D$10177) -> 0 | K79: =SUMIF(Data!$H$2:$H$10177,$C79,Data!$J$2:$J$10177) -> 0 | L79: =SUMIF(Data!$K$2:$K$10177,$C79,Data!$M$2:$M$10177) -> 0 | M79: =SUMIF(Data!$N$2:$N$10177,$C79,Data!$P$2:$P$10177) -> 0 | N79: =SUMIF(Data!$Q$2:$R$10177,$C79,Data!$S$2:$S$10177) -> 0 | O79: =SUMIF(Data!$T$2:$U$10177,$C79,Data!$V$2:$V$10177) -> 0 | P79: =SUMIF(Data!$W$2:$W$10177,$C79,Data!$Y$2:$Y$10177) -> 0
C80: 9900000292 | D80: 292 | E80: PLASTIC CONTAINER FLC | F80: PLASTIC | G80: 65.971 | H80: =G80*I80 -> 0 | I80: =SUM(J80:P80) -> 0 | J80: =SUMIF(Data!$H$2:$H$10177,$C80,Data!$D$2:$D$10177) -> 0 | K80: =SUMIF(Data!$H$2:$H$10177,$C80,Data!$J$2:$J$10177) -> 0 | L80: =SUMIF(Data!$K$2:$K$10177,$C80,Data!$M$2:$M$10177) -> 0 | M80: =SUMIF(Data!$N$2:$N$10177,$C80,Data!$P$2:$P$10177) -> 0 | N80: =SUMIF(Data!$Q$2:$R$10177,$C80,Data!$S$2:$S$10177) -> 0 | O80: =SUMIF(Data!$T$2:$U$10177,$C80,Data!$V$2:$V$10177) -> 0 | P80: =SUMIF(Data!$W$2:$W$10177,$C80,Data!$Y$2:$Y$10177) -> 0
C81: 9900000293 | D81: 293 | E81: PLASTIC CONTAINER FHC | F81: PLASTIC | G81: 93.092 | H81: 0 | I81: 0 | J81: =SUMIF(Data!$H$2:$H$10177,$C81,Data!$D$2:$D$10177) -> 0 | K81: =SUMIF(Data!$H$2:$H$10177,$C81,Data!$J$2:$J$10177) -> 0 | L81: =SUMIF(Data!$K$2:$K$10177,$C81,Data!$M$2:$M$10177) -> 0 | M81: =SUMIF(Data!$N$2:$N$10177,$C81,Data!$P$2:$P$10177) -> 0 | N81: =SUMIF(Data!$Q$2:$R$10177,$C81,Data!$S$2:$S$10177) -> 0 | O81: =SUMIF(Data!$T$2:$U$10177,$C81,Data!$V$2:$V$10177) -> 0 | P81: =SUMIF(Data!$W$2:$W$10177,$C81,Data!$Y$2:$Y$10177) -> 0
C82: 9900000296 | D82: 296 | E82: DUST COVER VOLVO FXC | F82: PLASTIC | G82: 4 | H82: 0 | I82: 0 | J82: =SUMIF(Data!$H$2:$H$10177,$C82,Data!$D$2:$D$10177) -> 0 | K82: =SUMIF(Data!$H$2:$H$10177,$C82,Data!$J$2:$J$10177) -> 0 | L82: =SUMIF(Data!$K$2:$K$10177,$C82,Data!$M$2:$M$10177) -> 0 | M82: =SUMIF(Data!$N$2:$N$10177,$C82,Data!$P$2:$P$10177) -> 0 | N82: =SUMIF(Data!$Q$2:$R$10177,$C82,Data!$S$2:$S$10177) -> 0 | O82: =SUMIF(Data!$T$2:$U$10177,$C82,Data!$V$2:$V$10177) -> 0 | P82: =SUMIF(Data!$W$2:$W$10177,$C82,Data!$Y$2:$Y$10177) -> 0
C83: 9900000297 | D83: 297 | E83: SPACER FOAM / CARD | F83: COMPOSITE | G83: 0.41 | H83: 0 | I83: 0 | J83: =SUMIF(Data!$H$2:$H$10177,$C83,Data!$D$2:$D$10177) -> 0 | K83: =SUMIF(Data!$H$2:$H$10177,$C83,Data!$J$2:$J$10177) -> 0 | L83: =SUMIF(Data!$K$2:$K$10177,$C83,Data!$M$2:$M$10177) -> 0 | M83: =SUMIF(Data!$N$2:$N$10177,$C83,Data!$P$2:$P$10177) -> 0 | N83: =SUMIF(Data!$Q$2:$R$10177,$C83,Data!$S$2:$S$10177) -> 0 | O83: =SUMIF(Data!$T$2:$U$10177,$C83,Data!$V$2:$V$10177) -> 0 | P83: =SUMIF(Data!$W$2:$W$10177,$C83,Data!$Y$2:$Y$10177) -> 0
C84: 9900000299 | D84: 299 | E84: PLASTIC COVER FXC | F84: PLASTIC | G84: 0.42 | H84: 0 | I84: 0 | J84: =SUMIF(Data!$H$2:$H$10177,$C84,Data!$D$2:$D$10177) -> 0 | K84: =SUMIF(Data!$H$2:$H$10177,$C84,Data!$J$2:$J$10177) -> 0 | L84: =SUMIF(Data!$K$2:$K$10177,$C84,Data!$M$2:$M$10177) -> 0 | M84: =SUMIF(Data!$N$2:$N$10177,$C84,Data!$P$2:$P$10177) -> 0 | N84: =SUMIF(Data!$Q$2:$R$10177,$C84,Data!$S$2:$S$10177) -> 0 | O84: =SUMIF(Data!$T$2:$U$10177,$C84,Data!$V$2:$V$10177) -> 0 | P84: =SUMIF(Data!$W$2:$W$10177,$C84,Data!$Y$2:$Y$10177) -> 0
C85: 9900000340 | D85: 340 | E85: SUPPORT OF CELL.PLASTIC | F85: PLASTIC | G85: 0.06 | H85: 0 | I85: 0 | J85: =SUMIF(Data!$H$2:$H$10177,$C85,Data!$D$2:$D$10177) -> 0 | K85: =SUMIF(Data!$H$2:$H$10177,$C85,Data!$J$2:$J$10177) -> 0 | L85: =SUMIF(Data!$K$2:$K$10177,$C85,Data!$M$2:$M$10177) -> 0 | M85: =SUMIF(Data!$N$2:$N$10177,$C85,Data!$P$2:$P$10177) -> 0 | N85: =SUMIF(Data!$Q$2:$R$10177,$C85,Data!$S$2:$S$10177) -> 0 | O85: =SUMIF(Data!$T$2:$U$10177,$C85,Data!$V$2:$V$10177) -> 0 | P85: =SUMIF(Data!$W$2:$W$10177,$C85,Data!$Y$2:$Y$10177) -> 0
C86: 9900000341 | D86: 341 | E86: SUPPORT OF CELL.PLASTIC | F86: PLASTIC | G86: 0.14 | H86: 0 | I86: 0 | J86: =SUMIF(Data!$H$2:$H$10177,$C86,Data!$D$2:$D$10177) -> 0 | K86: =SUMIF(Data!$H$2:$H$10177,$C86,Data!$J$2:$J$10177) -> 0 | L86: =SUMIF(Data!$K$2:$K$10177,$C86,Data!$M$2:$M$10177) -> 0 | M86: =SUMIF(Data!$N$2:$N$10177,$C86,Data!$P$2:$P$10177) -> 0 | N86: =SUMIF(Data!$Q$2:$R$10177,$C86,Data!$S$2:$S$10177) -> 0 | O86: =SUMIF(Data!$T$2:$U$10177,$C86,Data!$V$2:$V$10177) -> 0 | P86: =SUMIF(Data!$W$2:$W$10177,$C86,Data!$Y$2:$Y$10177) -> 0
C87: 9900000358 | D87: 358 | E87: SPACER OF WOOD | F87: WOOD | G87: 2 | H87: 0 | I87: 0 | J87: =SUMIF(Data!$H$2:$H$10177,$C87,Data!$D$2:$D$10177) -> 0 | K87: =SUMIF(Data!$H$2:$H$10177,$C87,Data!$J$2:$J$10177) -> 0 | L87: =SUMIF(Data!$K$2:$K$10177,$C87,Data!$M$2:$M$10177) -> 0 | M87: =SUMIF(Data!$N$2:$N$10177,$C87,Data!$P$2:$P$10177) -> 0 | N87: =SUMIF(Data!$Q$2:$R$10177,$C87,Data!$S$2:$S$10177) -> 0 | O87: =SUMIF(Data!$T$2:$U$10177,$C87,Data!$V$2:$V$10177) -> 0 | P87: =SUMIF(Data!$W$2:$W$10177,$C87,Data!$Y$2:$Y$10177) -> 0
C88: 9900000365 | D88: 365 | E88: HANGER OF STEEL | F88: METAL | G88: 26 | H88: 0 | I88: 0 | J88: =SUMIF(Data!$H$2:$H$10177,$C88,Data!$D$2:$D$10177) -> 0 | K88: =SUMIF(Data!$H$2:$H$10177,$C88,Data!$J$2:$J$10177) -> 0 | L88: =SUMIF(Data!$K$2:$K$10177,$C88,Data!$M$2:$M$10177) -> 0 | M88: =SUMIF(Data!$N$2:$N$10177,$C88,Data!$P$2:$P$10177) -> 0 | N88: =SUMIF(Data!$Q$2:$R$10177,$C88,Data!$S$2:$S$10177) -> 0 | O88: =SUMIF(Data!$T$2:$U$10177,$C88,Data!$V$2:$V$10177) -> 0 | P88: =SUMIF(Data!$W$2:$W$10177,$C88,Data!$Y$2:$Y$10177) -> 0
C89: 9900000387 | D89: 387 | E89: RACK OF STEEL | F89: METAL | G89: 125 | H89: 0 | I89: 0 | J89: =SUMIF(Data!$H$2:$H$10177,$C89,Data!$D$2:$D$10177) -> 0 | K89: =SUMIF(Data!$H$2:$H$10177,$C89,Data!$J$2:$J$10177) -> 0 | L89: =SUMIF(Data!$K$2:$K$10177,$C89,Data!$M$2:$M$10177) -> 0 | M89: =SUMIF(Data!$N$2:$N$10177,$C89,Data!$P$2:$P$10177) -> 0 | N89: =SUMIF(Data!$Q$2:$R$10177,$C89,Data!$S$2:$S$10177) -> 0 | O89: =SUMIF(Data!$T$2:$U$10177,$C89,Data!$V$2:$V$10177) -> 0 | P89: =SUMIF(Data!$W$2:$W$10177,$C89,Data!$Y$2:$Y$10177) -> 0
C90: 9900000394 | D90: 394 | E90: RACK OF STEEL | F90: METAL | G90: 220 | H90: 0 | I90: 0 | J90: =SUMIF(Data!$H$2:$H$10177,$C90,Data!$D$2:$D$10177) -> 0 | K90: =SUMIF(Data!$H$2:$H$10177,$C90,Data!$J$2:$J$10177) -> 0 | L90: =SUMIF(Data!$K$2:$K$10177,$C90,Data!$M$2:$M$10177) -> 0 | M90: =SUMIF(Data!$N$2:$N$10177,$C90,Data!$P$2:$P$10177) -> 0 | N90: =SUMIF(Data!$Q$2:$R$10177,$C90,Data!$S$2:$S$10177) -> 0 | O90: =SUMIF(Data!$T$2:$U$10177,$C90,Data!$V$2:$V$10177) -> 0 | P90: =SUMIF(Data!$W$2:$W$10177,$C90,Data!$Y$2:$Y$10177) -> 0
C91: 9900000399 | D91: 399 | E91: SPACER OF PLASTIC / FOAM | F91: PLASTIC | G91: 0.7 | H91: 0 | I91: 0 | J91: =SUMIF(Data!$H$2:$H$10177,$C91,Data!$D$2:$D$10177) -> 0 | K91: =SUMIF(Data!$H$2:$H$10177,$C91,Data!$J$2:$J$10177) -> 0 | L91: =SUMIF(Data!$K$2:$K$10177,$C91,Data!$M$2:$M$10177) -> 0 | M91: =SUMIF(Data!$N$2:$N$10177,$C91,Data!$P$2:$P$10177) -> 0 | N91: =SUMIF(Data!$Q$2:$R$10177,$C91,Data!$S$2:$S$10177) -> 0 | O91: =SUMIF(Data!$T$2:$U$10177,$C91,Data!$V$2:$V$10177) -> 0 | P91: =SUMIF(Data!$W$2:$W$10177,$C91,Data!$Y$2:$Y$10177) -> 0
C92: 9900000400 | D92: 400 | E92: COMBITAINER | F92: METAL | G92: 117.9 | H92: 0 | I92: 0 | J92: =SUMIF(Data!$H$2:$H$10177,$C92,Data!$D$2:$D$10177) -> 0 | K92: =SUMIF(Data!$H$2:$H$10177,$C92,Data!$J$2:$J$10177) -> 0 | L92: =SUMIF(Data!$K$2:$K$10177,$C92,Data!$M$2:$M$10177) -> 0 | M92: =SUMIF(Data!$N$2:$N$10177,$C92,Data!$P$2:$P$10177) -> 0 | N92: =SUMIF(Data!$Q$2:$R$10177,$C92,Data!$S$2:$S$10177) -> 0 | O92: =SUMIF(Data!$T$2:$U$10177,$C92,Data!$V$2:$V$10177) -> 0 | P92: =SUMIF(Data!$W$2:$W$10177,$C92,Data!$Y$2:$Y$10177) -> 0
C93: 9900000402 | D93: 402 | E93: PALLET OF WOOD | F93: WOOD | G93: 26 | H93: 0 | I93: 0 | J93: =SUMIF(Data!$H$2:$H$10177,$C93,Data!$D$2:$D$10177) -> 0 | K93: =SUMIF(Data!$H$2:$H$10177,$C93,Data!$J$2:$J$10177) -> 0 | L93: =SUMIF(Data!$K$2:$K$10177,$C93,Data!$M$2:$M$10177) -> 0 | M93: =SUMIF(Data!$N$2:$N$10177,$C93,Data!$P$2:$P$10177) -> 0 | N93: =SUMIF(Data!$Q$2:$R$10177,$C93,Data!$S$2:$S$10177) -> 0 | O93: =SUMIF(Data!$T$2:$U$10177,$C93,Data!$V$2:$V$10177) -> 0 | P93: =SUMIF(Data!$W$2:$W$10177,$C93,Data!$Y$2:$Y$10177) -> 0
C94: 9900000403 | D94: 403 | E94: FIXING SPACER OF PLASTIC | F94: PLASTIC | G94: 10 | H94: 0 | I94: 0 | J94: =SUMIF(Data!$H$2:$H$10177,$C94,Data!$D$2:$D$10177) -> 0 | K94: =SUMIF(Data!$H$2:$H$10177,$C94,Data!$J$2:$J$10177) -> 0 | L94: =SUMIF(Data!$K$2:$K$10177,$C94,Data!$M$2:$M$10177) -> 0 | M94: =SUMIF(Data!$N$2:$N$10177,$C94,Data!$P$2:$P$10177) -> 0 | N94: =SUMIF(Data!$Q$2:$R$10177,$C94,Data!$S$2:$S$10177) -> 0 | O94: =SUMIF(Data!$T$2:$U$10177,$C94,Data!$V$2:$V$10177) -> 0 | P94: =SUMIF(Data!$W$2:$W$10177,$C94,Data!$Y$2:$Y$10177) -> 0
C95: 9900000412 | D95: =C95-9900000000 -> 412 | E95: Combitainer | F95: METAL | G95: 91 | H95: 0 | I95: 0 | J95: =SUMIF(Data!$H$2:$H$10177,$C95,Data!$D$2:$D$10177) -> 0 | K95: =SUMIF(Data!$H$2:$H$10177,$C95,Data!$J$2:$J$10177) -> 0 | L95: =SUMIF(Data!$K$2:$K$10177,$C95,Data!$M$2:$M$10177) -> 0 | M95: =SUMIF(Data!$N$2:$N$10177,$C95,Data!$P$2:$P$10177) -> 0 | N95: =SUMIF(Data!$Q$2:$R$10177,$C95,Data!$S$2:$S$10177) -> 0 | O95: =SUMIF(Data!$T$2:$U$10177,$C95,Data!$V$2:$V$10177) -> 0 | P95: =SUMIF(Data!$W$2:$W$10177,$C95,Data!$Y$2:$Y$10177) -> 0
C96: 9900000413 | D96: 413 | E96: RACK OF STEEL | F96: METAL | G96: 135 | H96: 0 | I96: 0 | J96: =SUMIF(Data!$H$2:$H$10177,$C96,Data!$D$2:$D$10177) -> 0 | K96: =SUMIF(Data!$H$2:$H$10177,$C96,Data!$J$2:$J$10177) -> 0 | L96: =SUMIF(Data!$K$2:$K$10177,$C96,Data!$M$2:$M$10177) -> 0 | M96: =SUMIF(Data!$N$2:$N$10177,$C96,Data!$P$2:$P$10177) -> 0 | N96: =SUMIF(Data!$Q$2:$R$10177,$C96,Data!$S$2:$S$10177) -> 0 | O96: =SUMIF(Data!$T$2:$U$10177,$C96,Data!$V$2:$V$10177) -> 0 | P96: =SUMIF(Data!$W$2:$W$10177,$C96,Data!$Y$2:$Y$10177) -> 0
C97: 9900000415 | D97: 415 | E97: RACK OF STEEL | F97: METAL | G97: 333 | H97: 0 | I97: 0 | J97: =SUMIF(Data!$H$2:$H$10177,$C97,Data!$D$2:$D$10177) -> 0 | K97: =SUMIF(Data!$H$2:$H$10177,$C97,Data!$J$2:$J$10177) -> 0 | L97: =SUMIF(Data!$K$2:$K$10177,$C97,Data!$M$2:$M$10177) -> 0 | M97: =SUMIF(Data!$N$2:$N$10177,$C97,Data!$P$2:$P$10177) -> 0 | N97: =SUMIF(Data!$Q$2:$R$10177,$C97,Data!$S$2:$S$10177) -> 0 | O97: =SUMIF(Data!$T$2:$U$10177,$C97,Data!$V$2:$V$10177) -> 0 | P97: =SUMIF(Data!$W$2:$W$10177,$C97,Data!$Y$2:$Y$10177) -> 0
C98: 9900000416 | D98: 416 | E98: FIXING SPACER OF PLASTIC | F98: PLASTIC | G98: 10 | H98: 0 | I98: 0 | J98: =SUMIF(Data!$H$2:$H$10177,$C98,Data!$D$2:$D$10177) -> 0 | K98: =SUMIF(Data!$H$2:$H$10177,$C98,Data!$J$2:$J$10177) -> 0 | L98: =SUMIF(Data!$K$2:$K$10177,$C98,Data!$M$2:$M$10177) -> 0 | M98: =SUMIF(Data!$N$2:$N$10177,$C98,Data!$P$2:$P$10177) -> 0 | N98: =SUMIF(Data!$Q$2:$R$10177,$C98,Data!$S$2:$S$10177) -> 0 | O98: =SUMIF(Data!$T$2:$U$10177,$C98,Data!$V$2:$V$10177) -> 0 | P98: =SUMIF(Data!$W$2:$W$10177,$C98,Data!$Y$2:$Y$10177) -> 0
C99: 9900000419 | D99: 419 | E99: COMBITAINER SIDES (Set of 4 = 2 short, 2 long) | F99: METAL | G99: 55 | H99: 0 | I99: 0 | J99: =SUMIF(Data!$H$2:$H$10177,$C99,Data!$D$2:$D$10177) -> 0 | K99: =SUMIF(Data!$H$2:$H$10177,$C99,Data!$J$2:$J$10177) -> 0 | L99: =SUMIF(Data!$K$2:$K$10177,$C99,Data!$M$2:$M$10177) -> 0 | M99: =SUMIF(Data!$N$2:$N$10177,$C99,Data!$P$2:$P$10177) -> 0 | N99: =SUMIF(Data!$Q$2:$R$10177,$C99,Data!$S$2:$S$10177) -> 0 | O99: =SUMIF(Data!$T$2:$U$10177,$C99,Data!$V$2:$V$10177) -> 0 | P99: =SUMIF(Data!$W$2:$W$10177,$C99,Data!$Y$2:$Y$10177) -> 0
C100: 9900000421 | D100: 421 | E100: BOX OF PLASTIC | F100: PLASTIC | G100: 0.96 | H100: 0 | I100: 0 | J100: =SUMIF(Data!$H$2:$H$10177,$C100,Data!$D$2:$D$10177) -> 0 | K100: =SUMIF(Data!$H$2:$H$10177,$C100,Data!$J$2:$J$10177) -> 0 | L100: =SUMIF(Data!$K$2:$K$10177,$C100,Data!$M$2:$M$10177) -> 0 | M100: =SUMIF(Data!$N$2:$N$10177,$C100,Data!$P$2:$P$10177) -> 0 | N100: =SUMIF(Data!$Q$2:$R$10177,$C100,Data!$S$2:$S$10177) -> 0 | O100: =SUMIF(Data!$T$2:$U$10177,$C100,Data!$V$2:$V$10177) -> 0 | P100: =SUMIF(Data!$W$2:$W$10177,$C100,Data!$Y$2:$Y$10177) -> 0
C101: 9900000459 | D101: 459 | E101: SPACER OF CELL.PLASTIC | F101: PLASTIC | G101: 0.1 | H101: 0 | I101: 0 | J101: =SUMIF(Data!$H$2:$H$10177,$C101,Data!$D$2:$D$10177) -> 0 | K101: =SUMIF(Data!$H$2:$H$10177,$C101,Data!$J$2:$J$10177) -> 0 | L101: =SUMIF(Data!$K$2:$K$10177,$C101,Data!$M$2:$M$10177) -> 0 | M101: =SUMIF(Data!$N$2:$N$10177,$C101,Data!$P$2:$P$10177) -> 0 | N101: =SUMIF(Data!$Q$2:$R$10177,$C101,Data!$S$2:$S$10177) -> 0 | O101: =SUMIF(Data!$T$2:$U$10177,$C101,Data!$V$2:$V$10177) -> 0 | P101: =SUMIF(Data!$W$2:$W$10177,$C101,Data!$Y$2:$Y$10177) -> 0
C102: 9900000460 | D102: 460 | E102: BOX OF PLASTIC (ESD) | F102: PLASTIC | G102: 2.16 | H102: 0 | I102: 0 | J102: =SUMIF(Data!$H$2:$H$10177,$C102,Data!$D$2:$D$10177) -> 0 | K102: =SUMIF(Data!$H$2:$H$10177,$C102,Data!$J$2:$J$10177) -> 0 | L102: =SUMIF(Data!$K$2:$K$10177,$C102,Data!$M$2:$M$10177) -> 0 | M102: =SUMIF(Data!$N$2:$N$10177,$C102,Data!$P$2:$P$10177) -> 0 | N102: =SUMIF(Data!$Q$2:$R$10177,$C102,Data!$S$2:$S$10177) -> 0 | O102: =SUMIF(Data!$T$2:$U$10177,$C102,Data!$V$2:$V$10177) -> 0 | P102: =SUMIF(Data!$W$2:$W$10177,$C102,Data!$Y$2:$Y$10177) -> 0
C103: 9900000461 | D103: 461 | E103: LID OF PLASTIC (ESD) | F103: PLASTIC | G103: 0.97 | H103: 0 | I103: 0 | J103: =SUMIF(Data!$H$2:$H$10177,$C103,Data!$D$2:$D$10177) -> 0 | K103: =SUMIF(Data!$H$2:$H$10177,$C103,Data!$J$2:$J$10177) -> 0 | L103: =SUMIF(Data!$K$2:$K$10177,$C103,Data!$M$2:$M$10177) -> 0 | M103: =SUMIF(Data!$N$2:$N$10177,$C103,Data!$P$2:$P$10177) -> 0 | N103: =SUMIF(Data!$Q$2:$R$10177,$C103,Data!$S$2:$S$10177) -> 0 | O103: =SUMIF(Data!$T$2:$U$10177,$C103,Data!$V$2:$V$10177) -> 0 | P103: =SUMIF(Data!$W$2:$W$10177,$C103,Data!$Y$2:$Y$10177) -> 0
C104: 9900000462 | D104: 462 | E104: BOX OF PLASTIC (ESD) | F104: PLASTIC | G104: 1.07 | H104: 0 | I104: 0 | J104: =SUMIF(Data!$H$2:$H$10177,$C104,Data!$D$2:$D$10177) -> 0 | K104: =SUMIF(Data!$H$2:$H$10177,$C104,Data!$J$2:$J$10177) -> 0 | L104: =SUMIF(Data!$K$2:$K$10177,$C104,Data!$M$2:$M$10177) -> 0 | M104: =SUMIF(Data!$N$2:$N$10177,$C104,Data!$P$2:$P$10177) -> 0 | N104: =SUMIF(Data!$Q$2:$R$10177,$C104,Data!$S$2:$S$10177) -> 0 | O104: =SUMIF(Data!$T$2:$U$10177,$C104,Data!$V$2:$V$10177) -> 0 | P104: =SUMIF(Data!$W$2:$W$10177,$C104,Data!$Y$2:$Y$10177) -> 0
C105: 9900000463 | D105: 463 | E105: LID OF PLASTIC (ESD) | F105: PLASTIC | G105: 0.45 | H105: 0 | I105: 0 | J105: =SUMIF(Data!$H$2:$H$10177,$C105,Data!$D$2:$D$10177) -> 0 | K105: =SUMIF(Data!$H$2:$H$10177,$C105,Data!$J$2:$J$10177) -> 0 | L105: =SUMIF(Data!$K$2:$K$10177,$C105,Data!$M$2:$M$10177) -> 0 | M105: =SUMIF(Data!$N$2:$N$10177,$C105,Data!$P$2:$P$10177) -> 0 | N105: =SUMIF(Data!$Q$2:$R$10177,$C105,Data!$S$2:$S$10177) -> 0 | O105: =SUMIF(Data!$T$2:$U$10177,$C105,Data!$V$2:$V$10177) -> 0 | P105: =SUMIF(Data!$W$2:$W$10177,$C105,Data!$Y$2:$Y$10177) -> 0
C106: 9900000464 | D106: 464 | E106: SLEEVE OF PLASTIC (ESD) | F106: PLASTIC | G106: 4.15 | H106: 0 | I106: 0 | J106: =SUMIF(Data!$H$2:$H$10177,$C106,Data!$D$2:$D$10177) -> 0 | K106: =SUMIF(Data!$H$2:$H$10177,$C106,Data!$J$2:$J$10177) -> 0 | L106: =SUMIF(Data!$K$2:$K$10177,$C106,Data!$M$2:$M$10177) -> 0 | M106: =SUMIF(Data!$N$2:$N$10177,$C106,Data!$P$2:$P$10177) -> 0 | N106: =SUMIF(Data!$Q$2:$R$10177,$C106,Data!$S$2:$S$10177) -> 0 | O106: =SUMIF(Data!$T$2:$U$10177,$C106,Data!$V$2:$V$10177) -> 0 | P106: =SUMIF(Data!$W$2:$W$10177,$C106,Data!$Y$2:$Y$10177) -> 0
C107: 9900000465 | D107: 465 | E107: PALLET OF PLASTIC (ESD) | F107: PLASTIC | G107: 10 | H107: 0 | I107: 0 | J107: =SUMIF(Data!$H$2:$H$10177,$C107,Data!$D$2:$D$10177) -> 0 | K107: =SUMIF(Data!$H$2:$H$10177,$C107,Data!$J$2:$J$10177) -> 0 | L107: =SUMIF(Data!$K$2:$K$10177,$C107,Data!$M$2:$M$10177) -> 0 | M107: =SUMIF(Data!$N$2:$N$10177,$C107,Data!$P$2:$P$10177) -> 0 | N107: =SUMIF(Data!$Q$2:$R$10177,$C107,Data!$S$2:$S$10177) -> 0 | O107: =SUMIF(Data!$T$2:$U$10177,$C107,Data!$V$2:$V$10177) -> 0 | P107: =SUMIF(Data!$W$2:$W$10177,$C107,Data!$Y$2:$Y$10177) -> 0
C108: 9900000466 | D108: 466 | E108: LID OF PLASTIC (ESD) | F108: PLASTIC | G108: 5 | H108: 0 | I108: 0 | J108: =SUMIF(Data!$H$2:$H$10177,$C108,Data!$D$2:$D$10177) -> 0 | K108: =SUMIF(Data!$H$2:$H$10177,$C108,Data!$J$2:$J$10177) -> 0 | L108: =SUMIF(Data!$K$2:$K$10177,$C108,Data!$M$2:$M$10177) -> 0 | M108: =SUMIF(Data!$N$2:$N$10177,$C108,Data!$P$2:$P$10177) -> 0 | N108: =SUMIF(Data!$Q$2:$R$10177,$C108,Data!$S$2:$S$10177) -> 0 | O108: =SUMIF(Data!$T$2:$U$10177,$C108,Data!$V$2:$V$10177) -> 0 | P108: =SUMIF(Data!$W$2:$W$10177,$C108,Data!$Y$2:$Y$10177) -> 0
C109: 9900000467 | D109: 467 | E109: SLEEVE OF PLASTIC | F109: PLASTIC | G109: 13.3 | H109: 0 | I109: 0 | J109: =SUMIF(Data!$H$2:$H$10177,$C109,Data!$D$2:$D$10177) -> 0 | K109: =SUMIF(Data!$H$2:$H$10177,$C109,Data!$J$2:$J$10177) -> 0 | L109: =SUMIF(Data!$K$2:$K$10177,$C109,Data!$M$2:$M$10177) -> 0 | M109: =SUMIF(Data!$N$2:$N$10177,$C109,Data!$P$2:$P$10177) -> 0 | N109: =SUMIF(Data!$Q$2:$R$10177,$C109,Data!$S$2:$S$10177) -> 0 | O109: =SUMIF(Data!$T$2:$U$10177,$C109,Data!$V$2:$V$10177) -> 0 | P109: =SUMIF(Data!$W$2:$W$10177,$C109,Data!$Y$2:$Y$10177) -> 0
C110: 9900000468 | D110: 468 | E110: PALLET OF PLASTIC | F110: PLASTIC | G110: 41.8 | H110: 0 | I110: 0 | J110: =SUMIF(Data!$H$2:$H$10177,$C110,Data!$D$2:$D$10177) -> 0 | K110: =SUMIF(Data!$H$2:$H$10177,$C110,Data!$J$2:$J$10177) -> 0 | L110: =SUMIF(Data!$K$2:$K$10177,$C110,Data!$M$2:$M$10177) -> 0 | M110: =SUMIF(Data!$N$2:$N$10177,$C110,Data!$P$2:$P$10177) -> 0 | N110: =SUMIF(Data!$Q$2:$R$10177,$C110,Data!$S$2:$S$10177) -> 0 | O110: =SUMIF(Data!$T$2:$U$10177,$C110,Data!$V$2:$V$10177) -> 0 | P110: =SUMIF(Data!$W$2:$W$10177,$C110,Data!$Y$2:$Y$10177) -> 0
C111: 9900000469 | D111: 469 | E111: LID OF PLASTIC | F111: PLASTIC | G111: 17.9 | H111: 0 | I111: 0 | J111: =SUMIF(Data!$H$2:$H$10177,$C111,Data!$D$2:$D$10177) -> 0 | K111: =SUMIF(Data!$H$2:$H$10177,$C111,Data!$J$2:$J$10177) -> 0 | L111: =SUMIF(Data!$K$2:$K$10177,$C111,Data!$M$2:$M$10177) -> 0 | M111: =SUMIF(Data!$N$2:$N$10177,$C111,Data!$P$2:$P$10177) -> 0 | N111: =SUMIF(Data!$Q$2:$R$10177,$C111,Data!$S$2:$S$10177) -> 0 | O111: =SUMIF(Data!$T$2:$U$10177,$C111,Data!$V$2:$V$10177) -> 0 | P111: =SUMIF(Data!$W$2:$W$10177,$C111,Data!$Y$2:$Y$10177) -> 0
C112: 9900000480 | D112: 480 | E112: COMBITAINER OF PLASTIC/STEEL | F112: PLASTIC | G112: 14.5 | H112: 0 | I112: 0 | J112: =SUMIF(Data!$H$2:$H$10177,$C112,Data!$D$2:$D$10177) -> 0 | K112: =SUMIF(Data!$H$2:$H$10177,$C112,Data!$J$2:$J$10177) -> 0 | L112: =SUMIF(Data!$K$2:$K$10177,$C112,Data!$M$2:$M$10177) -> 0 | M112: =SUMIF(Data!$N$2:$N$10177,$C112,Data!$P$2:$P$10177) -> 0 | N112: =SUMIF(Data!$Q$2:$R$10177,$C112,Data!$S$2:$S$10177) -> 0 | O112: =SUMIF(Data!$T$2:$U$10177,$C112,Data!$V$2:$V$10177) -> 0 | P112: =SUMIF(Data!$W$2:$W$10177,$C112,Data!$Y$2:$Y$10177) -> 0
C113: 9900000482 | D113: 482 | E113: SPACER OF FOAMED PLASTIC | F113: PLASTIC | G113: 1.21 | H113: =G113*I113 -> 0 | I113: =SUM(J113:P113) -> 0 | J113: =SUMIF(Data!$H$2:$H$10177,$C113,Data!$D$2:$D$10177) -> 0 | K113: =SUMIF(Data!$H$2:$H$10177,$C113,Data!$J$2:$J$10177) -> 0 | L113: =SUMIF(Data!$K$2:$K$10177,$C113,Data!$M$2:$M$10177) -> 0 | M113: =SUMIF(Data!$N$2:$N$10177,$C113,Data!$P$2:$P$10177) -> 0 | N113: =SUMIF(Data!$Q$2:$R$10177,$C113,Data!$S$2:$S$10177) -> 0 | O113: =SUMIF(Data!$T$2:$U$10177,$C113,Data!$V$2:$V$10177) -> 0 | P113: =SUMIF(Data!$W$2:$W$10177,$C113,Data!$Y$2:$Y$10177) -> 0
C114: 9900000490 | D114: 490 | E114: RACK OF STEEL | F114: METAL | G114: 150 | H114: 0 | I114: 0 | J114: =SUMIF(Data!$H$2:$H$10177,$C114,Data!$D$2:$D$10177) -> 0 | K114: =SUMIF(Data!$H$2:$H$10177,$C114,Data!$J$2:$J$10177) -> 0 | L114: =SUMIF(Data!$K$2:$K$10177,$C114,Data!$M$2:$M$10177) -> 0 | M114: =SUMIF(Data!$N$2:$N$10177,$C114,Data!$P$2:$P$10177) -> 0 | N114: =SUMIF(Data!$Q$2:$R$10177,$C114,Data!$S$2:$S$10177) -> 0 | O114: =SUMIF(Data!$T$2:$U$10177,$C114,Data!$V$2:$V$10177) -> 0 | P114: =SUMIF(Data!$W$2:$W$10177,$C114,Data!$Y$2:$Y$10177) -> 0
C115: 9900000500 | D115: 500 | E115: BOX OF PLASTIC | F115: PLASTIC | G115: 0.446 | H115: 0 | I115: 0 | J115: =SUMIF(Data!$H$2:$H$10177,$C115,Data!$D$2:$D$10177) -> 0 | K115: =SUMIF(Data!$H$2:$H$10177,$C115,Data!$J$2:$J$10177) -> 0 | L115: =SUMIF(Data!$K$2:$K$10177,$C115,Data!$M$2:$M$10177) -> 0 | M115: =SUMIF(Data!$N$2:$N$10177,$C115,Data!$P$2:$P$10177) -> 0 | N115: =SUMIF(Data!$Q$2:$R$10177,$C115,Data!$S$2:$S$10177) -> 0 | O115: =SUMIF(Data!$T$2:$U$10177,$C115,Data!$V$2:$V$10177) -> 0 | P115: =SUMIF(Data!$W$2:$W$10177,$C115,Data!$Y$2:$Y$10177) -> 0
C116: 9900000501 | D116: 501 | E116: LID OF PLASTIC (One way) | F116: PLASTIC | G116: 0.02 | H116: 0 | I116: 0 | J116: =SUMIF(Data!$H$2:$H$10177,$C116,Data!$D$2:$D$10177) -> 0 | K116: =SUMIF(Data!$H$2:$H$10177,$C116,Data!$J$2:$J$10177) -> 0 | L116: =SUMIF(Data!$K$2:$K$10177,$C116,Data!$M$2:$M$10177) -> 0 | M116: =SUMIF(Data!$N$2:$N$10177,$C116,Data!$P$2:$P$10177) -> 0 | N116: =SUMIF(Data!$Q$2:$R$10177,$C116,Data!$S$2:$S$10177) -> 0 | O116: =SUMIF(Data!$T$2:$U$10177,$C116,Data!$V$2:$V$10177) -> 0 | P116: =SUMIF(Data!$W$2:$W$10177,$C116,Data!$Y$2:$Y$10177) -> 0
C117: 9900000520 | D117: 520 | E117: FOIL OF PLASTIC | F117: PLASTIC | G117: 0.06 | H117: 0 | I117: 0 | J117: =SUMIF(Data!$H$2:$H$10177,$C117,Data!$D$2:$D$10177) -> 0 | K117: =SUMIF(Data!$H$2:$H$10177,$C117,Data!$J$2:$J$10177) -> 0 | L117: =SUMIF(Data!$K$2:$K$10177,$C117,Data!$M$2:$M$10177) -> 0 | M117: =SUMIF(Data!$N$2:$N$10177,$C117,Data!$P$2:$P$10177) -> 0 | N117: =SUMIF(Data!$Q$2:$R$10177,$C117,Data!$S$2:$S$10177) -> 0 | O117: =SUMIF(Data!$T$2:$U$10177,$C117,Data!$V$2:$V$10177) -> 0 | P117: =SUMIF(Data!$W$2:$W$10177,$C117,Data!$Y$2:$Y$10177) -> 0
C118: 9900000556 | D118: 556 | E118: SPACER OF FOAMED PLASTIC | F118: PLASTIC | G118: 0.07 | H118: 0 | I118: 0 | J118: =SUMIF(Data!$H$2:$H$10177,$C118,Data!$D$2:$D$10177) -> 0 | K118: =SUMIF(Data!$H$2:$H$10177,$C118,Data!$J$2:$J$10177) -> 0 | L118: =SUMIF(Data!$K$2:$K$10177,$C118,Data!$M$2:$M$10177) -> 0 | M118: =SUMIF(Data!$N$2:$N$10177,$C118,Data!$P$2:$P$10177) -> 0 | N118: =SUMIF(Data!$Q$2:$R$10177,$C118,Data!$S$2:$S$10177) -> 0 | O118: =SUMIF(Data!$T$2:$U$10177,$C118,Data!$V$2:$V$10177) -> 0 | P118: =SUMIF(Data!$W$2:$W$10177,$C118,Data!$Y$2:$Y$10177) -> 0
C119: 9900000575 | D119: 575 | E119: BATTENS OF WOOD | F119: WOOD | G119: 1.258 | H119: 0 | I119: 0 | J119: =SUMIF(Data!$H$2:$H$10177,$C119,Data!$D$2:$D$10177) -> 0 | K119: =SUMIF(Data!$H$2:$H$10177,$C119,Data!$J$2:$J$10177) -> 0 | L119: =SUMIF(Data!$K$2:$K$10177,$C119,Data!$M$2:$M$10177) -> 0 | M119: =SUMIF(Data!$N$2:$N$10177,$C119,Data!$P$2:$P$10177) -> 0 | N119: =SUMIF(Data!$Q$2:$R$10177,$C119,Data!$S$2:$S$10177) -> 0 | O119: =SUMIF(Data!$T$2:$U$10177,$C119,Data!$V$2:$V$10177) -> 0 | P119: =SUMIF(Data!$W$2:$W$10177,$C119,Data!$Y$2:$Y$10177) -> 0
C120: 9900000576 | D120: 576 | E120: BATTEN OF WOOD | F120: WOOD | G120: 2.1 | H120: 0 | I120: 0 | J120: =SUMIF(Data!$H$2:$H$10177,$C120,Data!$D$2:$D$10177) -> 0 | K120: =SUMIF(Data!$H$2:$H$10177,$C120,Data!$J$2:$J$10177) -> 0 | L120: =SUMIF(Data!$K$2:$K$10177,$C120,Data!$M$2:$M$10177) -> 0 | M120: =SUMIF(Data!$N$2:$N$10177,$C120,Data!$P$2:$P$10177) -> 0 | N120: =SUMIF(Data!$Q$2:$R$10177,$C120,Data!$S$2:$S$10177) -> 0 | O120: =SUMIF(Data!$T$2:$U$10177,$C120,Data!$V$2:$V$10177) -> 0 | P120: =SUMIF(Data!$W$2:$W$10177,$C120,Data!$Y$2:$Y$10177) -> 0
C121: 9900000577 | D121: 577 | E121: BATTEN OF WOOD | F121: WOOD | G121: 2 | H121: 0 | I121: 0 | J121: =SUMIF(Data!$H$2:$H$10177,$C121,Data!$D$2:$D$10177) -> 0 | K121: =SUMIF(Data!$H$2:$H$10177,$C121,Data!$J$2:$J$10177) -> 0 | L121: =SUMIF(Data!$K$2:$K$10177,$C121,Data!$M$2:$M$10177) -> 0 | M121: =SUMIF(Data!$N$2:$N$10177,$C121,Data!$P$2:$P$10177) -> 0 | N121: =SUMIF(Data!$Q$2:$R$10177,$C121,Data!$S$2:$S$10177) -> 0 | O121: =SUMIF(Data!$T$2:$U$10177,$C121,Data!$V$2:$V$10177) -> 0 | P121: =SUMIF(Data!$W$2:$W$10177,$C121,Data!$Y$2:$Y$10177) -> 0
C122: 9900000579 | D122: =C122-9900000000 -> 579 | E122: BATTEN OF WOOD | F122: WOOD | G122: 1.2 | H122: =G122*I122 -> 0 | I122: =SUM(J122:P122) -> 0 | J122: =SUMIF(Data!$H$2:$H$10177,$C122,Data!$D$2:$D$10177) -> 0 | K122: =SUMIF(Data!$H$2:$H$10177,$C122,Data!$J$2:$J$10177) -> 0 | L122: =SUMIF(Data!$K$2:$K$10177,$C122,Data!$M$2:$M$10177) -> 0 | M122: =SUMIF(Data!$N$2:$N$10177,$C122,Data!$P$2:$P$10177) -> 0 | N122: =SUMIF(Data!$Q$2:$R$10177,$C122,Data!$S$2:$S$10177) -> 0 | O122: =SUMIF(Data!$T$2:$U$10177,$C122,Data!$V$2:$V$10177) -> 0 | P122: =SUMIF(Data!$W$2:$W$10177,$C122,Data!$Y$2:$Y$10177) -> 0
C123: 9900000580 | D123: =C123-9900000000 -> 580 | E123: BATTEN OF WOOD | F123: WOOD | G123: 2.52 | H123: =G123*I123 -> 0 | I123: =SUM(J123:P123) -> 0 | J123: =SUMIF(Data!$H$2:$H$10177,$C123,Data!$D$2:$D$10177) -> 0 | K123: =SUMIF(Data!$H$2:$H$10177,$C123,Data!$J$2:$J$10177) -> 0 | L123: =SUMIF(Data!$K$2:$K$10177,$C123,Data!$M$2:$M$10177) -> 0 | M123: =SUMIF(Data!$N$2:$N$10177,$C123,Data!$P$2:$P$10177) -> 0 | N123: =SUMIF(Data!$Q$2:$R$10177,$C123,Data!$S$2:$S$10177) -> 0 | O123: =SUMIF(Data!$T$2:$U$10177,$C123,Data!$V$2:$V$10177) -> 0 | P123: =SUMIF(Data!$W$2:$W$10177,$C123,Data!$Y$2:$Y$10177) -> 0
C124: 9900000586 | D124: 586 | E124: RACK OF STEEL | F124: METAL | G124: 115 | H124: 0 | I124: 0 | J124: =SUMIF(Data!$H$2:$H$10177,$C124,Data!$D$2:$D$10177) -> 0 | K124: =SUMIF(Data!$H$2:$H$10177,$C124,Data!$J$2:$J$10177) -> 0 | L124: =SUMIF(Data!$K$2:$K$10177,$C124,Data!$M$2:$M$10177) -> 0 | M124: =SUMIF(Data!$N$2:$N$10177,$C124,Data!$P$2:$P$10177) -> 0 | N124: =SUMIF(Data!$Q$2:$R$10177,$C124,Data!$S$2:$S$10177) -> 0 | O124: =SUMIF(Data!$T$2:$U$10177,$C124,Data!$V$2:$V$10177) -> 0 | P124: =SUMIF(Data!$W$2:$W$10177,$C124,Data!$Y$2:$Y$10177) -> 0
C125: 9900000595 | D125: 595 | E125: BATTEN OF WOOD | F125: WOOD | G125: 2.916 | H125: 0 | I125: 0 | J125: =SUMIF(Data!$H$2:$H$10177,$C125,Data!$D$2:$D$10177) -> 0 | K125: =SUMIF(Data!$H$2:$H$10177,$C125,Data!$J$2:$J$10177) -> 0 | L125: =SUMIF(Data!$K$2:$K$10177,$C125,Data!$M$2:$M$10177) -> 0 | M125: =SUMIF(Data!$N$2:$N$10177,$C125,Data!$P$2:$P$10177) -> 0 | N125: =SUMIF(Data!$Q$2:$R$10177,$C125,Data!$S$2:$S$10177) -> 0 | O125: =SUMIF(Data!$T$2:$U$10177,$C125,Data!$V$2:$V$10177) -> 0 | P125: =SUMIF(Data!$W$2:$W$10177,$C125,Data!$Y$2:$Y$10177) -> 0
C126: 9900000600 | D126: 600 | E126: BOX OF PLASTIC | F126: PLASTIC | G126: 0.772 | H126: 0 | I126: 0 | J126: =SUMIF(Data!$H$2:$H$10177,$C126,Data!$D$2:$D$10177) -> 0 | K126: =SUMIF(Data!$H$2:$H$10177,$C126,Data!$J$2:$J$10177) -> 0 | L126: =SUMIF(Data!$K$2:$K$10177,$C126,Data!$M$2:$M$10177) -> 0 | M126: =SUMIF(Data!$N$2:$N$10177,$C126,Data!$P$2:$P$10177) -> 0 | N126: =SUMIF(Data!$Q$2:$R$10177,$C126,Data!$S$2:$S$10177) -> 0 | O126: =SUMIF(Data!$T$2:$U$10177,$C126,Data!$V$2:$V$10177) -> 0 | P126: =SUMIF(Data!$W$2:$W$10177,$C126,Data!$Y$2:$Y$10177) -> 0
C127: 9900000601 | D127: 601 | E127: LID OF PLASTIC | F127: PLASTIC | G127: 0.05 | H127: 0 | I127: 0 | J127: =SUMIF(Data!$H$2:$H$10177,$C127,Data!$D$2:$D$10177) -> 0 | K127: =SUMIF(Data!$H$2:$H$10177,$C127,Data!$J$2:$J$10177) -> 0 | L127: =SUMIF(Data!$K$2:$K$10177,$C127,Data!$M$2:$M$10177) -> 0 | M127: =SUMIF(Data!$N$2:$N$10177,$C127,Data!$P$2:$P$10177) -> 0 | N127: =SUMIF(Data!$Q$2:$R$10177,$C127,Data!$S$2:$S$10177) -> 0 | O127: =SUMIF(Data!$T$2:$U$10177,$C127,Data!$V$2:$V$10177) -> 0 | P127: =SUMIF(Data!$W$2:$W$10177,$C127,Data!$Y$2:$Y$10177) -> 0
C128: 9900000647 | D128: 647 | E128: LID OF PLYWOOD AND WOOD FIBRE | F128: WOOD | G128: 6.4 | H128: 0 | I128: 0 | J128: =SUMIF(Data!$H$2:$H$10177,$C128,Data!$D$2:$D$10177) -> 0 | K128: =SUMIF(Data!$H$2:$H$10177,$C128,Data!$J$2:$J$10177) -> 0 | L128: =SUMIF(Data!$K$2:$K$10177,$C128,Data!$M$2:$M$10177) -> 0 | M128: =SUMIF(Data!$N$2:$N$10177,$C128,Data!$P$2:$P$10177) -> 0 | N128: =SUMIF(Data!$Q$2:$R$10177,$C128,Data!$S$2:$S$10177) -> 0 | O128: =SUMIF(Data!$T$2:$U$10177,$C128,Data!$V$2:$V$10177) -> 0 | P128: =SUMIF(Data!$W$2:$W$10177,$C128,Data!$Y$2:$Y$10177) -> 0
C129: 9900000662 | D129: 662 | E129: FIXING SPACER OF PLASTIC | F129: PLASTIC | G129: 3.25 | H129: 0 | I129: 0 | J129: =SUMIF(Data!$H$2:$H$10177,$C129,Data!$D$2:$D$10177) -> 0 | K129: =SUMIF(Data!$H$2:$H$10177,$C129,Data!$J$2:$J$10177) -> 0 | L129: =SUMIF(Data!$K$2:$K$10177,$C129,Data!$M$2:$M$10177) -> 0 | M129: =SUMIF(Data!$N$2:$N$10177,$C129,Data!$P$2:$P$10177) -> 0 | N129: =SUMIF(Data!$Q$2:$R$10177,$C129,Data!$S$2:$S$10177) -> 0 | O129: =SUMIF(Data!$T$2:$U$10177,$C129,Data!$V$2:$V$10177) -> 0 | P129: =SUMIF(Data!$W$2:$W$10177,$C129,Data!$Y$2:$Y$10177) -> 0
C130: 9900000670 | D130: 670 | E130: LID OF PLYWOOD | F130: WOOD | G130: 21.681 | H130: 0 | I130: 0 | J130: =SUMIF(Data!$H$2:$H$10177,$C130,Data!$D$2:$D$10177) -> 0 | K130: =SUMIF(Data!$H$2:$H$10177,$C130,Data!$J$2:$J$10177) -> 0 | L130: =SUMIF(Data!$K$2:$K$10177,$C130,Data!$M$2:$M$10177) -> 0 | M130: =SUMIF(Data!$N$2:$N$10177,$C130,Data!$P$2:$P$10177) -> 0 | N130: =SUMIF(Data!$Q$2:$R$10177,$C130,Data!$S$2:$S$10177) -> 0 | O130: =SUMIF(Data!$T$2:$U$10177,$C130,Data!$V$2:$V$10177) -> 0 | P130: =SUMIF(Data!$W$2:$W$10177,$C130,Data!$Y$2:$Y$10177) -> 0
C131: 9900000701 | D131: =C131-9900000000 -> 701 | E131: PALLET OF WOOD | F131: WOOD | G131: 40.548 | H131: 0 | I131: 0 | J131: =SUMIF(Data!$H$2:$H$10177,$C131,Data!$D$2:$D$10177) -> 0 | K131: =SUMIF(Data!$H$2:$H$10177,$C131,Data!$J$2:$J$10177) -> 0 | L131: =SUMIF(Data!$K$2:$K$10177,$C131,Data!$M$2:$M$10177) -> 0 | M131: =SUMIF(Data!$N$2:$N$10177,$C131,Data!$P$2:$P$10177) -> 0 | N131: =SUMIF(Data!$Q$2:$R$10177,$C131,Data!$S$2:$S$10177) -> 0 | O131: =SUMIF(Data!$T$2:$U$10177,$C131,Data!$V$2:$V$10177) -> 0 | P131: =SUMIF(Data!$W$2:$W$10177,$C131,Data!$Y$2:$Y$10177) -> 0
C132: 9900000702 | D132: =C132-9900000000 -> 702 | E132: FRAME OF WOOD | F132: WOOD | G132: 13.425 | H132: 0 | I132: 0 | J132: =SUMIF(Data!$H$2:$H$10177,$C132,Data!$D$2:$D$10177) -> 0 | K132: =SUMIF(Data!$H$2:$H$10177,$C132,Data!$J$2:$J$10177) -> 0 | L132: =SUMIF(Data!$K$2:$K$10177,$C132,Data!$M$2:$M$10177) -> 0 | M132: =SUMIF(Data!$N$2:$N$10177,$C132,Data!$P$2:$P$10177) -> 0 | N132: =SUMIF(Data!$Q$2:$R$10177,$C132,Data!$S$2:$S$10177) -> 0 | O132: =SUMIF(Data!$T$2:$U$10177,$C132,Data!$V$2:$V$10177) -> 0 | P132: =SUMIF(Data!$W$2:$W$10177,$C132,Data!$Y$2:$Y$10177) -> 0
C133: 9900000706 | D133: =C133-9900000000 -> 706 | E133: LID OF PLYWOOD | F133: WOOD | G133: 11.297 | H133: 0 | I133: 0 | J133: =SUMIF(Data!$H$2:$H$10177,$C133,Data!$D$2:$D$10177) -> 0 | K133: =SUMIF(Data!$H$2:$H$10177,$C133,Data!$J$2:$J$10177) -> 0 | L133: =SUMIF(Data!$K$2:$K$10177,$C133,Data!$M$2:$M$10177) -> 0 | M133: =SUMIF(Data!$N$2:$N$10177,$C133,Data!$P$2:$P$10177) -> 0 | N133: =SUMIF(Data!$Q$2:$R$10177,$C133,Data!$S$2:$S$10177) -> 0 | O133: =SUMIF(Data!$T$2:$U$10177,$C133,Data!$V$2:$V$10177) -> 0 | P133: =SUMIF(Data!$W$2:$W$10177,$C133,Data!$Y$2:$Y$10177) -> 0
C134: 9900000711 | D134: 711 | E134: PALLET OF WOOD | F134: WOOD | G134: 61 | H134: =G134*I134 -> 0 | I134: =SUM(J134:P134) -> 0 | J134: =SUMIF(Data!$H$2:$H$10177,$C134,Data!$D$2:$D$10177) -> 0 | K134: =SUMIF(Data!$H$2:$H$10177,$C134,Data!$J$2:$J$10177) -> 0 | L134: =SUMIF(Data!$K$2:$K$10177,$C134,Data!$M$2:$M$10177) -> 0 | M134: =SUMIF(Data!$N$2:$N$10177,$C134,Data!$P$2:$P$10177) -> 0 | N134: =SUMIF(Data!$Q$2:$R$10177,$C134,Data!$S$2:$S$10177) -> 0 | O134: =SUMIF(Data!$T$2:$U$10177,$C134,Data!$V$2:$V$10177) -> 0 | P134: =SUMIF(Data!$W$2:$W$10177,$C134,Data!$Y$2:$Y$10177) -> 0
C135: 9900000712 | D135: 712 | E135: FRAME OF WOOD | F135: WOOD | G135: 15.5 | H135: 0 | I135: 0 | J135: =SUMIF(Data!$H$2:$H$10177,$C135,Data!$D$2:$D$10177) -> 0 | K135: =SUMIF(Data!$H$2:$H$10177,$C135,Data!$J$2:$J$10177) -> 0 | L135: =SUMIF(Data!$K$2:$K$10177,$C135,Data!$M$2:$M$10177) -> 0 | M135: =SUMIF(Data!$N$2:$N$10177,$C135,Data!$P$2:$P$10177) -> 0 | N135: =SUMIF(Data!$Q$2:$R$10177,$C135,Data!$S$2:$S$10177) -> 0 | O135: =SUMIF(Data!$T$2:$U$10177,$C135,Data!$V$2:$V$10177) -> 0 | P135: =SUMIF(Data!$W$2:$W$10177,$C135,Data!$Y$2:$Y$10177) -> 0
C136: 9900000713 | D136: 713 | E136: LID OF PLYWOOD | F136: WOOD | G136: 17 | H136: 0 | I136: 0 | J136: =SUMIF(Data!$H$2:$H$10177,$C136,Data!$D$2:$D$10177) -> 0 | K136: =SUMIF(Data!$H$2:$H$10177,$C136,Data!$J$2:$J$10177) -> 0 | L136: =SUMIF(Data!$K$2:$K$10177,$C136,Data!$M$2:$M$10177) -> 0 | M136: =SUMIF(Data!$N$2:$N$10177,$C136,Data!$P$2:$P$10177) -> 0 | N136: =SUMIF(Data!$Q$2:$R$10177,$C136,Data!$S$2:$S$10177) -> 0 | O136: =SUMIF(Data!$T$2:$U$10177,$C136,Data!$V$2:$V$10177) -> 0 | P136: =SUMIF(Data!$W$2:$W$10177,$C136,Data!$Y$2:$Y$10177) -> 0
C137: 9900000724 | D137: 724 | E137: PALLET OF WOOD | F137: WOOD | G137: 72 | H137: 0 | I137: 0 | J137: =SUMIF(Data!$H$2:$H$10177,$C137,Data!$D$2:$D$10177) -> 0 | K137: =SUMIF(Data!$H$2:$H$10177,$C137,Data!$J$2:$J$10177) -> 0 | L137: =SUMIF(Data!$K$2:$K$10177,$C137,Data!$M$2:$M$10177) -> 0 | M137: =SUMIF(Data!$N$2:$N$10177,$C137,Data!$P$2:$P$10177) -> 0 | N137: =SUMIF(Data!$Q$2:$R$10177,$C137,Data!$S$2:$S$10177) -> 0 | O137: =SUMIF(Data!$T$2:$U$10177,$C137,Data!$V$2:$V$10177) -> 0 | P137: =SUMIF(Data!$W$2:$W$10177,$C137,Data!$Y$2:$Y$10177) -> 0
C138: 9900000725 | D138: 725 | E138: FRAME OF WOOD | F138: WOOD | G138: 16 | H138: 0 | I138: 0 | J138: =SUMIF(Data!$H$2:$H$10177,$C138,Data!$D$2:$D$10177) -> 0 | K138: =SUMIF(Data!$H$2:$H$10177,$C138,Data!$J$2:$J$10177) -> 0 | L138: =SUMIF(Data!$K$2:$K$10177,$C138,Data!$M$2:$M$10177) -> 0 | M138: =SUMIF(Data!$N$2:$N$10177,$C138,Data!$P$2:$P$10177) -> 0 | N138: =SUMIF(Data!$Q$2:$R$10177,$C138,Data!$S$2:$S$10177) -> 0 | O138: =SUMIF(Data!$T$2:$U$10177,$C138,Data!$V$2:$V$10177) -> 0 | P138: =SUMIF(Data!$W$2:$W$10177,$C138,Data!$Y$2:$Y$10177) -> 0
C139: 9900000726 | D139: 726 | E139: LID OF PLYWOOD ( 2 PARTS ) | F139: WOOD | G139: 19 | H139: 0 | I139: 0 | J139: =SUMIF(Data!$H$2:$H$10177,$C139,Data!$D$2:$D$10177) -> 0 | K139: =SUMIF(Data!$H$2:$H$10177,$C139,Data!$J$2:$J$10177) -> 0 | L139: =SUMIF(Data!$K$2:$K$10177,$C139,Data!$M$2:$M$10177) -> 0 | M139: =SUMIF(Data!$N$2:$N$10177,$C139,Data!$P$2:$P$10177) -> 0 | N139: =SUMIF(Data!$Q$2:$R$10177,$C139,Data!$S$2:$S$10177) -> 0 | O139: =SUMIF(Data!$T$2:$U$10177,$C139,Data!$V$2:$V$10177) -> 0 | P139: =SUMIF(Data!$W$2:$W$10177,$C139,Data!$Y$2:$Y$10177) -> 0
C140: 9900000727 | D140: 727 | E140: SPACER OF CARDBOARD | F140: CARDBOARD | G140: 0.75 | H140: 0 | I140: 0 | J140: =SUMIF(Data!$H$2:$H$10177,$C140,Data!$D$2:$D$10177) -> 0 | K140: =SUMIF(Data!$H$2:$H$10177,$C140,Data!$J$2:$J$10177) -> 0 | L140: =SUMIF(Data!$K$2:$K$10177,$C140,Data!$M$2:$M$10177) -> 0 | M140: =SUMIF(Data!$N$2:$N$10177,$C140,Data!$P$2:$P$10177) -> 0 | N140: =SUMIF(Data!$Q$2:$R$10177,$C140,Data!$S$2:$S$10177) -> 0 | O140: =SUMIF(Data!$T$2:$U$10177,$C140,Data!$V$2:$V$10177) -> 0 | P140: =SUMIF(Data!$W$2:$W$10177,$C140,Data!$Y$2:$Y$10177) -> 0
C141: 9900000729 | D141: 729 | E141: SPACER OF WOOD | F141: WOOD | G141: 12 | H141: 0 | I141: 0 | J141: =SUMIF(Data!$H$2:$H$10177,$C141,Data!$D$2:$D$10177) -> 0 | K141: =SUMIF(Data!$H$2:$H$10177,$C141,Data!$J$2:$J$10177) -> 0 | L141: =SUMIF(Data!$K$2:$K$10177,$C141,Data!$M$2:$M$10177) -> 0 | M141: =SUMIF(Data!$N$2:$N$10177,$C141,Data!$P$2:$P$10177) -> 0 | N141: =SUMIF(Data!$Q$2:$R$10177,$C141,Data!$S$2:$S$10177) -> 0 | O141: =SUMIF(Data!$T$2:$U$10177,$C141,Data!$V$2:$V$10177) -> 0 | P141: =SUMIF(Data!$W$2:$W$10177,$C141,Data!$Y$2:$Y$10177) -> 0
C142: 9900000737 | D142: 737 | E142: FIXING SPACER OF PLASTIC | F142: PLASTIC | G142: 0.15 | H142: 0 | I142: 0 | J142: =SUMIF(Data!$H$2:$H$10177,$C142,Data!$D$2:$D$10177) -> 0 | K142: =SUMIF(Data!$H$2:$H$10177,$C142,Data!$J$2:$J$10177) -> 0 | L142: =SUMIF(Data!$K$2:$K$10177,$C142,Data!$M$2:$M$10177) -> 0 | M142: =SUMIF(Data!$N$2:$N$10177,$C142,Data!$P$2:$P$10177) -> 0 | N142: =SUMIF(Data!$Q$2:$R$10177,$C142,Data!$S$2:$S$10177) -> 0 | O142: =SUMIF(Data!$T$2:$U$10177,$C142,Data!$V$2:$V$10177) -> 0 | P142: =SUMIF(Data!$W$2:$W$10177,$C142,Data!$Y$2:$Y$10177) -> 0
C143: 9900000747 | D143: 747 | E143: BATTEN OF WOOD | F143: WOOD | G143: 2.2 | H143: 0 | I143: 0 | J143: =SUMIF(Data!$H$2:$H$10177,$C143,Data!$D$2:$D$10177) -> 0 | K143: =SUMIF(Data!$H$2:$H$10177,$C143,Data!$J$2:$J$10177) -> 0 | L143: =SUMIF(Data!$K$2:$K$10177,$C143,Data!$M$2:$M$10177) -> 0 | M143: =SUMIF(Data!$N$2:$N$10177,$C143,Data!$P$2:$P$10177) -> 0 | N143: =SUMIF(Data!$Q$2:$R$10177,$C143,Data!$S$2:$S$10177) -> 0 | O143: =SUMIF(Data!$T$2:$U$10177,$C143,Data!$V$2:$V$10177) -> 0 | P143: =SUMIF(Data!$W$2:$W$10177,$C143,Data!$Y$2:$Y$10177) -> 0
C144: 9900020750 | D144: 750 | E144: PLASTIC BOX KIT ( Inc 751 Lid) | F144: PLASTIC | G144: 1.52 | H144: 0 | I144: 0 | J144: =SUMIF(Data!$H$2:$H$10177,$C144,Data!$D$2:$D$10177) -> 0 | K144: =SUMIF(Data!$H$2:$H$10177,$C144,Data!$J$2:$J$10177) -> 0 | L144: =SUMIF(Data!$K$2:$K$10177,$C144,Data!$M$2:$M$10177) -> 0 | M144: =SUMIF(Data!$N$2:$N$10177,$C144,Data!$P$2:$P$10177) -> 0 | N144: =SUMIF(Data!$Q$2:$R$10177,$C144,Data!$S$2:$S$10177) -> 0 | O144: =SUMIF(Data!$T$2:$U$10177,$C144,Data!$V$2:$V$10177) -> 0 | P144: =SUMIF(Data!$W$2:$W$10177,$C144,Data!$Y$2:$Y$10177) -> 0
C145: 9900000751 | D145: 751 | E145: LID OF PLASTIC | F145: PLASTIC | G145: 0.45 | H145: 0 | I145: 0 | J145: =SUMIF(Data!$H$2:$H$10177,$C145,Data!$D$2:$D$10177) -> 0 | K145: =SUMIF(Data!$H$2:$H$10177,$C145,Data!$J$2:$J$10177) -> 0 | L145: =SUMIF(Data!$K$2:$K$10177,$C145,Data!$M$2:$M$10177) -> 0 | M145: =SUMIF(Data!$N$2:$N$10177,$C145,Data!$P$2:$P$10177) -> 0 | N145: =SUMIF(Data!$Q$2:$R$10177,$C145,Data!$S$2:$S$10177) -> 0 | O145: =SUMIF(Data!$T$2:$U$10177,$C145,Data!$V$2:$V$10177) -> 0 | P145: =SUMIF(Data!$W$2:$W$10177,$C145,Data!$Y$2:$Y$10177) -> 0
C146: 9900020757 | D146: 757 | E146: PLASTIC BOX KIT (Inc 751 Lid ) | F146: PLASTIC | G146: 1.2 | H146: 0 | I146: 0 | J146: =SUMIF(Data!$H$2:$H$10177,$C146,Data!$D$2:$D$10177) -> 0 | K146: =SUMIF(Data!$H$2:$H$10177,$C146,Data!$J$2:$J$10177) -> 0 | L146: =SUMIF(Data!$K$2:$K$10177,$C146,Data!$M$2:$M$10177) -> 0 | M146: =SUMIF(Data!$N$2:$N$10177,$C146,Data!$P$2:$P$10177) -> 0 | N146: =SUMIF(Data!$Q$2:$R$10177,$C146,Data!$S$2:$S$10177) -> 0 | O146: =SUMIF(Data!$T$2:$U$10177,$C146,Data!$V$2:$V$10177) -> 0 | P146: =SUMIF(Data!$W$2:$W$10177,$C146,Data!$Y$2:$Y$10177) -> 0
C147: 9900000766 | D147: 766 | E147: SPACER OF FOAM (Disposable) | F147: PLASTIC | G147: 0.01 | H147: 0 | I147: 0 | J147: =SUMIF(Data!$H$2:$H$10177,$C147,Data!$D$2:$D$10177) -> 0 | K147: =SUMIF(Data!$H$2:$H$10177,$C147,Data!$J$2:$J$10177) -> 0 | L147: =SUMIF(Data!$K$2:$K$10177,$C147,Data!$M$2:$M$10177) -> 0 | M147: =SUMIF(Data!$N$2:$N$10177,$C147,Data!$P$2:$P$10177) -> 0 | N147: =SUMIF(Data!$Q$2:$R$10177,$C147,Data!$S$2:$S$10177) -> 0 | O147: =SUMIF(Data!$T$2:$U$10177,$C147,Data!$V$2:$V$10177) -> 0 | P147: =SUMIF(Data!$W$2:$W$10177,$C147,Data!$Y$2:$Y$10177) -> 0
C148: 9900020780 | D148: 780 | E148: PLASTIC BOX KIT (Inc 781 Lid ) | F148: PLASTIC | G148: 2.91 | H148: 0 | I148: 0 | J148: =SUMIF(Data!$H$2:$H$10177,$C148,Data!$D$2:$D$10177) -> 0 | K148: =SUMIF(Data!$H$2:$H$10177,$C148,Data!$J$2:$J$10177) -> 0 | L148: =SUMIF(Data!$K$2:$K$10177,$C148,Data!$M$2:$M$10177) -> 0 | M148: =SUMIF(Data!$N$2:$N$10177,$C148,Data!$P$2:$P$10177) -> 0 | N148: =SUMIF(Data!$Q$2:$R$10177,$C148,Data!$S$2:$S$10177) -> 0 | O148: =SUMIF(Data!$T$2:$U$10177,$C148,Data!$V$2:$V$10177) -> 0 | P148: =SUMIF(Data!$W$2:$W$10177,$C148,Data!$Y$2:$Y$10177) -> 0
C149: 9900000781 | D149: 781 | E149: LID OF PLASTIC | F149: PLASTIC | G149: 0.82 | H149: 0 | I149: 0 | J149: =SUMIF(Data!$H$2:$H$10177,$C149,Data!$D$2:$D$10177) -> 0 | K149: =SUMIF(Data!$H$2:$H$10177,$C149,Data!$J$2:$J$10177) -> 0 | L149: =SUMIF(Data!$K$2:$K$10177,$C149,Data!$M$2:$M$10177) -> 0 | M149: =SUMIF(Data!$N$2:$N$10177,$C149,Data!$P$2:$P$10177) -> 0 | N149: =SUMIF(Data!$Q$2:$R$10177,$C149,Data!$S$2:$S$10177) -> 0 | O149: =SUMIF(Data!$T$2:$U$10177,$C149,Data!$V$2:$V$10177) -> 0 | P149: =SUMIF(Data!$W$2:$W$10177,$C149,Data!$Y$2:$Y$10177) -> 0
C150: 9900020787 | D150: 787 | E150: PLASTIC BOX KIT (Inc 781 Lid ) | F150: PLASTIC | G150: 2.12 | H150: =G150*I150 -> 0 | I150: =SUM(J150:P150) -> 0 | J150: =SUMIF(Data!$H$2:$H$10177,$C150,Data!$D$2:$D$10177) -> 0 | K150: =SUMIF(Data!$H$2:$H$10177,$C150,Data!$J$2:$J$10177) -> 0 | L150: =SUMIF(Data!$K$2:$K$10177,$C150,Data!$M$2:$M$10177) -> 0 | M150: =SUMIF(Data!$N$2:$N$10177,$C150,Data!$P$2:$P$10177) -> 0 | N150: =SUMIF(Data!$Q$2:$R$10177,$C150,Data!$S$2:$S$10177) -> 0 | O150: =SUMIF(Data!$T$2:$U$10177,$C150,Data!$V$2:$V$10177) -> 0 | P150: =SUMIF(Data!$W$2:$W$10177,$C150,Data!$Y$2:$Y$10177) -> 0
C151: 9900020790 | D151: 790 | E151: PLASTIC BOX KIT (Inc 791 Lid) | F151: PLASTIC | G151: 4 | H151: 0 | I151: 0 | J151: =SUMIF(Data!$H$2:$H$10177,$C151,Data!$D$2:$D$10177) -> 0 | K151: =SUMIF(Data!$H$2:$H$10177,$C151,Data!$J$2:$J$10177) -> 0 | L151: =SUMIF(Data!$K$2:$K$10177,$C151,Data!$M$2:$M$10177) -> 0 | M151: =SUMIF(Data!$N$2:$N$10177,$C151,Data!$P$2:$P$10177) -> 0 | N151: =SUMIF(Data!$Q$2:$R$10177,$C151,Data!$S$2:$S$10177) -> 0 | O151: =SUMIF(Data!$T$2:$U$10177,$C151,Data!$V$2:$V$10177) -> 0 | P151: =SUMIF(Data!$W$2:$W$10177,$C151,Data!$Y$2:$Y$10177) -> 0
C152: 9900000791 | D152: 791 | E152: LID OF PLASTIC | F152: PLASTIC | G152: 1.5 | H152: 0 | I152: 0 | J152: =SUMIF(Data!$H$2:$H$10177,$C152,Data!$D$2:$D$10177) -> 0 | K152: =SUMIF(Data!$H$2:$H$10177,$C152,Data!$J$2:$J$10177) -> 0 | L152: =SUMIF(Data!$K$2:$K$10177,$C152,Data!$M$2:$M$10177) -> 0 | M152: =SUMIF(Data!$N$2:$N$10177,$C152,Data!$P$2:$P$10177) -> 0 | N152: =SUMIF(Data!$Q$2:$R$10177,$C152,Data!$S$2:$S$10177) -> 0 | O152: =SUMIF(Data!$T$2:$U$10177,$C152,Data!$V$2:$V$10177) -> 0 | P152: =SUMIF(Data!$W$2:$W$10177,$C152,Data!$Y$2:$Y$10177) -> 0
C153: 9900000798 | D153: 798 | E153: SPACER OF PLASTIC | F153: PLASTIC | G153: 3.5 | H153: 0 | I153: 0 | J153: =SUMIF(Data!$H$2:$H$10177,$C153,Data!$D$2:$D$10177) -> 0 | K153: =SUMIF(Data!$H$2:$H$10177,$C153,Data!$J$2:$J$10177) -> 0 | L153: =SUMIF(Data!$K$2:$K$10177,$C153,Data!$M$2:$M$10177) -> 0 | M153: =SUMIF(Data!$N$2:$N$10177,$C153,Data!$P$2:$P$10177) -> 0 | N153: =SUMIF(Data!$Q$2:$R$10177,$C153,Data!$S$2:$S$10177) -> 0 | O153: =SUMIF(Data!$T$2:$U$10177,$C153,Data!$V$2:$V$10177) -> 0 | P153: =SUMIF(Data!$W$2:$W$10177,$C153,Data!$Y$2:$Y$10177) -> 0
C154: 9900020800 | D154: 800 | E154: PLASTIC BOX KIT (Inc 801 Lid) | F154: PLASTIC | G154: 2.84 | H154: 0 | I154: 0 | J154: =SUMIF(Data!$H$2:$H$10177,$C154,Data!$D$2:$D$10177) -> 0 | K154: =SUMIF(Data!$H$2:$H$10177,$C154,Data!$J$2:$J$10177) -> 0 | L154: =SUMIF(Data!$K$2:$K$10177,$C154,Data!$M$2:$M$10177) -> 0 | M154: =SUMIF(Data!$N$2:$N$10177,$C154,Data!$P$2:$P$10177) -> 0 | N154: =SUMIF(Data!$Q$2:$R$10177,$C154,Data!$S$2:$S$10177) -> 0 | O154: =SUMIF(Data!$T$2:$U$10177,$C154,Data!$V$2:$V$10177) -> 0 | P154: =SUMIF(Data!$W$2:$W$10177,$C154,Data!$Y$2:$Y$10177) -> 0
C155: 9900000801 | D155: 801 | E155: LID OF PLASTIC | F155: PLASTIC | G155: 0.84 | H155: 0 | I155: 0 | J155: =SUMIF(Data!$H$2:$H$10177,$C155,Data!$D$2:$D$10177) -> 0 | K155: =SUMIF(Data!$H$2:$H$10177,$C155,Data!$J$2:$J$10177) -> 0 | L155: =SUMIF(Data!$K$2:$K$10177,$C155,Data!$M$2:$M$10177) -> 0 | M155: =SUMIF(Data!$N$2:$N$10177,$C155,Data!$P$2:$P$10177) -> 0 | N155: =SUMIF(Data!$Q$2:$R$10177,$C155,Data!$S$2:$S$10177) -> 0 | O155: =SUMIF(Data!$T$2:$U$10177,$C155,Data!$V$2:$V$10177) -> 0 | P155: =SUMIF(Data!$W$2:$W$10177,$C155,Data!$Y$2:$Y$10177) -> 0
C156: 9900000814 | D156: 814 | E156: COMBITAINER SIDES (Set of 4 = 2 short, 2 long) | F156: METAL | G156: 60.009 | H156: 0 | I156: 0 | J156: =SUMIF(Data!$H$2:$H$10177,$C156,Data!$D$2:$D$10177) -> 0 | K156: =SUMIF(Data!$H$2:$H$10177,$C156,Data!$J$2:$J$10177) -> 0 | L156: =SUMIF(Data!$K$2:$K$10177,$C156,Data!$M$2:$M$10177) -> 0 | M156: =SUMIF(Data!$N$2:$N$10177,$C156,Data!$P$2:$P$10177) -> 0 | N156: =SUMIF(Data!$Q$2:$R$10177,$C156,Data!$S$2:$S$10177) -> 0 | O156: =SUMIF(Data!$T$2:$U$10177,$C156,Data!$V$2:$V$10177) -> 0 | P156: =SUMIF(Data!$W$2:$W$10177,$C156,Data!$Y$2:$Y$10177) -> 0
C157: 9900000836 | D157: 836 | E157: PALLET OF STEEL | F157: METAL | G157: 82.019 | H157: 0 | I157: 0 | J157: =SUMIF(Data!$H$2:$H$10177,$C157,Data!$D$2:$D$10177) -> 0 | K157: =SUMIF(Data!$H$2:$H$10177,$C157,Data!$J$2:$J$10177) -> 0 | L157: =SUMIF(Data!$K$2:$K$10177,$C157,Data!$M$2:$M$10177) -> 0 | M157: =SUMIF(Data!$N$2:$N$10177,$C157,Data!$P$2:$P$10177) -> 0 | N157: =SUMIF(Data!$Q$2:$R$10177,$C157,Data!$S$2:$S$10177) -> 0 | O157: =SUMIF(Data!$T$2:$U$10177,$C157,Data!$V$2:$V$10177) -> 0 | P157: =SUMIF(Data!$W$2:$W$10177,$C157,Data!$Y$2:$Y$10177) -> 0
C158: 9900020840 | D158: 840 | E158: PLASTIC BOX KIT (Inc 841 Lid) | F158: PLASTIC | G158: 4.63 | H158: 0 | I158: 0 | J158: =SUMIF(Data!$H$2:$H$10177,$C158,Data!$D$2:$D$10177) -> 0 | K158: =SUMIF(Data!$H$2:$H$10177,$C158,Data!$J$2:$J$10177) -> 0 | L158: =SUMIF(Data!$K$2:$K$10177,$C158,Data!$M$2:$M$10177) -> 0 | M158: =SUMIF(Data!$N$2:$N$10177,$C158,Data!$P$2:$P$10177) -> 0 | N158: =SUMIF(Data!$Q$2:$R$10177,$C158,Data!$S$2:$S$10177) -> 0 | O158: =SUMIF(Data!$T$2:$U$10177,$C158,Data!$V$2:$V$10177) -> 0 | P158: =SUMIF(Data!$W$2:$W$10177,$C158,Data!$Y$2:$Y$10177) -> 0
C159: 9900000841 | D159: 841 | E159: LID OF PLASTIC | F159: PLASTIC | G159: 1.63 | H159: 0 | I159: 0 | J159: =SUMIF(Data!$H$2:$H$10177,$C159,Data!$D$2:$D$10177) -> 0 | K159: =SUMIF(Data!$H$2:$H$10177,$C159,Data!$J$2:$J$10177) -> 0 | L159: =SUMIF(Data!$K$2:$K$10177,$C159,Data!$M$2:$M$10177) -> 0 | M159: =SUMIF(Data!$N$2:$N$10177,$C159,Data!$P$2:$P$10177) -> 0 | N159: =SUMIF(Data!$Q$2:$R$10177,$C159,Data!$S$2:$S$10177) -> 0 | O159: =SUMIF(Data!$T$2:$U$10177,$C159,Data!$V$2:$V$10177) -> 0 | P159: =SUMIF(Data!$W$2:$W$10177,$C159,Data!$Y$2:$Y$10177) -> 0
C160: 9900000848 | D160: 848 | E160: RACK OF STEEL | F160: METAL | G160: 85 | H160: 0 | I160: 0 | J160: =SUMIF(Data!$H$2:$H$10177,$C160,Data!$D$2:$D$10177) -> 0 | K160: =SUMIF(Data!$H$2:$H$10177,$C160,Data!$J$2:$J$10177) -> 0 | L160: =SUMIF(Data!$K$2:$K$10177,$C160,Data!$M$2:$M$10177) -> 0 | M160: =SUMIF(Data!$N$2:$N$10177,$C160,Data!$P$2:$P$10177) -> 0 | N160: =SUMIF(Data!$Q$2:$R$10177,$C160,Data!$S$2:$S$10177) -> 0 | O160: =SUMIF(Data!$T$2:$U$10177,$C160,Data!$V$2:$V$10177) -> 0 | P160: =SUMIF(Data!$W$2:$W$10177,$C160,Data!$Y$2:$Y$10177) -> 0
C161: 9900000859 | D161: =C161-9900000000 -> 859 | E161: PLASTIC BOX | F161: PLASTIC | G161: 0.36 | H161: =G161*I161 -> 0 | I161: =SUM(J161:P161) -> 0 | J161: =SUMIF(Data!$H$2:$H$10177,$C161,Data!$D$2:$D$10177) -> 0 | K161: =SUMIF(Data!$H$2:$H$10177,$C161,Data!$J$2:$J$10177) -> 0 | L161: =SUMIF(Data!$K$2:$K$10177,$C161,Data!$M$2:$M$10177) -> 0 | M161: =SUMIF(Data!$N$2:$N$10177,$C161,Data!$P$2:$P$10177) -> 0 | N161: =SUMIF(Data!$Q$2:$R$10177,$C161,Data!$S$2:$S$10177) -> 0 | O161: =SUMIF(Data!$T$2:$U$10177,$C161,Data!$V$2:$V$10177) -> 0 | P161: =SUMIF(Data!$W$2:$W$10177,$C161,Data!$Y$2:$Y$10177) -> 0
C162: 9900000890 | D162: 890 | E162: SPACER OF PLASTIC | F162: PLASTIC | G162: 1.5 | H162: 0 | I162: 0 | J162: =SUMIF(Data!$H$2:$H$10177,$C162,Data!$D$2:$D$10177) -> 0 | K162: =SUMIF(Data!$H$2:$H$10177,$C162,Data!$J$2:$J$10177) -> 0 | L162: =SUMIF(Data!$K$2:$K$10177,$C162,Data!$M$2:$M$10177) -> 0 | M162: =SUMIF(Data!$N$2:$N$10177,$C162,Data!$P$2:$P$10177) -> 0 | N162: =SUMIF(Data!$Q$2:$R$10177,$C162,Data!$S$2:$S$10177) -> 0 | O162: =SUMIF(Data!$T$2:$U$10177,$C162,Data!$V$2:$V$10177) -> 0 | P162: =SUMIF(Data!$W$2:$W$10177,$C162,Data!$Y$2:$Y$10177) -> 0
C163: 9900000991 | D163: 991 | E163: LID OF PLASTIC | F163: PLASTIC | G163: 4.5 | H163: 0 | I163: 0 | J163: =SUMIF(Data!$H$2:$H$10177,$C163,Data!$D$2:$D$10177) -> 0 | K163: =SUMIF(Data!$H$2:$H$10177,$C163,Data!$J$2:$J$10177) -> 0 | L163: =SUMIF(Data!$K$2:$K$10177,$C163,Data!$M$2:$M$10177) -> 0 | M163: =SUMIF(Data!$N$2:$N$10177,$C163,Data!$P$2:$P$10177) -> 0 | N163: =SUMIF(Data!$Q$2:$R$10177,$C163,Data!$S$2:$S$10177) -> 0 | O163: =SUMIF(Data!$T$2:$U$10177,$C163,Data!$V$2:$V$10177) -> 0 | P163: =SUMIF(Data!$W$2:$W$10177,$C163,Data!$Y$2:$Y$10177) -> 0
C164: 9900001021 | D164: 1021 | E164: PLASTIC COVER, PALLET BOX L | F164: PLASTIC | G164: 0.282 | H164: 0 | I164: 0 | J164: =SUMIF(Data!$H$2:$H$10177,$C164,Data!$D$2:$D$10177) -> 0 | K164: =SUMIF(Data!$H$2:$H$10177,$C164,Data!$J$2:$J$10177) -> 0 | L164: =SUMIF(Data!$K$2:$K$10177,$C164,Data!$M$2:$M$10177) -> 0 | M164: =SUMIF(Data!$N$2:$N$10177,$C164,Data!$P$2:$P$10177) -> 0 | N164: =SUMIF(Data!$Q$2:$R$10177,$C164,Data!$S$2:$S$10177) -> 0 | O164: =SUMIF(Data!$T$2:$U$10177,$C164,Data!$V$2:$V$10177) -> 0 | P164: =SUMIF(Data!$W$2:$W$10177,$C164,Data!$Y$2:$Y$10177) -> 0
C165: 9900001022 | D165: 1022 | E165: PLASTIC COVER, PALLET BOX K2 | F165: PLASTIC | G165: 0.17 | H165: 0 | I165: 0 | J165: =SUMIF(Data!$H$2:$H$10177,$C165,Data!$D$2:$D$10177) -> 0 | K165: =SUMIF(Data!$H$2:$H$10177,$C165,Data!$J$2:$J$10177) -> 0 | L165: =SUMIF(Data!$K$2:$K$10177,$C165,Data!$M$2:$M$10177) -> 0 | M165: =SUMIF(Data!$N$2:$N$10177,$C165,Data!$P$2:$P$10177) -> 0 | N165: =SUMIF(Data!$Q$2:$R$10177,$C165,Data!$S$2:$S$10177) -> 0 | O165: =SUMIF(Data!$T$2:$U$10177,$C165,Data!$V$2:$V$10177) -> 0 | P165: =SUMIF(Data!$W$2:$W$10177,$C165,Data!$Y$2:$Y$10177) -> 0
C166: 9900001025 | D166: 1025 | E166: PLASTIC COVER, PALLET BOX F2 | F166: PLASTIC | G166: 0.45 | H166: 0 | I166: 0 | J166: =SUMIF(Data!$H$2:$H$10177,$C166,Data!$D$2:$D$10177) -> 0 | K166: =SUMIF(Data!$H$2:$H$10177,$C166,Data!$J$2:$J$10177) -> 0 | L166: =SUMIF(Data!$K$2:$K$10177,$C166,Data!$M$2:$M$10177) -> 0 | M166: =SUMIF(Data!$N$2:$N$10177,$C166,Data!$P$2:$P$10177) -> 0 | N166: =SUMIF(Data!$Q$2:$R$10177,$C166,Data!$S$2:$S$10177) -> 0 | O166: =SUMIF(Data!$T$2:$U$10177,$C166,Data!$V$2:$V$10177) -> 0 | P166: =SUMIF(Data!$W$2:$W$10177,$C166,Data!$Y$2:$Y$10177) -> 0
C167: 9900001026 | D167: 1026 | E167: PLASTIC COVER, PALLET BOX G2 | F167: PLASTIC | G167: 0.29 | H167: 0 | I167: 0 | J167: =SUMIF(Data!$H$2:$H$10177,$C167,Data!$D$2:$D$10177) -> 0 | K167: =SUMIF(Data!$H$2:$H$10177,$C167,Data!$J$2:$J$10177) -> 0 | L167: =SUMIF(Data!$K$2:$K$10177,$C167,Data!$M$2:$M$10177) -> 0 | M167: =SUMIF(Data!$N$2:$N$10177,$C167,Data!$P$2:$P$10177) -> 0 | N167: =SUMIF(Data!$Q$2:$R$10177,$C167,Data!$S$2:$S$10177) -> 0 | O167: =SUMIF(Data!$T$2:$U$10177,$C167,Data!$V$2:$V$10177) -> 0 | P167: =SUMIF(Data!$W$2:$W$10177,$C167,Data!$Y$2:$Y$10177) -> 0
C168: 9900001029 | D168: 1029 | E168: PLASTIC COVER, PALLET BOX H2 | F168: PLASTIC | G168: 0.33 | H168: 0 | I168: 0 | J168: =SUMIF(Data!$H$2:$H$10177,$C168,Data!$D$2:$D$10177) -> 0 | K168: =SUMIF(Data!$H$2:$H$10177,$C168,Data!$J$2:$J$10177) -> 0 | L168: =SUMIF(Data!$K$2:$K$10177,$C168,Data!$M$2:$M$10177) -> 0 | M168: =SUMIF(Data!$N$2:$N$10177,$C168,Data!$P$2:$P$10177) -> 0 | N168: =SUMIF(Data!$Q$2:$R$10177,$C168,Data!$S$2:$S$10177) -> 0 | O168: =SUMIF(Data!$T$2:$U$10177,$C168,Data!$V$2:$V$10177) -> 0 | P168: =SUMIF(Data!$W$2:$W$10177,$C168,Data!$Y$2:$Y$10177) -> 0
C169: 9900001031 | D169: 1031 | E169: PLASTIC COVER, PALLET BOX L3 | F169: PLASTIC | G169: 0.318 | H169: 0 | I169: 0 | J169: =SUMIF(Data!$H$2:$H$10177,$C169,Data!$D$2:$D$10177) -> 0 | K169: =SUMIF(Data!$H$2:$H$10177,$C169,Data!$J$2:$J$10177) -> 0 | L169: =SUMIF(Data!$K$2:$K$10177,$C169,Data!$M$2:$M$10177) -> 0 | M169: =SUMIF(Data!$N$2:$N$10177,$C169,Data!$P$2:$P$10177) -> 0 | N169: =SUMIF(Data!$Q$2:$R$10177,$C169,Data!$S$2:$S$10177) -> 0 | O169: =SUMIF(Data!$T$2:$U$10177,$C169,Data!$V$2:$V$10177) -> 0 | P169: =SUMIF(Data!$W$2:$W$10177,$C169,Data!$Y$2:$Y$10177) -> 0
C170: 9900001041 | D170: 1041 | E170: PLASTIC COVER, PALLET BOX L4 | F170: PLASTIC | G170: 0.37 | H170: 0 | I170: 0 | J170: =SUMIF(Data!$H$2:$H$10177,$C170,Data!$D$2:$D$10177) -> 0 | K170: =SUMIF(Data!$H$2:$H$10177,$C170,Data!$J$2:$J$10177) -> 0 | L170: =SUMIF(Data!$K$2:$K$10177,$C170,Data!$M$2:$M$10177) -> 0 | M170: =SUMIF(Data!$N$2:$N$10177,$C170,Data!$P$2:$P$10177) -> 0 | N170: =SUMIF(Data!$Q$2:$R$10177,$C170,Data!$S$2:$S$10177) -> 0 | O170: =SUMIF(Data!$T$2:$U$10177,$C170,Data!$V$2:$V$10177) -> 0 | P170: =SUMIF(Data!$W$2:$W$10177,$C170,Data!$Y$2:$Y$10177) -> 0
C171: 9900001046 | D171: 1046 | E171: PLASTIC COVER, PALLET BOX G4 | F171: PLASTIC | G171: 0.41 | H171: 0 | I171: 0 | J171: =SUMIF(Data!$H$2:$H$10177,$C171,Data!$D$2:$D$10177) -> 0 | K171: =SUMIF(Data!$H$2:$H$10177,$C171,Data!$J$2:$J$10177) -> 0 | L171: =SUMIF(Data!$K$2:$K$10177,$C171,Data!$M$2:$M$10177) -> 0 | M171: =SUMIF(Data!$N$2:$N$10177,$C171,Data!$P$2:$P$10177) -> 0 | N171: =SUMIF(Data!$Q$2:$R$10177,$C171,Data!$S$2:$S$10177) -> 0 | O171: =SUMIF(Data!$T$2:$U$10177,$C171,Data!$V$2:$V$10177) -> 0 | P171: =SUMIF(Data!$W$2:$W$10177,$C171,Data!$Y$2:$Y$10177) -> 0
C172: 9900001055 | D172: 1055 | E172: RACK OF STEEL | F172: METAL | G172: 130 | H172: 0 | I172: 0 | J172: =SUMIF(Data!$H$2:$H$10177,$C172,Data!$D$2:$D$10177) -> 0 | K172: =SUMIF(Data!$H$2:$H$10177,$C172,Data!$J$2:$J$10177) -> 0 | L172: =SUMIF(Data!$K$2:$K$10177,$C172,Data!$M$2:$M$10177) -> 0 | M172: =SUMIF(Data!$N$2:$N$10177,$C172,Data!$P$2:$P$10177) -> 0 | N172: =SUMIF(Data!$Q$2:$R$10177,$C172,Data!$S$2:$S$10177) -> 0 | O172: =SUMIF(Data!$T$2:$U$10177,$C172,Data!$V$2:$V$10177) -> 0 | P172: =SUMIF(Data!$W$2:$W$10177,$C172,Data!$Y$2:$Y$10177) -> 0
C173: 9900001107 | D173: 1107 | E173: FIXING SPACER OF PLASTIC | F173: PLASTIC | G173: 3.4 | H173: 0 | I173: 0 | J173: =SUMIF(Data!$H$2:$H$10177,$C173,Data!$D$2:$D$10177) -> 0 | K173: =SUMIF(Data!$H$2:$H$10177,$C173,Data!$J$2:$J$10177) -> 0 | L173: =SUMIF(Data!$K$2:$K$10177,$C173,Data!$M$2:$M$10177) -> 0 | M173: =SUMIF(Data!$N$2:$N$10177,$C173,Data!$P$2:$P$10177) -> 0 | N173: =SUMIF(Data!$Q$2:$R$10177,$C173,Data!$S$2:$S$10177) -> 0 | O173: =SUMIF(Data!$T$2:$U$10177,$C173,Data!$V$2:$V$10177) -> 0 | P173: =SUMIF(Data!$W$2:$W$10177,$C173,Data!$Y$2:$Y$10177) -> 0
C174: 9900001109 | D174: 1109 | E174: RACK OF STEEL | F174: METAL | G174: 225 | H174: 0 | I174: 0 | J174: =SUMIF(Data!$H$2:$H$10177,$C174,Data!$D$2:$D$10177) -> 0 | K174: =SUMIF(Data!$H$2:$H$10177,$C174,Data!$J$2:$J$10177) -> 0 | L174: =SUMIF(Data!$K$2:$K$10177,$C174,Data!$M$2:$M$10177) -> 0 | M174: =SUMIF(Data!$N$2:$N$10177,$C174,Data!$P$2:$P$10177) -> 0 | N174: =SUMIF(Data!$Q$2:$R$10177,$C174,Data!$S$2:$S$10177) -> 0 | O174: =SUMIF(Data!$T$2:$U$10177,$C174,Data!$V$2:$V$10177) -> 0 | P174: =SUMIF(Data!$W$2:$W$10177,$C174,Data!$Y$2:$Y$10177) -> 0
C175: 9900001113 | D175: 1113 | E175: RACK OF STEEL | F175: METAL | G175: 236 | H175: 0 | I175: 0 | J175: =SUMIF(Data!$H$2:$H$10177,$C175,Data!$D$2:$D$10177) -> 0 | K175: =SUMIF(Data!$H$2:$H$10177,$C175,Data!$J$2:$J$10177) -> 0 | L175: =SUMIF(Data!$K$2:$K$10177,$C175,Data!$M$2:$M$10177) -> 0 | M175: =SUMIF(Data!$N$2:$N$10177,$C175,Data!$P$2:$P$10177) -> 0 | N175: =SUMIF(Data!$Q$2:$R$10177,$C175,Data!$S$2:$S$10177) -> 0 | O175: =SUMIF(Data!$T$2:$U$10177,$C175,Data!$V$2:$V$10177) -> 0 | P175: =SUMIF(Data!$W$2:$W$10177,$C175,Data!$Y$2:$Y$10177) -> 0
C176: 9900001114 | D176: 1114 | E176: RACK OF STEEL | F176: METAL | G176: 258 | H176: 0 | I176: 0 | J176: =SUMIF(Data!$H$2:$H$10177,$C176,Data!$D$2:$D$10177) -> 0 | K176: =SUMIF(Data!$H$2:$H$10177,$C176,Data!$J$2:$J$10177) -> 0 | L176: =SUMIF(Data!$K$2:$K$10177,$C176,Data!$M$2:$M$10177) -> 0 | M176: =SUMIF(Data!$N$2:$N$10177,$C176,Data!$P$2:$P$10177) -> 0 | N176: =SUMIF(Data!$Q$2:$R$10177,$C176,Data!$S$2:$S$10177) -> 0 | O176: =SUMIF(Data!$T$2:$U$10177,$C176,Data!$V$2:$V$10177) -> 0 | P176: =SUMIF(Data!$W$2:$W$10177,$C176,Data!$Y$2:$Y$10177) -> 0
C177: 9900001120 | D177: 1120 | E177: SUPPORT OF STEEL | F177: METAL | G177: 5.5 | H177: 0 | I177: 0 | J177: =SUMIF(Data!$H$2:$H$10177,$C177,Data!$D$2:$D$10177) -> 0 | K177: =SUMIF(Data!$H$2:$H$10177,$C177,Data!$J$2:$J$10177) -> 0 | L177: =SUMIF(Data!$K$2:$K$10177,$C177,Data!$M$2:$M$10177) -> 0 | M177: =SUMIF(Data!$N$2:$N$10177,$C177,Data!$P$2:$P$10177) -> 0 | N177: =SUMIF(Data!$Q$2:$R$10177,$C177,Data!$S$2:$S$10177) -> 0 | O177: =SUMIF(Data!$T$2:$U$10177,$C177,Data!$V$2:$V$10177) -> 0 | P177: =SUMIF(Data!$W$2:$W$10177,$C177,Data!$Y$2:$Y$10177) -> 0
C178: 9900001121 | D178: 1121 | E178: SUPPORT OF STEEL | F178: METAL | G178: 5.5 | H178: 0 | I178: 0 | J178: =SUMIF(Data!$H$2:$H$10177,$C178,Data!$D$2:$D$10177) -> 0 | K178: =SUMIF(Data!$H$2:$H$10177,$C178,Data!$J$2:$J$10177) -> 0 | L178: =SUMIF(Data!$K$2:$K$10177,$C178,Data!$M$2:$M$10177) -> 0 | M178: =SUMIF(Data!$N$2:$N$10177,$C178,Data!$P$2:$P$10177) -> 0 | N178: =SUMIF(Data!$Q$2:$R$10177,$C178,Data!$S$2:$S$10177) -> 0 | O178: =SUMIF(Data!$T$2:$U$10177,$C178,Data!$V$2:$V$10177) -> 0 | P178: =SUMIF(Data!$W$2:$W$10177,$C178,Data!$Y$2:$Y$10177) -> 0
C179: 9900001124 | D179: 1124 | E179: FIXING SPACER OF PLASTIC | F179: PLASTIC | G179: 3.4 | H179: 0 | I179: 0 | J179: =SUMIF(Data!$H$2:$H$10177,$C179,Data!$D$2:$D$10177) -> 0 | K179: =SUMIF(Data!$H$2:$H$10177,$C179,Data!$J$2:$J$10177) -> 0 | L179: =SUMIF(Data!$K$2:$K$10177,$C179,Data!$M$2:$M$10177) -> 0 | M179: =SUMIF(Data!$N$2:$N$10177,$C179,Data!$P$2:$P$10177) -> 0 | N179: =SUMIF(Data!$Q$2:$R$10177,$C179,Data!$S$2:$S$10177) -> 0 | O179: =SUMIF(Data!$T$2:$U$10177,$C179,Data!$V$2:$V$10177) -> 0 | P179: =SUMIF(Data!$W$2:$W$10177,$C179,Data!$Y$2:$Y$10177) -> 0
C180: 9900001136 | D180: 1136 | E180: RACK OF STEEL | F180: METAL | G180: 265 | H180: 0 | I180: 0 | J180: =SUMIF(Data!$H$2:$H$10177,$C180,Data!$D$2:$D$10177) -> 0 | K180: =SUMIF(Data!$H$2:$H$10177,$C180,Data!$J$2:$J$10177) -> 0 | L180: =SUMIF(Data!$K$2:$K$10177,$C180,Data!$M$2:$M$10177) -> 0 | M180: =SUMIF(Data!$N$2:$N$10177,$C180,Data!$P$2:$P$10177) -> 0 | N180: =SUMIF(Data!$Q$2:$R$10177,$C180,Data!$S$2:$S$10177) -> 0 | O180: =SUMIF(Data!$T$2:$U$10177,$C180,Data!$V$2:$V$10177) -> 0 | P180: =SUMIF(Data!$W$2:$W$10177,$C180,Data!$Y$2:$Y$10177) -> 0
C181: 9900001171 | D181: 1171 | E181: LID OF PLASTIC | F181: PLASTIC | G181: 250 | H181: 0 | I181: 0 | J181: =SUMIF(Data!$H$2:$H$10177,$C181,Data!$D$2:$D$10177) -> 0 | K181: =SUMIF(Data!$H$2:$H$10177,$C181,Data!$J$2:$J$10177) -> 0 | L181: =SUMIF(Data!$K$2:$K$10177,$C181,Data!$M$2:$M$10177) -> 0 | M181: =SUMIF(Data!$N$2:$N$10177,$C181,Data!$P$2:$P$10177) -> 0 | N181: =SUMIF(Data!$Q$2:$R$10177,$C181,Data!$S$2:$S$10177) -> 0 | O181: =SUMIF(Data!$T$2:$U$10177,$C181,Data!$V$2:$V$10177) -> 0 | P181: =SUMIF(Data!$W$2:$W$10177,$C181,Data!$Y$2:$Y$10177) -> 0
C182: 9900001180 | D182: =C182-9900000000 -> 1180 | E182: RACK OF STEEL | F182: METAL | G182: 242 | H182: =G182*I182 -> 0 | I182: =SUM(J182:P182) -> 0 | J182: =SUMIF(Data!$H$2:$H$10177,$C182,Data!$D$2:$D$10177) -> 0 | K182: =SUMIF(Data!$H$2:$H$10177,$C182,Data!$J$2:$J$10177) -> 0 | L182: =SUMIF(Data!$K$2:$K$10177,$C182,Data!$M$2:$M$10177) -> 0 | M182: =SUMIF(Data!$N$2:$N$10177,$C182,Data!$P$2:$P$10177) -> 0 | N182: =SUMIF(Data!$Q$2:$R$10177,$C182,Data!$S$2:$S$10177) -> 0 | O182: =SUMIF(Data!$T$2:$U$10177,$C182,Data!$V$2:$V$10177) -> 0 | P182: =SUMIF(Data!$W$2:$W$10177,$C182,Data!$Y$2:$Y$10177) -> 0
C183: 9900001200 | D183: 1200 | E183: BOX OF PLASTIC | F183: PLASTIC | G183: 5 | H183: 0 | I183: 0 | J183: =SUMIF(Data!$H$2:$H$10177,$C183,Data!$D$2:$D$10177) -> 0 | K183: =SUMIF(Data!$H$2:$H$10177,$C183,Data!$J$2:$J$10177) -> 0 | L183: =SUMIF(Data!$K$2:$K$10177,$C183,Data!$M$2:$M$10177) -> 0 | M183: =SUMIF(Data!$N$2:$N$10177,$C183,Data!$P$2:$P$10177) -> 0 | N183: =SUMIF(Data!$Q$2:$R$10177,$C183,Data!$S$2:$S$10177) -> 0 | O183: =SUMIF(Data!$T$2:$U$10177,$C183,Data!$V$2:$V$10177) -> 0 | P183: =SUMIF(Data!$W$2:$W$10177,$C183,Data!$Y$2:$Y$10177) -> 0
C184: 9900001373 | D184: 1373 | E184: Rack Of Steel | F184: METAL | G184: 158 | H184: 0 | I184: 0 | J184: =SUMIF(Data!$H$2:$H$10177,$C184,Data!$D$2:$D$10177) -> 0 | K184: =SUMIF(Data!$H$2:$H$10177,$C184,Data!$J$2:$J$10177) -> 0 | L184: =SUMIF(Data!$K$2:$K$10177,$C184,Data!$M$2:$M$10177) -> 0 | M184: =SUMIF(Data!$N$2:$N$10177,$C184,Data!$P$2:$P$10177) -> 0 | N184: =SUMIF(Data!$Q$2:$R$10177,$C184,Data!$S$2:$S$10177) -> 0 | O184: =SUMIF(Data!$T$2:$U$10177,$C184,Data!$V$2:$V$10177) -> 0 | P184: =SUMIF(Data!$W$2:$W$10177,$C184,Data!$Y$2:$Y$10177) -> 0
C185: 9900001396 | D185: 1396 | E185: SPACER OF PLASTIC | F185: PLASTIC | G185: 0.2 | H185: 0 | I185: 0 | J185: =SUMIF(Data!$H$2:$H$10177,$C185,Data!$D$2:$D$10177) -> 0 | K185: =SUMIF(Data!$H$2:$H$10177,$C185,Data!$J$2:$J$10177) -> 0 | L185: =SUMIF(Data!$K$2:$K$10177,$C185,Data!$M$2:$M$10177) -> 0 | M185: =SUMIF(Data!$N$2:$N$10177,$C185,Data!$P$2:$P$10177) -> 0 | N185: =SUMIF(Data!$Q$2:$R$10177,$C185,Data!$S$2:$S$10177) -> 0 | O185: =SUMIF(Data!$T$2:$U$10177,$C185,Data!$V$2:$V$10177) -> 0 | P185: =SUMIF(Data!$W$2:$W$10177,$C185,Data!$Y$2:$Y$10177) -> 0
C186: 9900001397 | D186: 1397 | E186: SPACER OF PLASTIC | F186: PLASTIC | G186: 0.1 | H186: 0 | I186: 0 | J186: =SUMIF(Data!$H$2:$H$10177,$C186,Data!$D$2:$D$10177) -> 0 | K186: =SUMIF(Data!$H$2:$H$10177,$C186,Data!$J$2:$J$10177) -> 0 | L186: =SUMIF(Data!$K$2:$K$10177,$C186,Data!$M$2:$M$10177) -> 0 | M186: =SUMIF(Data!$N$2:$N$10177,$C186,Data!$P$2:$P$10177) -> 0 | N186: =SUMIF(Data!$Q$2:$R$10177,$C186,Data!$S$2:$S$10177) -> 0 | O186: =SUMIF(Data!$T$2:$U$10177,$C186,Data!$V$2:$V$10177) -> 0 | P186: =SUMIF(Data!$W$2:$W$10177,$C186,Data!$Y$2:$Y$10177) -> 0
C187: 9900001408 | D187: 1408 | E187: BOX OF PLASTIC | F187: PLASTIC | G187: 1.33 | H187: 0 | I187: 0 | J187: =SUMIF(Data!$H$2:$H$10177,$C187,Data!$D$2:$D$10177) -> 0 | K187: =SUMIF(Data!$H$2:$H$10177,$C187,Data!$J$2:$J$10177) -> 0 | L187: =SUMIF(Data!$K$2:$K$10177,$C187,Data!$M$2:$M$10177) -> 0 | M187: =SUMIF(Data!$N$2:$N$10177,$C187,Data!$P$2:$P$10177) -> 0 | N187: =SUMIF(Data!$Q$2:$R$10177,$C187,Data!$S$2:$S$10177) -> 0 | O187: =SUMIF(Data!$T$2:$U$10177,$C187,Data!$V$2:$V$10177) -> 0 | P187: =SUMIF(Data!$W$2:$W$10177,$C187,Data!$Y$2:$Y$10177) -> 0
C188: 9900001414 | D188: 1414 | E188: INSERT OF PLASTIC | F188: PLASTIC | G188: 0.3 | H188: 0 | I188: 0 | J188: =SUMIF(Data!$H$2:$H$10177,$C188,Data!$D$2:$D$10177) -> 0 | K188: =SUMIF(Data!$H$2:$H$10177,$C188,Data!$J$2:$J$10177) -> 0 | L188: =SUMIF(Data!$K$2:$K$10177,$C188,Data!$M$2:$M$10177) -> 0 | M188: =SUMIF(Data!$N$2:$N$10177,$C188,Data!$P$2:$P$10177) -> 0 | N188: =SUMIF(Data!$Q$2:$R$10177,$C188,Data!$S$2:$S$10177) -> 0 | O188: =SUMIF(Data!$T$2:$U$10177,$C188,Data!$V$2:$V$10177) -> 0 | P188: =SUMIF(Data!$W$2:$W$10177,$C188,Data!$Y$2:$Y$10177) -> 0
C189: 9900001415 | D189: 1415 | E189: RACK OF STEEL | F189: METAL | G189: 282 | H189: 0 | I189: 0 | J189: =SUMIF(Data!$H$2:$H$10177,$C189,Data!$D$2:$D$10177) -> 0 | K189: =SUMIF(Data!$H$2:$H$10177,$C189,Data!$J$2:$J$10177) -> 0 | L189: =SUMIF(Data!$K$2:$K$10177,$C189,Data!$M$2:$M$10177) -> 0 | M189: =SUMIF(Data!$N$2:$N$10177,$C189,Data!$P$2:$P$10177) -> 0 | N189: =SUMIF(Data!$Q$2:$R$10177,$C189,Data!$S$2:$S$10177) -> 0 | O189: =SUMIF(Data!$T$2:$U$10177,$C189,Data!$V$2:$V$10177) -> 0 | P189: =SUMIF(Data!$W$2:$W$10177,$C189,Data!$Y$2:$Y$10177) -> 0
C190: 9900001416 | D190: =C190-9900000000 -> 1416 | E190: BATTEN OF WOOD | F190: WOOD | G190: 13 | H190: 0 | I190: 0 | J190: =SUMIF(Data!$H$2:$H$10177,$C190,Data!$D$2:$D$10177) -> 0 | K190: =SUMIF(Data!$H$2:$H$10177,$C190,Data!$J$2:$J$10177) -> 0 | L190: =SUMIF(Data!$K$2:$K$10177,$C190,Data!$M$2:$M$10177) -> 0 | M190: =SUMIF(Data!$N$2:$N$10177,$C190,Data!$P$2:$P$10177) -> 0 | N190: =SUMIF(Data!$Q$2:$R$10177,$C190,Data!$S$2:$S$10177) -> 0 | O190: =SUMIF(Data!$T$2:$U$10177,$C190,Data!$V$2:$V$10177) -> 0 | P190: =SUMIF(Data!$W$2:$W$10177,$C190,Data!$Y$2:$Y$10177) -> 0
C191: 9900001420 | D191: =C191-9900000000 -> 1420 | E191: RACK OF STEEL | F191: METAL | G191: 205 | H191: =G191*I191 -> 0 | I191: =SUM(J191:P191) -> 0 | J191: =SUMIF(Data!$H$2:$H$10177,$C191,Data!$D$2:$D$10177) -> 0 | K191: =SUMIF(Data!$H$2:$H$10177,$C191,Data!$J$2:$J$10177) -> 0 | L191: =SUMIF(Data!$K$2:$K$10177,$C191,Data!$M$2:$M$10177) -> 0 | M191: =SUMIF(Data!$N$2:$N$10177,$C191,Data!$P$2:$P$10177) -> 0 | N191: =SUMIF(Data!$Q$2:$R$10177,$C191,Data!$S$2:$S$10177) -> 0 | O191: =SUMIF(Data!$T$2:$U$10177,$C191,Data!$V$2:$V$10177) -> 0 | P191: =SUMIF(Data!$W$2:$W$10177,$C191,Data!$Y$2:$Y$10177) -> 0
C192: 9900001424 | D192: 1424 | E192: RACK OF STEEL | F192: METAL | G192: 84 | H192: 0 | I192: 0 | J192: =SUMIF(Data!$H$2:$H$10177,$C192,Data!$D$2:$D$10177) -> 0 | K192: =SUMIF(Data!$H$2:$H$10177,$C192,Data!$J$2:$J$10177) -> 0 | L192: =SUMIF(Data!$K$2:$K$10177,$C192,Data!$M$2:$M$10177) -> 0 | M192: =SUMIF(Data!$N$2:$N$10177,$C192,Data!$P$2:$P$10177) -> 0 | N192: =SUMIF(Data!$Q$2:$R$10177,$C192,Data!$S$2:$S$10177) -> 0 | O192: =SUMIF(Data!$T$2:$U$10177,$C192,Data!$V$2:$V$10177) -> 0 | P192: =SUMIF(Data!$W$2:$W$10177,$C192,Data!$Y$2:$Y$10177) -> 0
C193: 9900001425 | D193: 1425 | E193: FIXING SPACER OF PLASTIC | F193: PLASTIC | G193: 0.22 | H193: 0 | I193: 0 | J193: =SUMIF(Data!$H$2:$H$10177,$C193,Data!$D$2:$D$10177) -> 0 | K193: =SUMIF(Data!$H$2:$H$10177,$C193,Data!$J$2:$J$10177) -> 0 | L193: =SUMIF(Data!$K$2:$K$10177,$C193,Data!$M$2:$M$10177) -> 0 | M193: =SUMIF(Data!$N$2:$N$10177,$C193,Data!$P$2:$P$10177) -> 0 | N193: =SUMIF(Data!$Q$2:$R$10177,$C193,Data!$S$2:$S$10177) -> 0 | O193: =SUMIF(Data!$T$2:$U$10177,$C193,Data!$V$2:$V$10177) -> 0 | P193: =SUMIF(Data!$W$2:$W$10177,$C193,Data!$Y$2:$Y$10177) -> 0
C194: 9900001427 | D194: 1427 | E194: FIXING SPACER OF PLASTIC | F194: PLASTIC | G194: 1.87 | H194: 0 | I194: 0 | J194: =SUMIF(Data!$H$2:$H$10177,$C194,Data!$D$2:$D$10177) -> 0 | K194: =SUMIF(Data!$H$2:$H$10177,$C194,Data!$J$2:$J$10177) -> 0 | L194: =SUMIF(Data!$K$2:$K$10177,$C194,Data!$M$2:$M$10177) -> 0 | M194: =SUMIF(Data!$N$2:$N$10177,$C194,Data!$P$2:$P$10177) -> 0 | N194: =SUMIF(Data!$Q$2:$R$10177,$C194,Data!$S$2:$S$10177) -> 0 | O194: =SUMIF(Data!$T$2:$U$10177,$C194,Data!$V$2:$V$10177) -> 0 | P194: =SUMIF(Data!$W$2:$W$10177,$C194,Data!$Y$2:$Y$10177) -> 0
C195: 9900001445 | D195: 1445 | E195: FIXING SPACER OF PLASTIC | F195: PLASTIC | G195: 5 | H195: 0 | I195: 0 | J195: =SUMIF(Data!$H$2:$H$10177,$C195,Data!$D$2:$D$10177) -> 0 | K195: =SUMIF(Data!$H$2:$H$10177,$C195,Data!$J$2:$J$10177) -> 0 | L195: =SUMIF(Data!$K$2:$K$10177,$C195,Data!$M$2:$M$10177) -> 0 | M195: =SUMIF(Data!$N$2:$N$10177,$C195,Data!$P$2:$P$10177) -> 0 | N195: =SUMIF(Data!$Q$2:$R$10177,$C195,Data!$S$2:$S$10177) -> 0 | O195: =SUMIF(Data!$T$2:$U$10177,$C195,Data!$V$2:$V$10177) -> 0 | P195: =SUMIF(Data!$W$2:$W$10177,$C195,Data!$Y$2:$Y$10177) -> 0
C196: 9900001447 | D196: 1447 | E196: FIXING SPACER OF PLASTIC | F196: PLASTIC | G196: 5 | H196: 0 | I196: 0 | J196: =SUMIF(Data!$H$2:$H$10177,$C196,Data!$D$2:$D$10177) -> 0 | K196: =SUMIF(Data!$H$2:$H$10177,$C196,Data!$J$2:$J$10177) -> 0 | L196: =SUMIF(Data!$K$2:$K$10177,$C196,Data!$M$2:$M$10177) -> 0 | M196: =SUMIF(Data!$N$2:$N$10177,$C196,Data!$P$2:$P$10177) -> 0 | N196: =SUMIF(Data!$Q$2:$R$10177,$C196,Data!$S$2:$S$10177) -> 0 | O196: =SUMIF(Data!$T$2:$U$10177,$C196,Data!$V$2:$V$10177) -> 0 | P196: =SUMIF(Data!$W$2:$W$10177,$C196,Data!$Y$2:$Y$10177) -> 0
C197: 9900001455 | D197: 1455 | E197: RACK OF STEEL | F197: METAL | G197: 0 | H197: 0 | I197: 0 | J197: =SUMIF(Data!$H$2:$H$10177,$C197,Data!$D$2:$D$10177) -> 0 | K197: =SUMIF(Data!$H$2:$H$10177,$C197,Data!$J$2:$J$10177) -> 0 | L197: =SUMIF(Data!$K$2:$K$10177,$C197,Data!$M$2:$M$10177) -> 0 | M197: =SUMIF(Data!$N$2:$N$10177,$C197,Data!$P$2:$P$10177) -> 0 | N197: =SUMIF(Data!$Q$2:$R$10177,$C197,Data!$S$2:$S$10177) -> 0 | O197: =SUMIF(Data!$T$2:$U$10177,$C197,Data!$V$2:$V$10177) -> 0 | P197: =SUMIF(Data!$W$2:$W$10177,$C197,Data!$Y$2:$Y$10177) -> 0
C198: 9900001458 | D198: 1458 | E198: FIXING INSERT OF PLASTIC | F198: PLASTIC | G198: 0.6 | H198: 0 | I198: 0 | J198: =SUMIF(Data!$H$2:$H$10177,$C198,Data!$D$2:$D$10177) -> 0 | K198: =SUMIF(Data!$H$2:$H$10177,$C198,Data!$J$2:$J$10177) -> 0 | L198: =SUMIF(Data!$K$2:$K$10177,$C198,Data!$M$2:$M$10177) -> 0 | M198: =SUMIF(Data!$N$2:$N$10177,$C198,Data!$P$2:$P$10177) -> 0 | N198: =SUMIF(Data!$Q$2:$R$10177,$C198,Data!$S$2:$S$10177) -> 0 | O198: =SUMIF(Data!$T$2:$U$10177,$C198,Data!$V$2:$V$10177) -> 0 | P198: =SUMIF(Data!$W$2:$W$10177,$C198,Data!$Y$2:$Y$10177) -> 0
C199: 9900001462 | D199: 1462 | E199: SPACER OF PLASTIC | F199: PLASTIC | G199: 0.25 | H199: 0 | I199: 0 | J199: =SUMIF(Data!$H$2:$H$10177,$C199,Data!$D$2:$D$10177) -> 0 | K199: =SUMIF(Data!$H$2:$H$10177,$C199,Data!$J$2:$J$10177) -> 0 | L199: =SUMIF(Data!$K$2:$K$10177,$C199,Data!$M$2:$M$10177) -> 0 | M199: =SUMIF(Data!$N$2:$N$10177,$C199,Data!$P$2:$P$10177) -> 0 | N199: =SUMIF(Data!$Q$2:$R$10177,$C199,Data!$S$2:$S$10177) -> 0 | O199: =SUMIF(Data!$T$2:$U$10177,$C199,Data!$V$2:$V$10177) -> 0 | P199: =SUMIF(Data!$W$2:$W$10177,$C199,Data!$Y$2:$Y$10177) -> 0
C200: 9900001463 | D200: 1463 | E200: SPACER OF WOOD | F200: WOOD | G200: 1.22 | H200: 0 | I200: 0 | J200: =SUMIF(Data!$H$2:$H$10177,$C200,Data!$D$2:$D$10177) -> 0 | K200: =SUMIF(Data!$H$2:$H$10177,$C200,Data!$J$2:$J$10177) -> 0 | L200: =SUMIF(Data!$K$2:$K$10177,$C200,Data!$M$2:$M$10177) -> 0 | M200: =SUMIF(Data!$N$2:$N$10177,$C200,Data!$P$2:$P$10177) -> 0 | N200: =SUMIF(Data!$Q$2:$R$10177,$C200,Data!$S$2:$S$10177) -> 0 | O200: =SUMIF(Data!$T$2:$U$10177,$C200,Data!$V$2:$V$10177) -> 0 | P200: =SUMIF(Data!$W$2:$W$10177,$C200,Data!$Y$2:$Y$10177) -> 0
C201: 9900001464 | D201: 1464 | E201: SPACER OF WOOD | F201: WOOD | G201: 0.93 | H201: 0 | I201: 0 | J201: =SUMIF(Data!$H$2:$H$10177,$C201,Data!$D$2:$D$10177) -> 0 | K201: =SUMIF(Data!$H$2:$H$10177,$C201,Data!$J$2:$J$10177) -> 0 | L201: =SUMIF(Data!$K$2:$K$10177,$C201,Data!$M$2:$M$10177) -> 0 | M201: =SUMIF(Data!$N$2:$N$10177,$C201,Data!$P$2:$P$10177) -> 0 | N201: =SUMIF(Data!$Q$2:$R$10177,$C201,Data!$S$2:$S$10177) -> 0 | O201: =SUMIF(Data!$T$2:$U$10177,$C201,Data!$V$2:$V$10177) -> 0 | P201: =SUMIF(Data!$W$2:$W$10177,$C201,Data!$Y$2:$Y$10177) -> 0
C202: 9900001475 | D202: =C202-9900000000 -> 1475 | E202: FIXING SPACER OF PLASTIC | F202: PLASTIC | G202: 3.6 | H202: =G202*I202 -> 0 | I202: =SUM(J202:P202) -> 0 | J202: =SUMIF(Data!$H$2:$H$10177,$C202,Data!$D$2:$D$10177) -> 0 | K202: =SUMIF(Data!$H$2:$H$10177,$C202,Data!$J$2:$J$10177) -> 0 | L202: =SUMIF(Data!$K$2:$K$10177,$C202,Data!$M$2:$M$10177) -> 0 | M202: =SUMIF(Data!$N$2:$N$10177,$C202,Data!$P$2:$P$10177) -> 0 | N202: =SUMIF(Data!$Q$2:$R$10177,$C202,Data!$S$2:$S$10177) -> 0 | O202: =SUMIF(Data!$T$2:$U$10177,$C202,Data!$V$2:$V$10177) -> 0 | P202: =SUMIF(Data!$W$2:$W$10177,$C202,Data!$Y$2:$Y$10177) -> 0
C203: 9900001476 | D203: 1476 | E203: FIXING SPACER OF PLASTIC | F203: PLASTIC | G203: 3.6 | H203: 0 | I203: 0 | J203: =SUMIF(Data!$H$2:$H$10177,$C203,Data!$D$2:$D$10177) -> 0 | K203: =SUMIF(Data!$H$2:$H$10177,$C203,Data!$J$2:$J$10177) -> 0 | L203: =SUMIF(Data!$K$2:$K$10177,$C203,Data!$M$2:$M$10177) -> 0 | M203: =SUMIF(Data!$N$2:$N$10177,$C203,Data!$P$2:$P$10177) -> 0 | N203: =SUMIF(Data!$Q$2:$R$10177,$C203,Data!$S$2:$S$10177) -> 0 | O203: =SUMIF(Data!$T$2:$U$10177,$C203,Data!$V$2:$V$10177) -> 0 | P203: =SUMIF(Data!$W$2:$W$10177,$C203,Data!$Y$2:$Y$10177) -> 0
C204: 9900001477 | D204: =C204-9900000000 -> 1477 | E204: FIXING SPACER OF PLASTIC | F204: PLASTIC | G204: 3.6 | H204: 0 | I204: 0 | J204: =SUMIF(Data!$H$2:$H$10177,$C204,Data!$D$2:$D$10177) -> 0 | K204: =SUMIF(Data!$H$2:$H$10177,$C204,Data!$J$2:$J$10177) -> 0 | L204: =SUMIF(Data!$K$2:$K$10177,$C204,Data!$M$2:$M$10177) -> 0 | M204: =SUMIF(Data!$N$2:$N$10177,$C204,Data!$P$2:$P$10177) -> 0 | N204: =SUMIF(Data!$Q$2:$R$10177,$C204,Data!$S$2:$S$10177) -> 0 | O204: =SUMIF(Data!$T$2:$U$10177,$C204,Data!$V$2:$V$10177) -> 0 | P204: =SUMIF(Data!$W$2:$W$10177,$C204,Data!$Y$2:$Y$10177) -> 0
C205: 9900001479 | D205: =C205-9900000000 -> 1479 | E205: RACK OF STEEL | F205: METAL | G205: 120 | H205: 0 | I205: 0 | J205: =SUMIF(Data!$H$2:$H$10177,$C205,Data!$D$2:$D$10177) -> 0 | K205: =SUMIF(Data!$H$2:$H$10177,$C205,Data!$J$2:$J$10177) -> 0 | L205: =SUMIF(Data!$K$2:$K$10177,$C205,Data!$M$2:$M$10177) -> 0 | M205: =SUMIF(Data!$N$2:$N$10177,$C205,Data!$P$2:$P$10177) -> 0 | N205: =SUMIF(Data!$Q$2:$R$10177,$C205,Data!$S$2:$S$10177) -> 0 | O205: =SUMIF(Data!$T$2:$U$10177,$C205,Data!$V$2:$V$10177) -> 0 | P205: =SUMIF(Data!$W$2:$W$10177,$C205,Data!$Y$2:$Y$10177) -> 0
C206: 9900001480 | D206: =C206-9900000000 -> 1480 | E206: RACK OF STEEL | F206: METAL | G206: 92 | H206: 0 | I206: 0 | J206: =SUMIF(Data!$H$2:$H$10177,$C206,Data!$D$2:$D$10177) -> 0 | K206: =SUMIF(Data!$H$2:$H$10177,$C206,Data!$J$2:$J$10177) -> 0 | L206: =SUMIF(Data!$K$2:$K$10177,$C206,Data!$M$2:$M$10177) -> 0 | M206: =SUMIF(Data!$N$2:$N$10177,$C206,Data!$P$2:$P$10177) -> 0 | N206: =SUMIF(Data!$Q$2:$R$10177,$C206,Data!$S$2:$S$10177) -> 0 | O206: =SUMIF(Data!$T$2:$U$10177,$C206,Data!$V$2:$V$10177) -> 0 | P206: =SUMIF(Data!$W$2:$W$10177,$C206,Data!$Y$2:$Y$10177) -> 0
C207: 9900001481 | D207: 1481 | E207: FIXING SPACER OF PLASTIC | F207: PLASTIC | G207: 4.7 | H207: 0 | I207: 0 | J207: =SUMIF(Data!$H$2:$H$10177,$C207,Data!$D$2:$D$10177) -> 0 | K207: =SUMIF(Data!$H$2:$H$10177,$C207,Data!$J$2:$J$10177) -> 0 | L207: =SUMIF(Data!$K$2:$K$10177,$C207,Data!$M$2:$M$10177) -> 0 | M207: =SUMIF(Data!$N$2:$N$10177,$C207,Data!$P$2:$P$10177) -> 0 | N207: =SUMIF(Data!$Q$2:$R$10177,$C207,Data!$S$2:$S$10177) -> 0 | O207: =SUMIF(Data!$T$2:$U$10177,$C207,Data!$V$2:$V$10177) -> 0 | P207: =SUMIF(Data!$W$2:$W$10177,$C207,Data!$Y$2:$Y$10177) -> 0
C208: 9900001482 | D208: =C208-9900000000 -> 1482 | E208: RACK OF STEEL | F208: METAL | G208: 84 | H208: =G208*I208 -> 0 | I208: =SUM(J208:P208) -> 0 | J208: =SUMIF(Data!$H$2:$H$10177,$C208,Data!$D$2:$D$10177) -> 0 | K208: =SUMIF(Data!$H$2:$H$10177,$C208,Data!$J$2:$J$10177) -> 0 | L208: =SUMIF(Data!$K$2:$K$10177,$C208,Data!$M$2:$M$10177) -> 0 | M208: =SUMIF(Data!$N$2:$N$10177,$C208,Data!$P$2:$P$10177) -> 0 | N208: =SUMIF(Data!$Q$2:$R$10177,$C208,Data!$S$2:$S$10177) -> 0 | O208: =SUMIF(Data!$T$2:$U$10177,$C208,Data!$V$2:$V$10177) -> 0 | P208: =SUMIF(Data!$W$2:$W$10177,$C208,Data!$Y$2:$Y$10177) -> 0
... 449 more rows

Sheet Data (hidden)
A1: Material | B1: ABV | C1: Bundle INPUT | D1: Piece input | E1: Material Description | F1: TYPE | G1: Resort time | H1: Primary EMB | I1: QTY1 | J1: RES1 | K1: SECONDRY | L1: QTY2 | M1: RES2 | N1: PALLETS | O1: QTY3 | P1: RES3 | Q1: FRAMES | R1: QTY4 | S1: RES4 | T1: LIDS | U1: QTY5 | V1: RES5 | W1: Plastic Cover | X1: QTY6 | Y1: RES6
A2: 9900010000 | B2: =Data!$A2-9900010000 -> 0 | C2: =IF(EXACT($B2,LOOKUP($B2,'INPUT '!$D$16:$D$116)),LOOKUP($B2,'INPUT '!$D$16:$D$116,'INPUT '!$E$16:$E$116),"0") -> 1 | D2: =IF(EXACT($B2,LOOKUP($B2,'INPUT '!$D$16:$D$116)),LOOKUP($B2,'INPUT '!$D$16:$D$116,'INPUT '!$F$16:$F$116),"0") -> 0 | E2: Admin | H2: 9900000000 | I2: 1 | J2: =I2*C2 -> 1 | M2: =L2*C2 -> 0 | P2: =O2*C2 -> 0 | S2: =R2*C2 -> 0 | V2: =U2*C2 -> 0 | Y2: =X2*C2 -> 0
A3: 9900010001 | B3: =Data!$A3-9900010000 -> 1 | C3: =IF(EXACT($B3,LOOKUP($B3,'INPUT '!$D$16:$D$116)),LOOKUP($B3,'INPUT '!$D$16:$D$116,'INPUT '!$E$16:$E$116),"0") -> 0 | D3: =IF(EXACT($B3,LOOKUP($B3,'INPUT '!$D$16:$D$116)),LOOKUP($B3,'INPUT '!$D$16:$D$116,'INPUT '!$F$16:$F$116),"0") -> 0 | E3: PALLET OF WOOD, TYPE L (Bundle) | F3: L | H3: 9900000001 | J3: 0 | M3: 0 | N3: 9900000001 | O3: 10 | P3: 0 | S3: 0 | V3: 0 | Y3: 0
A4: 9900010002 | B4: =Data!$A4-9900010000 -> 2 | C4: =IF(EXACT($B4,LOOKUP($B4,'INPUT '!$D$16:$D$116)),LOOKUP($B4,'INPUT '!$D$16:$D$116,'INPUT '!$E$16:$E$116),"0") -> 0 | D4: =IF(EXACT($B4,LOOKUP($B4,'INPUT '!$D$16:$D$116)),LOOKUP($B4,'INPUT '!$D$16:$D$116,'INPUT '!$F$16:$F$116),"0") -> 0 | E4: PALLET OF WOOD, TYPE K (Bundle) | F4: K | H4: 9900000002 | J4: 0 | M4: 0 | N4: 9900000002 | O4: 20 | P4: 0 | S4: 0 | V4: 0 | Y4: 0
A5: 9900010005 | B5: =Data!$A5-9900010000 -> 5 | C5: =IF(EXACT($B5,LOOKUP($B5,'INPUT '!$D$16:$D$116)),LOOKUP($B5,'INPUT '!$D$16:$D$116,'INPUT '!$E$16:$E$116),"0") -> 0 | D5: =IF(EXACT($B5,LOOKUP($B5,'INPUT '!$D$16:$D$116)),LOOKUP($B5,'INPUT '!$D$16:$D$116,'INPUT '!$F$16:$F$116),"0") -> 0 | E5: PALLET OF WOOD, TYPE F (Bundle) | F5: F | H5: 9900000005 | J5: 0 | M5: 0 | N5: 9900000005 | O5: 1 | P5: 0 | S5: 0 | V5: 0 | Y5: 0
A6: 9900010006 | B6: =Data!$A6-9900010000 -> 6 | C6: =IF(EXACT($B6,LOOKUP($B6,'INPUT '!$D$16:$D$116)),LOOKUP($B6,'INPUT '!$D$16:$D$116,'INPUT '!$E$16:$E$116),"0") -> 0 | D6: =IF(EXACT($B6,LOOKUP($B6,'INPUT '!$D$16:$D$116)),LOOKUP($B6,'INPUT '!$D$16:$D$116,'INPUT '!$F$16:$F$116),"0") -> 0 | E6: PALLET OF WOOD, TYPE G (Bundle) | F6: G | H6: 9900000006 | J6: 0 | M6: 0 | N6: 9900000006 | O6: 10 | P6: 0 | S6: 0 | V6: 0 | Y6: 0
A7: 9900010009 | B7: =Data!$A7-9900010000 -> 9 | C7: =IF(EXACT($B7,LOOKUP($B7,'INPUT '!$D$16:$D$116)),LOOKUP($B7,'INPUT '!$D$16:$D$116,'INPUT '!$E$16:$E$116),"0") -> 0 | D7: =IF(EXACT($B7,LOOKUP($B7,'INPUT '!$D$16:$D$116)),LOOKUP($B7,'INPUT '!$D$16:$D$116,'INPUT '!$F$16:$F$116),"0") -> 0 | E7: PALLET OF WOOD, TYPE H (Bundle) | F7: H | H7: 9900000009 | J7: 0 | M7: 0 | N7: 9900000009 | O7: 10 | P7: 0 | S7: 0 | V7: 0 | Y7: 0
A8: 9900010021 | B8: =Data!$A8-9900010000 -> 21 | C8: =IF(EXACT($B8,LOOKUP($B8,'INPUT '!$D$16:$D$116)),LOOKUP($B8,'INPUT '!$D$16:$D$116,'INPUT '!$E$16:$E$116),"0") -> 0 | D8: =IF(EXACT($B8,LOOKUP($B8,'INPUT '!$D$16:$D$116)),LOOKUP($B8,'INPUT '!$D$16:$D$116,'INPUT '!$F$16:$F$116),"0") -> 0 | E8: FRAME OF WOOD, TYPE L (Bundle) | F8: L | H8: 9900000021 | J8: 0 | M8: 0 | N8: 9900000001 | O8: 2 | P8: 0 | Q8: 9900000021 | R8: 50 | S8: 0 | V8: 0 | Y8: 0
A9: 9900010022 | B9: =Data!$A9-9900010000 -> 22 | C9: =IF(EXACT($B9,LOOKUP($B9,'INPUT '!$D$16:$D$116)),LOOKUP($B9,'INPUT '!$D$16:$D$116,'INPUT '!$E$16:$E$116),"0") -> 0 | D9: =IF(EXACT($B9,LOOKUP($B9,'INPUT '!$D$16:$D$116)),LOOKUP($B9,'INPUT '!$D$16:$D$116,'INPUT '!$F$16:$F$116),"0") -> 0 | E9: FRAME OF WOOD, TYPE K (Bundle) | F9: K | H9: 9900000022 | J9: 0 | M9: 0 | N9: 9900000002 | O9: 2 | P9: 0 | Q9: 9900000022 | R9: 50 | S9: 0 | V9: 0 | Y9: 0
A10: 9900010025 | B10: =Data!$A10-9900010000 -> 25 | C10: =IF(EXACT($B10,LOOKUP($B10,'INPUT '!$D$16:$D$116)),LOOKUP($B10,'INPUT '!$D$16:$D$116,'INPUT '!$E$16:$E$116),"0") -> 0 | D10: =IF(EXACT($B10,LOOKUP($B10,'INPUT '!$D$16:$D$116)),LOOKUP($B10,'INPUT '!$D$16:$D$116,'INPUT '!$F$16:$F$116),"0") -> 0 | E10: FRAME OF WOOD, TYPE F (Bundle) | F10: F | H10: 9900000025 | J10: 0 | M10: 0 | N10: 9900000005 | O10: 1 | P10: 0 | Q10: 9900000025 | R10: 25 | S10: 0 | V10: 0 | Y10: 0
A11: 9900010026 | B11: =Data!$A11-9900010000 -> 26 | C11: =IF(EXACT($B11,LOOKUP($B11,'INPUT '!$D$16:$D$116)),LOOKUP($B11,'INPUT '!$D$16:$D$116,'INPUT '!$E$16:$E$116),"0") -> 0 | D11: =IF(EXACT($B11,LOOKUP($B11,'INPUT '!$D$16:$D$116)),LOOKUP($B11,'INPUT '!$D$16:$D$116,'INPUT '!$F$16:$F$116),"0") -> 0 | E11: FRAME OF WOOD, TYPE G (Bundle) | F11: G | H11: 9900000026 | J11: 0 | M11: 0 | N11: 9900000006 | O11: 1 | P11: 0 | Q11: 9900000026 | R11: 32 | S11: 0 | V11: 0 | Y11: 0
A12: 9900010029 | B12: =Data!$A12-9900010000 -> 29 | C12: =IF(EXACT($B12,LOOKUP($B12,'INPUT '!$D$16:$D$116)),LOOKUP($B12,'INPUT '!$D$16:$D$116,'INPUT '!$E$16:$E$116),"0") -> 0 | D12: =IF(EXACT($B12,LOOKUP($B12,'INPUT '!$D$16:$D$116)),LOOKUP($B12,'INPUT '!$D$16:$D$116,'INPUT '!$F$16:$F$116),"0") -> 0 | E12: FRAME OF WOOD, TYPE H (Bundle) | F12: H | H12: 9900000029 | J12: 0 | M12: 0 | N12: 9900000009 | O12: 1 | P12: 0 | Q12: 9900000029 | R12: 32 | S12: 0 | V12: 0 | Y12: 0
A13: 9900010031 | B13: =Data!$A13-9900010000 -> 31 | C13: =IF(EXACT($B13,LOOKUP($B13,'INPUT '!$D$16:$D$116)),LOOKUP($B13,'INPUT '!$D$16:$D$116,'INPUT '!$E$16:$E$116),"0") -> 0 | D13: =IF(EXACT($B13,LOOKUP($B13,'INPUT '!$D$16:$D$116)),LOOKUP($B13,'INPUT '!$D$16:$D$116,'INPUT '!$F$16:$F$116),"0") -> 0 | E13: SPACER OF PLYWOOD, L OUTER (Bundle) | F13: L | H13: 9900000031 | I13: 50 | J13: 0 | M13: 0 | N13: 9900000001 | O13: 1 | P13: 0 | S13: 0 | V13: 0 | Y13: 0
A14: 9900010035 | B14: =Data!$A14-9900010000 -> 35 | C14: =IF(EXACT($B14,LOOKUP($B14,'INPUT '!$D$16:$D$116)),LOOKUP($B14,'INPUT '!$D$16:$D$116,'INPUT '!$E$16:$E$116),"0") -> 0 | D14: =IF(EXACT($B14,LOOKUP($B14,'INPUT '!$D$16:$D$116)),LOOKUP($B14,'INPUT '!$D$16:$D$116,'INPUT '!$F$16:$F$116),"0") -> 0 | E14: SPACER OF PLYWOOD, F OUTER (Bundle) | F14: F | H14: 9900000035 | I14: 50 | J14: 0 | M14: 0 | N14: 9900000005 | O14: 1 | P14: 0 | S14: 0 | V14: 0 | Y14: 0
A15: 9900010041 | B15: =Data!$A15-9900010000 -> 41 | C15: =IF(EXACT($B15,LOOKUP($B15,'INPUT '!$D$16:$D$116)),LOOKUP($B15,'INPUT '!$D$16:$D$116,'INPUT '!$E$16:$E$116),"0") -> 0 | D15: =IF(EXACT($B15,LOOKUP($B15,'INPUT '!$D$16:$D$116)),LOOKUP($B15,'INPUT '!$D$16:$D$116,'INPUT '!$F$16:$F$116),"0") -> 0 | E15: SPACER OF PLYWOOD, L INNER (Bundle) | F15: L | H15: 9900000041 | I15: 50 | J15: 0 | M15: 0 | N15: 9900000001 | O15: 1 | P15: 0 | S15: 0 | V15: 0 | Y15: 0
A16: 9900010045 | B16: =Data!$A16-9900010000 -> 45 | C16: =IF(EXACT($B16,LOOKUP($B16,'INPUT '!$D$16:$D$116)),LOOKUP($B16,'INPUT '!$D$16:$D$116,'INPUT '!$E$16:$E$116),"0") -> 0 | D16: =IF(EXACT($B16,LOOKUP($B16,'INPUT '!$D$16:$D$116)),LOOKUP($B16,'INPUT '!$D$16:$D$116,'INPUT '!$F$16:$F$116),"0") -> 0 | E16: SPACER OF PLYWOOD, F INNER (Bundle) | F16: F | H16: 9900000045 | I16: 20 | J16: 0 | M16: 0 | N16: 9900000005 | O16: 1 | P16: 0 | S16: 0 | V16: 0 | Y16: 0
A17: 9900010051 | B17: =Data!$A17-9900010000 -> 51 | C17: =IF(EXACT($B17,LOOKUP($B17,'INPUT '!$D$16:$D$116)),LOOKUP($B17,'INPUT '!$D$16:$D$116,'INPUT '!$E$16:$E$116),"0") -> 0 | D17: =IF(EXACT($B17,LOOKUP($B17,'INPUT '!$D$16:$D$116)),LOOKUP($B17,'INPUT '!$D$16:$D$116,'INPUT '!$F$16:$F$116),"0") -> 0 | E17: SPACER OF WOOD FIBRE, K OUTER (Bundle) | F17: L | H17: 9900000051 | I17: 100 | J17: 0 | M17: 0 | N17: 9900000001 | O17: 1 | P17: 0 | S17: 0 | T17: 9900000071 | U17: 1 | V17: 0 | W17: 9900001021 | X17: 1 | Y17: 0
A18: 9900010052 | B18: =Data!$A18-9900010000 -> 52 | C18: =IF(EXACT($B18,LOOKUP($B18,'INPUT '!$D$16:$D$116)),LOOKUP($B18,'INPUT '!$D$16:$D$116,'INPUT '!$E$16:$E$116),"0") -> 0 | D18: =IF(EXACT($B18,LOOKUP($B18,'INPUT '!$D$16:$D$116)),LOOKUP($B18,'INPUT '!$D$16:$D$116,'INPUT '!$F$16:$F$116),"0") -> 0 | E18: SPACER OF WOOD FIBRE, K OUTER (Bundle) | F18: K | H18: 9900000052 | I18: 100 | J18: 0 | M18: 0 | N18: 9900000002 | O18: 1 | P18: 0 | S18: 0 | T18: 9900000072 | U18: 1 | V18: 0 | W18: 9900001022 | X18: 1 | Y18: 0
A19: 9900010055 | B19: =Data!$A19-9900010000 -> 55 | C19: =IF(EXACT($B19,LOOKUP($B19,'INPUT '!$D$16:$D$116)),LOOKUP($B19,'INPUT '!$D$16:$D$116,'INPUT '!$E$16:$E$116),"0") -> 0 | D19: =IF(EXACT($B19,LOOKUP($B19,'INPUT '!$D$16:$D$116)),LOOKUP($B19,'INPUT '!$D$16:$D$116,'INPUT '!$F$16:$F$116),"0") -> 0 | E19: SPACER OF WOOD FIBRE, F OUTER (Bundle) | F19: F | H19: 9900000055 | I19: 100 | J19: 0 | M19: 0 | N19: 9900000005 | O19: 1 | P19: 0 | S19: 0 | T19: 9900000752 | U19: 1 | V19: 0 | W19: 9900001025 | X19: 1 | Y19: 0
A20: 9900010056 | B20: =Data!$A20-9900010000 -> 56 | C20: =IF(EXACT($B20,LOOKUP($B20,'INPUT '!$D$16:$D$116)),LOOKUP($B20,'INPUT '!$D$16:$D$116,'INPUT '!$E$16:$E$116),"0") -> 0 | D20: =IF(EXACT($B20,LOOKUP($B20,'INPUT '!$D$16:$D$116)),LOOKUP($B20,'INPUT '!$D$16:$D$116,'INPUT '!$F$16:$F$116),"0") -> 0 | E20: SPACER OF WOOD FIBRE, G OUTER | F20: G | H20: 9900000056 | I20: 100 | J20: 0 | M20: 0 | N20: 9900000006 | O20: 1 | P20: 0 | S20: 0 | T20: 9900000076 | U20: 1 | V20: 0 | W20: 9900001026 | X20: 1 | Y20: 0
A21: 9900010059 | B21: =Data!$A21-9900010000 -> 59 | C21: =IF(EXACT($B21,LOOKUP($B21,'INPUT '!$D$16:$D$116)),LOOKUP($B21,'INPUT '!$D$16:$D$116,'INPUT '!$E$16:$E$116),"0") -> 0 | D21: =IF(EXACT($B21,LOOKUP($B21,'INPUT '!$D$16:$D$116)),LOOKUP($B21,'INPUT '!$D$16:$D$116,'INPUT '!$F$16:$F$116),"0") -> 0 | E21: SPACER OF WOOD FIBRE, H OUTER | F21: H | H21: 9900000059 | I21: 100 | J21: 0 | M21: 0 | N21: 9900000009 | O21: 1 | P21: 0 | S21: 0 | T21: 9900000079 | U21: 1 | V21: 0 | W21: 9900001029 | X21: 1 | Y21: 0
A22: 9900010061 | B22: =Data!$A22-9900010000 -> 61 | C22: =IF(EXACT($B22,LOOKUP($B22,'INPUT '!$D$16:$D$116)),LOOKUP($B22,'INPUT '!$D$16:$D$116,'INPUT '!$E$16:$E$116),"0") -> 0 | D22: =IF(EXACT($B22,LOOKUP($B22,'INPUT '!$D$16:$D$116)),LOOKUP($B22,'INPUT '!$D$16:$D$116,'INPUT '!$F$16:$F$116),"0") -> 0 | E22: SPACER OF WOOD FIBRE, L INNER | F22: L | H22: 9900000061 | I22: 120 | J22: 0 | M22: 0 | N22: 9900000001 | O22: 1 | P22: 0 | Q22: 9900000021 | R22: 2 | S22: 0 | T22: 9900000071 | U22: 1 | V22: 0 | W22: 9900001021 | X22: 1 | Y22: 0
A23: 9900010062 | B23: =Data!$A23-9900010000 -> 62 | C23: =IF(EXACT($B23,LOOKUP($B23,'INPUT '!$D$16:$D$116)),LOOKUP($B23,'INPUT '!$D$16:$D$116,'INPUT '!$E$16:$E$116),"0") -> 0 | D23: =IF(EXACT($B23,LOOKUP($B23,'INPUT '!$D$16:$D$116)),LOOKUP($B23,'INPUT '!$D$16:$D$116,'INPUT '!$F$16:$F$116),"0") -> 0 | E23: SPACER OF WOOD FIBRE, K INNER | F23: K | H23: 9900000062 | I23: 120 | J23: 0 | M23: 0 | N23: 9900000002 | O23: 1 | P23: 0 | Q23: 9900000022 | R23: 2 | S23: 0 | T23: 9900000072 | U23: 1 | V23: 0 | W23: 9900001022 | X23: 1 | Y23: 0
A24: 9900010065 | B24: =Data!$A24-9900010000 -> 65 | C24: =IF(EXACT($B24,LOOKUP($B24,'INPUT '!$D$16:$D$116)),LOOKUP($B24,'INPUT '!$D$16:$D$116,'INPUT '!$E$16:$E$116),"0") -> 0 | D24: =IF(EXACT($B24,LOOKUP($B24,'INPUT '!$D$16:$D$116)),LOOKUP($B24,'INPUT '!$D$16:$D$116,'INPUT '!$F$16:$F$116),"0") -> 0 | E24: SPACER OF WOOD FIBRE, F INNER | F24: F | H24: 9900000065 | I24: 100 | J24: 0 | M24: 0 | N24: 9900000005 | O24: 1 | P24: 0 | Q24: 9900000025 | R24: 2 | S24: 0 | T24: 9900000075 | U24: 1 | V24: 0 | W24: 9900001025 | X24: 1 | Y24: 0
A25: 9900010066 | B25: =Data!$A25-9900010000 -> 66 | C25: =IF(EXACT($B25,LOOKUP($B25,'INPUT '!$D$16:$D$116)),LOOKUP($B25,'INPUT '!$D$16:$D$116,'INPUT '!$E$16:$E$116),"0") -> 0 | D25: =IF(EXACT($B25,LOOKUP($B25,'INPUT '!$D$16:$D$116)),LOOKUP($B25,'INPUT '!$D$16:$D$116,'INPUT '!$F$16:$F$116),"0") -> 0 | E25: SPACER OF WOOD FIBRE, G INNER | F25: G | H25: 9900000066 | I25: 100 | J25: 0 | M25: 0 | N25: 9900000006 | O25: 1 | P25: 0 | Q25: 9900000026 | R25: 2 | S25: 0 | T25: 9900000076 | U25: 1 | V25: 0 | W25: 9900001026 | X25: 1 | Y25: 0
A26: 9900010069 | B26: =Data!$A26-9900010000 -> 69 | C26: =IF(EXACT($B26,LOOKUP($B26,'INPUT '!$D$16:$D$116)),LOOKUP($B26,'INPUT '!$D$16:$D$116,'INPUT '!$E$16:$E$116),"0") -> 0 | D26: =IF(EXACT($B26,LOOKUP($B26,'INPUT '!$D$16:$D$116)),LOOKUP($B26,'INPUT '!$D$16:$D$116,'INPUT '!$F$16:$F$116),"0") -> 0 | E26: SPACER OF WOOD FIBRE, H INNER | F26: H | H26: 9900000069 | I26: 100 | J26: 0 | M26: 0 | N26: 9900000009 | O26: 1 | P26: 0 | Q26: 9900000029 | R26: 2 | S26: 0 | T26: 9900000079 | U26: 1 | V26: 0 | W26: 9900001029 | X26: 1 | Y26: 0
A27: 9900010071 | B27: =Data!$A27-9900010000 -> 71 | C27: =IF(EXACT($B27,LOOKUP($B27,'INPUT '!$D$16:$D$116)),LOOKUP($B27,'INPUT '!$D$16:$D$116,'INPUT '!$E$16:$E$116),"0") -> 0 | D27: =IF(EXACT($B27,LOOKUP($B27,'INPUT '!$D$16:$D$116)),LOOKUP($B27,'INPUT '!$D$16:$D$116,'INPUT '!$F$16:$F$116),"0") -> 0 | E27: LID OF PLYWOOD, TYPE L (Bundle) | F27: L | H27: 9900000071 | J27: 0 | M27: 0 | N27: 9900000001 | O27: 1 | P27: 0 | S27: 0 | T27: 9900000071 | U27: 25 | V27: 0 | Y27: 0
A28: 9900010072 | B28: =Data!$A28-9900010000 -> 72 | C28: =IF(EXACT($B28,LOOKUP($B28,'INPUT '!$D$16:$D$116)),LOOKUP($B28,'INPUT '!$D$16:$D$116,'INPUT '!$E$16:$E$116),"0") -> 0 | D28: =IF(EXACT($B28,LOOKUP($B28,'INPUT '!$D$16:$D$116)),LOOKUP($B28,'INPUT '!$D$16:$D$116,'INPUT '!$F$16:$F$116),"0") -> 0 | E28: LID OF PLYWOOD, TYPE K (Bundle) | F28: K | H28: 9900000072 | J28: 0 | M28: 0 | N28: 9900000002 | O28: 1 | P28: 0 | S28: 0 | T28: 9900000072 | U28: 25 | V28: 0 | Y28: 0
A29: 9900010075 | B29: =Data!$A29-9900010000 -> 75 | C29: =IF(EXACT($B29,LOOKUP($B29,'INPUT '!$D$16:$D$116)),LOOKUP($B29,'INPUT '!$D$16:$D$116,'INPUT '!$E$16:$E$116),"0") -> 0 | D29: =IF(EXACT($B29,LOOKUP($B29,'INPUT '!$D$16:$D$116)),LOOKUP($B29,'INPUT '!$D$16:$D$116,'INPUT '!$F$16:$F$116),"0") -> 0 | E29: LID OF PLYWOOD, TYPE F (Bundle) | F29: F | H29: 9900000075 | J29: 0 | M29: 0 | N29: 9900000005 | O29: 1 | P29: 0 | S29: 0 | T29: 9900000075 | U29: 25 | V29: 0 | Y29: 0
A30: 9900010076 | B30: =Data!$A30-9900010000 -> 76 | C30: =IF(EXACT($B30,LOOKUP($B30,'INPUT '!$D$16:$D$116)),LOOKUP($B30,'INPUT '!$D$16:$D$116,'INPUT '!$E$16:$E$116),"0") -> 0 | D30: =IF(EXACT($B30,LOOKUP($B30,'INPUT '!$D$16:$D$116)),LOOKUP($B30,'INPUT '!$D$16:$D$116,'INPUT '!$F$16:$F$116),"0") -> 0 | E30: LID OF PLYWOOD, TYPE G (Bundle) | F30: G | H30: 9900000076 | J30: 0 | M30: 0 | N30: 9900000006 | O30: 1 | P30: 0 | S30: 0 | T30: 9900000076 | U30: 25 | V30: 0 | Y30: 0
A31: 9900010079 | B31: =Data!$A31-9900010000 -> 79 | C31: =IF(EXACT($B31,LOOKUP($B31,'INPUT '!$D$16:$D$116)),LOOKUP($B31,'INPUT '!$D$16:$D$116,'INPUT '!$E$16:$E$116),"0") -> 0 | D31: =IF(EXACT($B31,LOOKUP($B31,'INPUT '!$D$16:$D$116)),LOOKUP($B31,'INPUT '!$D$16:$D$116,'INPUT '!$F$16:$F$116),"0") -> 0 | E31: LID OF PLYWOOD, TYPE H (Bundle) | F31: H | H31: 9900000079 | J31: 0 | M31: 0 | N31: 9900000009 | O31: 1 | P31: 0 | S31: 0 | T31: 9900000079 | U31: 25 | V31: 0 | Y31: 0
A32: 9900010081 | B32: =Data!$A32-9900010000 -> 81 | C32: =IF(EXACT($B32,LOOKUP($B32,'INPUT '!$D$16:$D$116)),LOOKUP($B32,'INPUT '!$D$16:$D$116,'INPUT '!$E$16:$E$116),"0") -> 0 | D32: =IF(EXACT($B32,LOOKUP($B32,'INPUT '!$D$16:$D$116)),LOOKUP($B32,'INPUT '!$D$16:$D$116,'INPUT '!$F$16:$F$116),"0") -> 0 | E32: SPACER OF PLASTIC, L INNER (Bundle) | F32: L | H32: 9900000081 | I32: 135 | J32: 0 | M32: 0 | N32: 9900000001 | O32: 1 | P32: 0 | Q32: 9900000021 | R32: 3 | S32: 0 | T32: 9900000071 | U32: 1 | V32: 0 | Y32: 0
A33: 9900010082 | B33: =Data!$A33-9900010000 -> 82 | C33: =IF(EXACT($B33,LOOKUP($B33,'INPUT '!$D$16:$D$116)),LOOKUP($B33,'INPUT '!$D$16:$D$116,'INPUT '!$E$16:$E$116),"0") -> 0 | D33: =IF(EXACT($B33,LOOKUP($B33,'INPUT '!$D$16:$D$116)),LOOKUP($B33,'INPUT '!$D$16:$D$116,'INPUT '!$F$16:$F$116),"0") -> 0 | E33: SPACER OF PLASTIC, K INNER (Bundle) | F33: K | H33: 9900000082 | I33: 90 | J33: 0 | M33: 0 | N33: 9900000002 | O33: 1 | P33: 0 | Q33: 9900000022 | R33: 2 | S33: 0 | T33: 9900000072 | U33: 1 | V33: 0 | Y33: 0
A34: 9900010091 | B34: =Data!$A34-9900010000 -> 91 | C34: =IF(EXACT($B34,LOOKUP($B34,'INPUT '!$D$16:$D$116)),LOOKUP($B34,'INPUT '!$D$16:$D$116,'INPUT '!$E$16:$E$116),"0") -> 0 | D34: =IF(EXACT($B34,LOOKUP($B34,'INPUT '!$D$16:$D$116)),LOOKUP($B34,'INPUT '!$D$16:$D$116,'INPUT '!$F$16:$F$116),"0") -> 0 | E34: LID OF PLASTIC (Bundle) | F34: L | H34: 9900000091 | J34: 0 | M34: 0 | N34: 9900000001 | O34: 1 | P34: 0 | S34: 0 | T34: 9900000091 | U34: 25 | V34: 0 | Y34: 0
A35: 9900010092 | B35: =Data!$A35-9900010000 -> 92 | C35: =IF(EXACT($B35,LOOKUP($B35,'INPUT '!$D$16:$D$116)),LOOKUP($B35,'INPUT '!$D$16:$D$116,'INPUT '!$E$16:$E$116),"0") -> 0 | D35: =IF(EXACT($B35,LOOKUP($B35,'INPUT '!$D$16:$D$116)),LOOKUP($B35,'INPUT '!$D$16:$D$116,'INPUT '!$F$16:$F$116),"0") -> 0 | E35: LID OF PLASTIC (Bundle) | F35: K | H35: 9900000092 | J35: 0 | M35: 0 | N35: 9900000002 | O35: 1 | P35: 0 | S35: 0 | T35: 9900000092 | U35: 25 | V35: 0 | Y35: 0
A36: 9900010099 | B36: =Data!$A36-9900010000 -> 99 | C36: =IF(EXACT($B36,LOOKUP($B36,'INPUT '!$D$16:$D$116)),LOOKUP($B36,'INPUT '!$D$16:$D$116,'INPUT '!$E$16:$E$116),"0") -> 0 | D36: =IF(EXACT($B36,LOOKUP($B36,'INPUT '!$D$16:$D$116)),LOOKUP($B36,'INPUT '!$D$16:$D$116,'INPUT '!$F$16:$F$116),"0") -> 0 | E36: BAG OF PLASTIC (5L) | H36: 9900000099 | I36: 3200 | J36: =I36*C36 -> 0 | M36: =L36*C36 -> 0 | N36: 9900000001 | O36: 1 | P36: 0 | Q36: 9900000021 | R36: 2 | S36: 0 | T36: 9900000071 | U36: 1 | V36: 0 | Y36: 0
A37: 9900010107 | B37: =Data!$A37-9900010000 -> 107 | C37: =IF(EXACT($B37,LOOKUP($B37,'INPUT '!$D$16:$D$116)),LOOKUP($B37,'INPUT '!$D$16:$D$116,'INPUT '!$E$16:$E$116),"0") -> 0 | D37: =IF(EXACT($B37,LOOKUP($B37,'INPUT '!$D$16:$D$116)),LOOKUP($B37,'INPUT '!$D$16:$D$116,'INPUT '!$F$16:$F$116),"0") -> 0 | E37: PALLET OF WOOD (Bundle) | H37: 9900000107 | I37: 1 | J37: 0 | M37: 0 | P37: 0 | S37: 0 | V37: 0 | Y37: 0
A38: 9900010116 | B38: =Data!$A38-9900010000 -> 116 | C38: =IF(EXACT($B38,LOOKUP($B38,'INPUT '!$D$16:$D$116)),LOOKUP($B38,'INPUT '!$D$16:$D$116,'INPUT '!$E$16:$E$116),"0") -> 0 | D38: =IF(EXACT($B38,LOOKUP($B38,'INPUT '!$D$16:$D$116)),LOOKUP($B38,'INPUT '!$D$16:$D$116,'INPUT '!$F$16:$F$116),"0") -> 0 | E38: SPACER OF FLEX TEXTILE | F38: L | H38: 9900000116 | I38: 150 | J38: =I38*C38 -> 0 | M38: =L38*C38 -> 0 | N38: 9900000001 | O38: 1 | P38: 0 | Q38: 9900000021 | R38: 3 | S38: 0 | T38: 9900000071 | U38: 1 | V38: 0 | W38: 9900001031 | X38: 1 | Y38: 0
A39: 9900010119 | B39: =Data!$A39-9900010000 -> 119 | C39: =IF(EXACT($B39,LOOKUP($B39,'INPUT '!$D$16:$D$116)),LOOKUP($B39,'INPUT '!$D$16:$D$116,'INPUT '!$E$16:$E$116),"0") -> 0 | D39: =IF(EXACT($B39,LOOKUP($B39,'INPUT '!$D$16:$D$116)),LOOKUP($B39,'INPUT '!$D$16:$D$116,'INPUT '!$F$16:$F$116),"0") -> 0 | E39: SPACER OF CORR.BOARD/FOAM | F39: L | H39: 9900000119 | I39: 200 | J39: 0 | M39: 0 | N39: 9900000001 | O39: 1 | P39: 0 | Q39: 9900000021 | R39: 3 | S39: 0 | T39: 9900000071 | U39: 1 | V39: 0 | W39: 9900001041 | X39: 1 | Y39: 0
A40: 9900010121 | B40: =Data!$A40-9900010000 -> 121 | C40: =IF(EXACT($B40,LOOKUP($B40,'INPUT '!$D$16:$D$116)),LOOKUP($B40,'INPUT '!$D$16:$D$116,'INPUT '!$E$16:$E$116),"0") -> 0 | D40: =IF(EXACT($B40,LOOKUP($B40,'INPUT '!$D$16:$D$116)),LOOKUP($B40,'INPUT '!$D$16:$D$116,'INPUT '!$F$16:$F$116),"0") -> 0 | E40: SPACER OF FLEX TEXTILE | F40: L | H40: 9900000121 | I40: 200 | J40: 0 | M40: 0 | N40: 9900000001 | O40: 1 | P40: 0 | Q40: 9900000021 | R40: 3 | S40: 0 | T40: 9900000071 | U40: 1 | V40: 0 | W40: 9900001031 | X40: 1 | Y40: 0
A41: 9900010140 | B41: =Data!$A41-9900010000 -> 140 | C41: =IF(EXACT($B41,LOOKUP($B41,'INPUT '!$D$16:$D$116)),LOOKUP($B41,'INPUT '!$D$16:$D$116,'INPUT '!$E$16:$E$116),"0") -> 0 | D41: =IF(EXACT($B41,LOOKUP($B41,'INPUT '!$D$16:$D$116)),LOOKUP($B41,'INPUT '!$D$16:$D$116,'INPUT '!$F$16:$F$116),"0") -> 0 | E41: COMBITAINER | F41: L | H41: 9900000140 | J41: 0 | K41: 9900000105 | L41: 4 | M41: 0 | N41: 9900000001 | O41: 4 | P41: 0 | Q41: 9900000140 | R41: 4 | S41: 0 | T41: 9900000191 | U41: 4 | V41: 0 | Y41: 0
A42: 9900010141 | B42: =Data!$A42-9900010000 -> 141 | C42: =IF(EXACT($B42,LOOKUP($B42,'INPUT '!$D$16:$D$116)),LOOKUP($B42,'INPUT '!$D$16:$D$116,'INPUT '!$E$16:$E$116),"0") -> 0 | D42: =IF(EXACT($B42,LOOKUP($B42,'INPUT '!$D$16:$D$116)),LOOKUP($B42,'INPUT '!$D$16:$D$116,'INPUT '!$F$16:$F$116),"0") -> 0 | E42: PSC- PALLET | H42: 9900020141 | I42: 4 | J42: =I42*C42 -> 0 | M42: =L42*C42 -> 0 | P42: =O42*C42 -> 0 | S42: 0 | V42: =U42*C42 -> 0 | Y42: =X42*C42 -> 0
A43: 9900010142 | B43: =Data!$A43-9900010000 -> 142 | C43: =IF(EXACT($B43,LOOKUP($B43,'INPUT '!$D$16:$D$116)),LOOKUP($B43,'INPUT '!$D$16:$D$116,'INPUT '!$E$16:$E$116),"0") -> 0 | D43: =IF(EXACT($B43,LOOKUP($B43,'INPUT '!$D$16:$D$116)),LOOKUP($B43,'INPUT '!$D$16:$D$116,'INPUT '!$F$16:$F$116),"0") -> 0 | E43: PSC- SLEEVE | H43: 9900000142 | I43: 1 | J43: =I43*C43 -> 0 | M43: =L43*C43 -> 0 | N43: 9900000141 | O43: 1 | P43: =O43*C43 -> 0 | S43: 0 | T43: 9900000143 | U43: 1 | V43: =U43*C43 -> 0 | Y43: =X43*C43 -> 0
A44: 9900010143 | B44: =Data!$A44-9900010000 -> 143 | C44: =IF(EXACT($B44,LOOKUP($B44,'INPUT '!$D$16:$D$116)),LOOKUP($B44,'INPUT '!$D$16:$D$116,'INPUT '!$E$16:$E$116),"0") -> 0 | D44: =IF(EXACT($B44,LOOKUP($B44,'INPUT '!$D$16:$D$116)),LOOKUP($B44,'INPUT '!$D$16:$D$116,'INPUT '!$F$16:$F$116),"0") -> 0 | E44: PSC- LID | H44: 9900000143 | I44: 0 | J44: =I44*C44 -> 0 | M44: =L44*C44 -> 0 | P44: =O44*C44 -> 0 | S44: 0 | V44: =U44*C44 -> 0 | Y44: =X44*C44 -> 0
A45: 9900010153 | B45: =Data!$A45-9900010000 -> 153 | C45: =IF(EXACT($B45,LOOKUP($B45,'INPUT '!$D$16:$D$116)),LOOKUP($B45,'INPUT '!$D$16:$D$116,'INPUT '!$E$16:$E$116),"0") -> 0 | D45: =IF(EXACT($B45,LOOKUP($B45,'INPUT '!$D$16:$D$116)),LOOKUP($B45,'INPUT '!$D$16:$D$116,'INPUT '!$F$16:$F$116),"0") -> 0 | E45: GOODS LABEL HOLDER | F45: L | H45: 9900000153 | I45: 500 | J45: 0 | M45: 0 | N45: 9900000001 | O45: 1 | P45: 0 | S45: 0 | T45: 9900000071 | U45: 1 | V45: 0 | Y45: 0
A46: 9900010156 | B46: =Data!$A46-9900010000 -> 156 | C46: =IF(EXACT($B46,LOOKUP($B46,'INPUT '!$D$16:$D$116)),LOOKUP($B46,'INPUT '!$D$16:$D$116,'INPUT '!$E$16:$E$116),"0") -> 0 | D46: =IF(EXACT($B46,LOOKUP($B46,'INPUT '!$D$16:$D$116)),LOOKUP($B46,'INPUT '!$D$16:$D$116,'INPUT '!$F$16:$F$116),"0") -> 0 | E46: BOX OF CORRUGATED BOARD | F46: L | H46: 9900000156 | I46: 1620 | J46: =I46*C46 -> 0 | M46: =L46*C46 -> 0 | N46: 9900000001 | O46: 1 | P46: =O46*C46 -> 0 | S46: 0 | V46: =U46*C46 -> 0 | Y46: =X46*C46 -> 0
A47: 9900010170 | B47: =Data!$A47-9900010000 -> 170 | C47: =IF(EXACT($B47,LOOKUP($B47,'INPUT '!$D$16:$D$116)),LOOKUP($B47,'INPUT '!$D$16:$D$116,'INPUT '!$E$16:$E$116),"0") -> 0 | D47: =IF(EXACT($B47,LOOKUP($B47,'INPUT '!$D$16:$D$116)),LOOKUP($B47,'INPUT '!$D$16:$D$116,'INPUT '!$F$16:$F$116),"0") -> 0 | E47: RACK OF STEEL | H47: 9900000170 | I47: 1 | J47: 0 | M47: 0 | P47: 0 | S47: 0 | V47: 0 | Y47: 0
A48: 9900010175 | B48: =Data!$A48-9900010000 -> 175 | C48: =IF(EXACT($B48,LOOKUP($B48,'INPUT '!$D$16:$D$116)),LOOKUP($B48,'INPUT '!$D$16:$D$116,'INPUT '!$E$16:$E$116),"0") -> 0 | D48: =IF(EXACT($B48,LOOKUP($B48,'INPUT '!$D$16:$D$116)),LOOKUP($B48,'INPUT '!$D$16:$D$116,'INPUT '!$F$16:$F$116),"0") -> 0 | E48: BATTEN OF WOOD | H48: 9900000175 | I48: 104 | J48: 0 | M48: 0 | N48: 9900000001 | O48: 1 | P48: 0 | Q48: 9900000021 | R48: 2 | S48: 0 | T48: 9900000071 | U48: 1 | V48: 0 | Y48: 0
A49: 9900010176 | B49: =Data!$A49-9900010000 -> 176 | C49: =IF(EXACT($B49,LOOKUP($B49,'INPUT '!$D$16:$D$116)),LOOKUP($B49,'INPUT '!$D$16:$D$116,'INPUT '!$E$16:$E$116),"0") -> 0 | D49: =IF(EXACT($B49,LOOKUP($B49,'INPUT '!$D$16:$D$116)),LOOKUP($B49,'INPUT '!$D$16:$D$116,'INPUT '!$F$16:$F$116),"0") -> 0 | E49: BATTEN OF WOOD | H49: 9900000176 | I49: 100 | J49: 0 | M49: 0 | N49: 9900000001 | O49: 1 | P49: 0 | Q49: 9900000021 | R49: 2 | S49: 0 | T49: 9900000071 | U49: 1 | V49: 0 | Y49: 0
A50: 9900010190 | B50: =Data!$A50-9900010000 -> 190 | C50: =IF(EXACT($B50,LOOKUP($B50,'INPUT '!$D$16:$D$116)),LOOKUP($B50,'INPUT '!$D$16:$D$116,'INPUT '!$E$16:$E$116),"0") -> 0 | D50: =IF(EXACT($B50,LOOKUP($B50,'INPUT '!$D$16:$D$116)),LOOKUP($B50,'INPUT '!$D$16:$D$116,'INPUT '!$F$16:$F$116),"0") -> 0 | E50: PALLET OF PLASTIC | H50: 9900020190 | I50: 1 | J50: 0 | M50: 0 | P50: 0 | S50: 0 | V50: 0 | Y50: 0
A51: 9900010191 | B51: =Data!$A51-9900010000 -> 191 | C51: =IF(EXACT($B51,LOOKUP($B51,'INPUT '!$D$16:$D$116)),LOOKUP($B51,'INPUT '!$D$16:$D$116,'INPUT '!$E$16:$E$116),"0") -> 0 | D51: =IF(EXACT($B51,LOOKUP($B51,'INPUT '!$D$16:$D$116)),LOOKUP($B51,'INPUT '!$D$16:$D$116,'INPUT '!$F$16:$F$116),"0") -> 0 | E51: LID OF PLASTIC | H51: 9900000191 | I51: 1 | J51: 0 | M51: 0 | P51: 0 | S51: 0 | V51: 0 | Y51: 0
A52: 9900010215 | B52: =Data!$A52-9900010000 -> 215 | C52: =IF(EXACT($B52,LOOKUP($B52,'INPUT '!$D$16:$D$116)),LOOKUP($B52,'INPUT '!$D$16:$D$116,'INPUT '!$E$16:$E$116),"0") -> 0 | D52: =IF(EXACT($B52,LOOKUP($B52,'INPUT '!$D$16:$D$116)),LOOKUP($B52,'INPUT '!$D$16:$D$116,'INPUT '!$F$16:$F$116),"0") -> 0 | E52: RACK OF STEEL | H52: 9900000215 | I52: 10 | J52: 0 | M52: 0 | P52: 0 | S52: 0 | V52: 0 | Y52: 0
A53: 9900010233 | B53: =Data!$A53-9900010000 -> 233 | C53: =IF(EXACT($B53,LOOKUP($B53,'INPUT '!$D$16:$D$116)),LOOKUP($B53,'INPUT '!$D$16:$D$116,'INPUT '!$E$16:$E$116),"0") -> 0 | D53: =IF(EXACT($B53,LOOKUP($B53,'INPUT '!$D$16:$D$116)),LOOKUP($B53,'INPUT '!$D$16:$D$116,'INPUT '!$F$16:$F$116),"0") -> 0 | E53: SUPPORT OF STEEL | F53: L | H53: 9900000233 | I53: 20 | J53: 0 | M53: 0 | N53: 9900000001 | O53: 1 | P53: 0 | Q53: 9900000021 | R53: 3 | S53: 0 | T53: 9900000071 | U53: 1 | V53: 0 | Y53: 0
A54: 9900010234 | B54: =Data!$A54-9900010000 -> 234 | C54: =IF(EXACT($B54,LOOKUP($B54,'INPUT '!$D$16:$D$116)),LOOKUP($B54,'INPUT '!$D$16:$D$116,'INPUT '!$E$16:$E$116),"0") -> 0 | D54: =IF(EXACT($B54,LOOKUP($B54,'INPUT '!$D$16:$D$116)),LOOKUP($B54,'INPUT '!$D$16:$D$116,'INPUT '!$F$16:$F$116),"0") -> 0 | E54: SUPPORT OF STEEL | F54: L | H54: 9900000234 | I54: 15 | J54: 0 | M54: 0 | N54: 9900000001 | O54: 1 | P54: 0 | Q54: 9900000021 | R54: 4 | S54: 0 | T54: 9900000071 | U54: 1 | V54: 0 | Y54: 0
A55: 9900010236 | B55: =Data!$A55-9900010000 -> 236 | C55: =IF(EXACT($B55,LOOKUP($B55,'INPUT '!$D$16:$D$116)),LOOKUP($B55,'INPUT '!$D$16:$D$116,'INPUT '!$E$16:$E$116),"0") -> 0 | D55: =IF(EXACT($B55,LOOKUP($B55,'INPUT '!$D$16:$D$116)),LOOKUP($B55,'INPUT '!$D$16:$D$116,'INPUT '!$F$16:$F$116),"0") -> 0 | E55: LID OF PLYWOOD | F55: F | H55: 9900000236 | J55: 0 | M55: 0 | N55: 9900000005 | O55: 1 | P55: 0 | S55: 0 | T55: 9900000236 | U55: 18 | V55: 0 | Y55: 0
A56: 9900010260 | B56: =Data!$A56-9900010000 -> 260 | C56: =IF(EXACT($B56,LOOKUP($B56,'INPUT '!$D$16:$D$116)),LOOKUP($B56,'INPUT '!$D$16:$D$116,'INPUT '!$E$16:$E$116),"0") -> 0 | D56: =IF(EXACT($B56,LOOKUP($B56,'INPUT '!$D$16:$D$116)),LOOKUP($B56,'INPUT '!$D$16:$D$116,'INPUT '!$F$16:$F$116),"0") -> 0 | E56: SPACER OF FOAM | F56: L | H56: 9900000260 | I56: 80 | J56: 0 | M56: 0 | N56: 9900000001 | O56: 1 | P56: 0 | Q56: 9900000021 | R56: 4 | S56: 0 | T56: 9900000071 | U56: 1 | V56: 0 | W56: 9900001041 | X56: 1 | Y56: 0
A57: 9900010262 | B57: =Data!$A57-9900010000 -> 262 | C57: =IF(EXACT($B57,LOOKUP($B57,'INPUT '!$D$16:$D$116)),LOOKUP($B57,'INPUT '!$D$16:$D$116,'INPUT '!$E$16:$E$116),"0") -> 0 | D57: =IF(EXACT($B57,LOOKUP($B57,'INPUT '!$D$16:$D$116)),LOOKUP($B57,'INPUT '!$D$16:$D$116,'INPUT '!$F$16:$F$116),"0") -> 0 | E57: BATTEN OF WOOD | H57: 9900000262 | I57: 112 | J57: =I57*C57 -> 0 | M57: =L57*C57 -> 0 | N57: 9900000001 | O57: 1 | P57: 0 | Q57: 9900000021 | R57: 2 | S57: 0 | T57: 9900000071 | U57: 1 | V57: 0 | Y57: =X57*C57 -> 0
A58: 9900010268 | B58: =Data!$A58-9900010000 -> 268 | C58: =IF(EXACT($B58,LOOKUP($B58,'INPUT '!$D$16:$D$116)),LOOKUP($B58,'INPUT '!$D$16:$D$116,'INPUT '!$E$16:$E$116),"0") -> 0 | D58: =IF(EXACT($B58,LOOKUP($B58,'INPUT '!$D$16:$D$116)),LOOKUP($B58,'INPUT '!$D$16:$D$116,'INPUT '!$F$16:$F$116),"0") -> 0 | E58: SPACER OF CARDBOARD | F58: L | H58: 9900000268 | I58: 1000 | J58: =I58*C58 -> 0 | M58: =L58*C58 -> 0 | N58: 9900000001 | O58: 1 | P58: =O58*C58 -> 0 | S58: 0 | T58: 9900000071 | U58: 1 | V58: =U58*C58 -> 0 | Y58: =X58*C58 -> 0
A59: 9900010270 | B59: =Data!$A59-9900010000 -> 270 | C59: =IF(EXACT($B59,LOOKUP($B59,'INPUT '!$D$16:$D$116)),LOOKUP($B59,'INPUT '!$D$16:$D$116,'INPUT '!$E$16:$E$116),"0") -> 0 | D59: =IF(EXACT($B59,LOOKUP($B59,'INPUT '!$D$16:$D$116)),LOOKUP($B59,'INPUT '!$D$16:$D$116,'INPUT '!$F$16:$F$116),"0") -> 0 | E59: SPACER OF WOOD | F59: G | H59: 9900000270 | I59: 170 | J59: 0 | M59: 0 | N59: 9900000006 | O59: 1 | P59: 0 | Q59: 9900000026 | R59: 2 | S59: 0 | T59: 9900000076 | U59: 1 | V59: 0 | W59: 9900001026 | X59: 1 | Y59: 0
A60: 9900010274 | B60: =Data!$A60-9900010000 -> 274 | C60: =IF(EXACT($B60,LOOKUP($B60,'INPUT '!$D$16:$D$116)),LOOKUP($B60,'INPUT '!$D$16:$D$116,'INPUT '!$E$16:$E$116),"0") -> 0 | D60: =IF(EXACT($B60,LOOKUP($B60,'INPUT '!$D$16:$D$116)),LOOKUP($B60,'INPUT '!$D$16:$D$116,'INPUT '!$F$16:$F$116),"0") -> 0 | E60: SPACER OF PLASTIC | H60: 9900000274 | I60: 100 | J60: 0 | M60: 0 | N60: 9900000001 | O60: 1 | P60: 0 | Q60: 9900000021 | R60: 3 | S60: 0 | T60: 9900000071 | U60: 1 | V60: 0 | W60: 9900001031 | X60: 1 | Y60: 0
A61: 9900010284 | B61: =Data!$A61-9900010000 -> 284 | C61: =IF(EXACT($B61,LOOKUP($B61,'INPUT '!$D$16:$D$116)),LOOKUP($B61,'INPUT '!$D$16:$D$116,'INPUT '!$E$16:$E$116),"0") -> 0 | D61: =IF(EXACT($B61,LOOKUP($B61,'INPUT '!$D$16:$D$116)),LOOKUP($B61,'INPUT '!$D$16:$D$116,'INPUT '!$F$16:$F$116),"0") -> 0 | E61: RACK OF STEEL | H61: 9900000284 | I61: 1 | J61: 0 | M61: 0 | P61: 0 | S61: 0 | V61: 0 | Y61: 0
A62: 9900010285 | B62: =Data!$A62-9900010000 -> 285 | C62: =IF(EXACT($B62,LOOKUP($B62,'INPUT '!$D$16:$D$116)),LOOKUP($B62,'INPUT '!$D$16:$D$116,'INPUT '!$E$16:$E$116),"0") -> 0 | D62: =IF(EXACT($B62,LOOKUP($B62,'INPUT '!$D$16:$D$116)),LOOKUP($B62,'INPUT '!$D$16:$D$116,'INPUT '!$F$16:$F$116),"0") -> 0 | E62: RACK OF STEEL | H62: 9900000285 | I62: 1 | J62: 0 | M62: 0 | P62: 0 | S62: 0 | V62: 0 | Y62: 0
A63: 9900010287 | B63: =Data!$A63-9900010000 -> 287 | C63: =IF(EXACT($B63,LOOKUP($B63,'INPUT '!$D$16:$D$116)),LOOKUP($B63,'INPUT '!$D$16:$D$116,'INPUT '!$E$16:$E$116),"0") -> 0 | D63: =IF(EXACT($B63,LOOKUP($B63,'INPUT '!$D$16:$D$116)),LOOKUP($B63,'INPUT '!$D$16:$D$116,'INPUT '!$F$16:$F$116),"0") -> 0 | E63: RACK OF STEEL | H63: 9900000287 | I63: 8 | J63: 0 | M63: 0 | P63: 0 | S63: 0 | V63: 0 | Y63: 0
A64: 9900010288 | B64: =Data!$A64-9900010000 -> 288 | C64: =IF(EXACT($B64,LOOKUP($B64,'INPUT '!$D$16:$D$116)),LOOKUP($B64,'INPUT '!$D$16:$D$116,'INPUT '!$E$16:$E$116),"0") -> 0 | D64: =IF(EXACT($B64,LOOKUP($B64,'INPUT '!$D$16:$D$116)),LOOKUP($B64,'INPUT '!$D$16:$D$116,'INPUT '!$F$16:$F$116),"0") -> 0 | E64: FIXING SPACER OF STEEL/ALU | H64: 9900000288 | I64: 80 | J64: 0 | M64: 0 | N64: 9900000724 | O64: 1 | P64: 0 | Q64: 9900000725 | R64: 1 | S64: 0 | T64: 9900000726 | U64: 1 | V64: 0 | Y64: 0
A65: 9900010291 | B65: =Data!$A65-9900010000 -> 291 | C65: =IF(EXACT($B65,LOOKUP($B65,'INPUT '!$D$16:$D$116)),LOOKUP($B65,'INPUT '!$D$16:$D$116,'INPUT '!$E$16:$E$116),"0") -> 0 | D65: =IF(EXACT($B65,LOOKUP($B65,'INPUT '!$D$16:$D$116)),LOOKUP($B65,'INPUT '!$D$16:$D$116,'INPUT '!$F$16:$F$116),"0") -> 0 | E65: PLASTIC CONTAINER FSC | H65: 9900000291 | I65: 1 | J65: 0 | M65: 0 | P65: 0 | S65: 0 | V65: 0 | Y65: 0
A66: 9900010292 | B66: =Data!$A66-9900010000 -> 292 | C66: =IF(EXACT($B66,LOOKUP($B66,'INPUT '!$D$16:$D$116)),LOOKUP($B66,'INPUT '!$D$16:$D$116,'INPUT '!$E$16:$E$116),"0") -> 0 | D66: =IF(EXACT($B66,LOOKUP($B66,'INPUT '!$D$16:$D$116)),LOOKUP($B66,'INPUT '!$D$16:$D$116,'INPUT '!$F$16:$F$116),"0") -> 0 | E66: PLASTIC CONTAINER FLC | H66: 9900000292 | I66: 1 | J66: 0 | M66: 0 | P66: 0 | S66: =R66*C66 -> 0 | V66: 0 | Y66: 0
A67: 9900010293 | B67: =Data!$A67-9900010000 -> 293 | C67: =IF(EXACT($B67,LOOKUP($B67,'INPUT '!$D$16:$D$116)),LOOKUP($B67,'INPUT '!$D$16:$D$116,'INPUT '!$E$16:$E$116),"0") -> 0 | D67: =IF(EXACT($B67,LOOKUP($B67,'INPUT '!$D$16:$D$116)),LOOKUP($B67,'INPUT '!$D$16:$D$116,'INPUT '!$F$16:$F$116),"0") -> 0 | E67: PLASTIC CONTAINER FHC | H67: 9900000293 | I67: 1 | J67: 0 | M67: 0 | P67: 0 | S67: 0 | V67: 0 | Y67: 0
A68: 9900010296 | B68: =Data!$A68-9900010000 -> 296 | C68: =IF(EXACT($B68,LOOKUP($B68,'INPUT '!$D$16:$D$116)),LOOKUP($B68,'INPUT '!$D$16:$D$116,'INPUT '!$E$16:$E$116),"0") -> 0 | D68: =IF(EXACT($B68,LOOKUP($B68,'INPUT '!$D$16:$D$116)),LOOKUP($B68,'INPUT '!$D$16:$D$116,'INPUT '!$F$16:$F$116),"0") -> 0 | E68: DUST COVER VOLVO FXC | H68: 9900000296 | I68: 1 | J68: 0 | M68: 0 | P68: 0 | S68: 0 | V68: 0 | Y68: 0
A69: 9900010297 | B69: =Data!$A69-9900010000 -> 297 | C69: =IF(EXACT($B69,LOOKUP($B69,'INPUT '!$D$16:$D$116)),LOOKUP($B69,'INPUT '!$D$16:$D$116,'INPUT '!$E$16:$E$116),"0") -> 0 | D69: =IF(EXACT($B69,LOOKUP($B69,'INPUT '!$D$16:$D$116)),LOOKUP($B69,'INPUT '!$D$16:$D$116,'INPUT '!$F$16:$F$116),"0") -> 0 | E69: Spacer of card /foam | H69: 9900000297 | I69: 250 | J69: 0 | K69: 9900000292 | L69: 1 | M69: 0 | P69: 0 | S69: 0 | V69: 0 | W69: 9900000299 | X69: 1 | Y69: 0
A70: 9900010299 | B70: =Data!$A70-9900010000 -> 299 | C70: =IF(EXACT($B70,LOOKUP($B70,'INPUT '!$D$16:$D$116)),LOOKUP($B70,'INPUT '!$D$16:$D$116,'INPUT '!$E$16:$E$116),"0") -> 0 | D70: =IF(EXACT($B70,LOOKUP($B70,'INPUT '!$D$16:$D$116)),LOOKUP($B70,'INPUT '!$D$16:$D$116,'INPUT '!$F$16:$F$116),"0") -> 0 | E70: PLASTIC COVER | H70: 9900000299 | J70: 0 | M70: 0 | N70: 9900000001 | O70: 1 | P70: 0 | S70: 0 | V70: 0 | W70: 9900000299 | X70: 1000 | Y70: 0
A71: 9900010340 | B71: =Data!$A71-9900010000 -> 340 | C71: =IF(EXACT($B71,LOOKUP($B71,'INPUT '!$D$16:$D$116)),LOOKUP($B71,'INPUT '!$D$16:$D$116,'INPUT '!$E$16:$E$116),"0") -> 0 | D71: =IF(EXACT($B71,LOOKUP($B71,'INPUT '!$D$16:$D$116)),LOOKUP($B71,'INPUT '!$D$16:$D$116,'INPUT '!$F$16:$F$116),"0") -> 0 | E71: SUPPORT OF CELL.PLASTIC | H71: 9900000340 | I71: 63 | J71: 0 | M71: 0 | N71: 9900000001 | O71: 1 | P71: 0 | Q71: 9900000021 | R71: 4 | S71: 0 | T71: 9900000071 | U71: 1 | V71: 0 | W71: 9900001041 | X71: 1 | Y71: 0
A72: 9900010341 | B72: =Data!$A72-9900010000 -> 341 | C72: =IF(EXACT($B72,LOOKUP($B72,'INPUT '!$D$16:$D$116)),LOOKUP($B72,'INPUT '!$D$16:$D$116,'INPUT '!$E$16:$E$116),"0") -> 0 | D72: =IF(EXACT($B72,LOOKUP($B72,'INPUT '!$D$16:$D$116)),LOOKUP($B72,'INPUT '!$D$16:$D$116,'INPUT '!$F$16:$F$116),"0") -> 0 | E72: SUPPORT OF CELL.PLASTIC | H72: 9900000341 | I72: 46 | J72: 0 | M72: 0 | N72: 9900000001 | O72: 1 | P72: 0 | Q72: 9900000021 | R72: 4 | S72: 0 | T72: 9900000071 | U72: 1 | V72: 0 | W72: 9900001041 | X72: 1 | Y72: 0
A73: 9900010358 | B73: =Data!$A73-9900010000 -> 358 | C73: =IF(EXACT($B73,LOOKUP($B73,'INPUT '!$D$16:$D$116)),LOOKUP($B73,'INPUT '!$D$16:$D$116,'INPUT '!$E$16:$E$116),"0") -> 0 | D73: =IF(EXACT($B73,LOOKUP($B73,'INPUT '!$D$16:$D$116)),LOOKUP($B73,'INPUT '!$D$16:$D$116,'INPUT '!$F$16:$F$116),"0") -> 0 | E73: SPACER OF WOOD | H73: 9900000358 | I73: 172 | J73: 0 | M73: 0 | N73: 9900000001 | O73: 1 | P73: 0 | Q73: 9900000021 | R73: 4 | S73: 0 | T73: 9900000071 | U73: 1 | V73: 0 | Y73: 0
A74: 9900010365 | B74: =Data!$A74-9900010000 -> 365 | C74: =IF(EXACT($B74,LOOKUP($B74,'INPUT '!$D$16:$D$116)),LOOKUP($B74,'INPUT '!$D$16:$D$116,'INPUT '!$E$16:$E$116),"0") -> 0 | D74: =IF(EXACT($B74,LOOKUP($B74,'INPUT '!$D$16:$D$116)),LOOKUP($B74,'INPUT '!$D$16:$D$116,'INPUT '!$F$16:$F$116),"0") -> 0 | E74: HANGER OF STEEL | H74: 9900000365 | I74: 1 | J74: 0 | M74: 0 | P74: 0 | S74: 0 | V74: 0 | Y74: 0
A75: 9900010387 | B75: =Data!$A75-9900010000 -> 387 | C75: =IF(EXACT($B75,LOOKUP($B75,'INPUT '!$D$16:$D$116)),LOOKUP($B75,'INPUT '!$D$16:$D$116,'INPUT '!$E$16:$E$116),"0") -> 0 | D75: =IF(EXACT($B75,LOOKUP($B75,'INPUT '!$D$16:$D$116)),LOOKUP($B75,'INPUT '!$D$16:$D$116,'INPUT '!$F$16:$F$116),"0") -> 0 | E75: RACK OF STEEL | H75: 9900000387 | I75: 1 | J75: 0 | M75: 0 | P75: 0 | S75: 0 | V75: 0 | Y75: 0
A76: 9900010394 | B76: =Data!$A76-9900010000 -> 394 | C76: =IF(EXACT($B76,LOOKUP($B76,'INPUT '!$D$16:$D$116)),LOOKUP($B76,'INPUT '!$D$16:$D$116,'INPUT '!$E$16:$E$116),"0") -> 0 | D76: =IF(EXACT($B76,LOOKUP($B76,'INPUT '!$D$16:$D$116)),LOOKUP($B76,'INPUT '!$D$16:$D$116,'INPUT '!$F$16:$F$116),"0") -> 0 | E76: RACK OF STEEL | H76: 9900000394 | I76: 1 | J76: 0 | M76: 0 | P76: 0 | S76: 0 | V76: 0 | Y76: 0
A77: 9900010399 | B77: =Data!$A77-9900010000 -> 399 | C77: =IF(EXACT($B77,LOOKUP($B77,'INPUT '!$D$16:$D$116)),LOOKUP($B77,'INPUT '!$D$16:$D$116,'INPUT '!$E$16:$E$116),"0") -> 0 | D77: =IF(EXACT($B77,LOOKUP($B77,'INPUT '!$D$16:$D$116)),LOOKUP($B77,'INPUT '!$D$16:$D$116,'INPUT '!$F$16:$F$116),"0") -> 0 | E77: SPACER OF PLASTIC / FOAM | F77: L | H77: 9900000399 | I77: 100 | J77: 0 | M77: 0 | N77: 9900000001 | O77: 1 | P77: 0 | Q77: 9900000021 | R77: 4 | S77: 0 | T77: 9900000071 | U77: 1 | V77: 0 | W77: 9900001041 | X77: 1 | Y77: 0
A78: 9900010400 | B78: =Data!$A78-9900010000 -> 400 | C78: =IF(EXACT($B78,LOOKUP($B78,'INPUT '!$D$16:$D$116)),LOOKUP($B78,'INPUT '!$D$16:$D$116,'INPUT '!$E$16:$E$116),"0") -> 0 | D78: =IF(EXACT($B78,LOOKUP($B78,'INPUT '!$D$16:$D$116)),LOOKUP($B78,'INPUT '!$D$16:$D$116,'INPUT '!$F$16:$F$116),"0") -> 0 | E78: COMBITAINER | H78: 9900000400 | I78: 1 | J78: 0 | M78: 0 | P78: 0 | S78: 0 | V78: 0 | Y78: 0
A79: 9900010402 | B79: =Data!$A79-9900010000 -> 402 | C79: =IF(EXACT($B79,LOOKUP($B79,'INPUT '!$D$16:$D$116)),LOOKUP($B79,'INPUT '!$D$16:$D$116,'INPUT '!$E$16:$E$116),"0") -> 0 | D79: =IF(EXACT($B79,LOOKUP($B79,'INPUT '!$D$16:$D$116)),LOOKUP($B79,'INPUT '!$D$16:$D$116,'INPUT '!$F$16:$F$116),"0") -> 0 | E79: PALLET OF WOOD | H79: 9900000402 | J79: 0 | M79: 0 | N79: 9900000402 | O79: 1 | P79: 0 | S79: 0 | V79: 0 | Y79: 0
A80: 9900010403 | B80: =Data!$A80-9900010000 -> 403 | C80: =IF(EXACT($B80,LOOKUP($B80,'INPUT '!$D$16:$D$116)),LOOKUP($B80,'INPUT '!$D$16:$D$116,'INPUT '!$E$16:$E$116),"0") -> 0 | D80: =IF(EXACT($B80,LOOKUP($B80,'INPUT '!$D$16:$D$116)),LOOKUP($B80,'INPUT '!$D$16:$D$116,'INPUT '!$F$16:$F$116),"0") -> 0 | E80: FIXING SPACER OF PLASTIC | F80: L | H80: 9900000403 | I80: 8 | J80: =I80*C80 -> 0 | K80: 9900000061 | L80: 1 | M80: =L80*C80 -> 0 | N80: 9900000001 | O80: 1 | P80: =O80*C80 -> 0 | Q80: 9900000021 | R80: 4 | S80: 0 | T80: 9900000071 | U80: 1 | V80: =U80*C80 -> 0 | W80: 9900001041 | X80: 1 | Y80: =X80*C80 -> 0
A81: 9900010412 | B81: =Data!$A81-9900010000 -> 412 | C81: =IF(EXACT($B81,LOOKUP($B81,'INPUT '!$D$16:$D$116)),LOOKUP($B81,'INPUT '!$D$16:$D$116,'INPUT '!$E$16:$E$116),"0") -> 0 | D81: =IF(EXACT($B81,LOOKUP($B81,'INPUT '!$D$16:$D$116)),LOOKUP($B81,'INPUT '!$D$16:$D$116,'INPUT '!$F$16:$F$116),"0") -> 0 | E81: COMBITAINER | H81: 9900000412 | I81: 1 | J81: 0 | M81: 0 | P81: 0 | S81: 0 | V81: 0 | Y81: 0
A82: 9900010413 | B82: =Data!$A82-9900010000 -> 413 | C82: =IF(EXACT($B82,LOOKUP($B82,'INPUT '!$D$16:$D$116)),LOOKUP($B82,'INPUT '!$D$16:$D$116,'INPUT '!$E$16:$E$116),"0") -> 0 | D82: =IF(EXACT($B82,LOOKUP($B82,'INPUT '!$D$16:$D$116)),LOOKUP($B82,'INPUT '!$D$16:$D$116,'INPUT '!$F$16:$F$116),"0") -> 0 | E82: RACK OF STEEL | H82: 9900000413 | I82: 1 | J82: =I82*C82 -> 0 | M82: =L82*C82 -> 0 | P82: =O82*C82 -> 0 | S82: 0 | V82: =U82*C82 -> 0 | Y82: =X82*C82 -> 0
A83: 9900010415 | B83: =Data!$A83-9900010000 -> 415 | C83: =IF(EXACT($B83,LOOKUP($B83,'INPUT '!$D$16:$D$116)),LOOKUP($B83,'INPUT '!$D$16:$D$116,'INPUT '!$E$16:$E$116),"0") -> 0 | D83: =IF(EXACT($B83,LOOKUP($B83,'INPUT '!$D$16:$D$116)),LOOKUP($B83,'INPUT '!$D$16:$D$116,'INPUT '!$F$16:$F$116),"0") -> 0 | E83: RACK OF STEEL | H83: 9900000415 | I83: 1 | J83: 0 | M83: 0 | P83: 0 | S83: 0 | V83: 0 | Y83: 0
A84: 9900010416 | B84: =Data!$A84-9900010000 -> 416 | C84: =IF(EXACT($B84,LOOKUP($B84,'INPUT '!$D$16:$D$116)),LOOKUP($B84,'INPUT '!$D$16:$D$116,'INPUT '!$E$16:$E$116),"0") -> 0 | D84: =IF(EXACT($B84,LOOKUP($B84,'INPUT '!$D$16:$D$116)),LOOKUP($B84,'INPUT '!$D$16:$D$116,'INPUT '!$F$16:$F$116),"0") -> 0 | E84: FIXING SPACER OF PLASTIC | F84: L | H84: 9900000416 | I84: 8 | J84: 0 | K84: 9900000061 | L84: 1 | M84: 0 | N84: 9900000001 | O84: 1 | P84: 0 | Q84: 9900000021 | R84: 4 | S84: 0 | T84: 9900000071 | U84: 1 | V84: 0 | W84: 9900001041 | X84: 1 | Y84: 0
A85: 9900010419 | B85: =Data!$A85-9900010000 -> 419 | C85: =IF(EXACT($B85,LOOKUP($B85,'INPUT '!$D$16:$D$116)),LOOKUP($B85,'INPUT '!$D$16:$D$116,'INPUT '!$E$16:$E$116),"0") -> 0 | D85: =IF(EXACT($B85,LOOKUP($B85,'INPUT '!$D$16:$D$116)),LOOKUP($B85,'INPUT '!$D$16:$D$116,'INPUT '!$F$16:$F$116),"0") -> 0 | E85: COMBITAINER | F85: F | H85: 9900000419 | I85: 9 | J85: 0 | M85: 0 | N85: 9900000005 | O85: 1 | P85: 0 | S85: 0 | V85: 0 | Y85: 0
A86: 9900010421 | B86: =Data!$A86-9900010000 -> 421 | C86: =IF(EXACT($B86,LOOKUP($B86,'INPUT '!$D$16:$D$116)),LOOKUP($B86,'INPUT '!$D$16:$D$116,'INPUT '!$E$16:$E$116),"0") -> 0 | D86: =IF(EXACT($B86,LOOKUP($B86,'INPUT '!$D$16:$D$116)),LOOKUP($B86,'INPUT '!$D$16:$D$116,'INPUT '!$F$16:$F$116),"0") -> 0 | E86: BOX OF PLASTIC | H86: 9900000421 | I86: 32 | J86: 0 | K86: 9900000412 | L86: 1 | M86: 0 | P86: 0 | S86: 0 | V86: 0 | Y86: 0
A87: 9900010459 | B87: =Data!$A87-9900010000 -> 459 | C87: =IF(EXACT($B87,LOOKUP($B87,'INPUT '!$D$16:$D$116)),LOOKUP($B87,'INPUT '!$D$16:$D$116,'INPUT '!$E$16:$E$116),"0") -> 0 | D87: =IF(EXACT($B87,LOOKUP($B87,'INPUT '!$D$16:$D$116)),LOOKUP($B87,'INPUT '!$D$16:$D$116,'INPUT '!$F$16:$F$116),"0") -> 0 | E87: SPACER OF CELL.PLASTIC | F87: L | H87: 9900000459 | I87: 500 | J87: 0 | M87: 0 | N87: 9900000001 | O87: 1 | P87: 0 | Q87: 9900000021 | R87: 4 | S87: 0 | T87: 9900000071 | U87: 1 | V87: 0 | Y87: 0
A88: 9900010460 | B88: =Data!$A88-9900010000 -> 460 | C88: =IF(EXACT($B88,LOOKUP($B88,'INPUT '!$D$16:$D$116)),LOOKUP($B88,'INPUT '!$D$16:$D$116,'INPUT '!$E$16:$E$116),"0") -> 0 | D88: =IF(EXACT($B88,LOOKUP($B88,'INPUT '!$D$16:$D$116)),LOOKUP($B88,'INPUT '!$D$16:$D$116,'INPUT '!$F$16:$F$116),"0") -> 0 | E88: Bundle BOX OF PLASTIC (ESD) | F88: L | H88: 9900020460 | I88: 40 | J88: 0 | M88: 0 | N88: 9900000001 | O88: 1 | P88: 0 | S88: 0 | T88: 9900000071 | U88: 1 | V88: 0 | Y88: 0
A89: 9900010461 | B89: =Data!$A89-9900010000 -> 461 | C89: =IF(EXACT($B89,LOOKUP($B89,'INPUT '!$D$16:$D$116)),LOOKUP($B89,'INPUT '!$D$16:$D$116,'INPUT '!$E$16:$E$116),"0") -> 0 | D89: =IF(EXACT($B89,LOOKUP($B89,'INPUT '!$D$16:$D$116)),LOOKUP($B89,'INPUT '!$D$16:$D$116,'INPUT '!$F$16:$F$116),"0") -> 0 | E89: LID OF PLASTIC ( Pieces Only ) | F89: PIECE | H89: 9900000461 | I89: 0 | J89: 0 | M89: 0 | P89: 0 | S89: 0 | V89: 0 | Y89: 0
A90: 9900010462 | B90: =Data!$A90-9900010000 -> 462 | C90: =IF(EXACT($B90,LOOKUP($B90,'INPUT '!$D$16:$D$116)),LOOKUP($B90,'INPUT '!$D$16:$D$116,'INPUT '!$E$16:$E$116),"0") -> 0 | D90: =IF(EXACT($B90,LOOKUP($B90,'INPUT '!$D$16:$D$116)),LOOKUP($B90,'INPUT '!$D$16:$D$116,'INPUT '!$F$16:$F$116),"0") -> 0 | E90: Bundle BOX OF PLASTIC (ESD) | F90: L | H90: 9900020462 | I90: 80 | J90: =I90*C90 -> 0 | M90: =L90*C90 -> 0 | N90: 9900000001 | O90: 1 | P90: =O90*C90 -> 0 | S90: 0 | T90: 9900000091 | U90: 1 | V90: =U90*C90 -> 0 | Y90: =X90*C90 -> 0
A91: 9900010463 | B91: =Data!$A91-9900010000 -> 463 | C91: =IF(EXACT($B91,LOOKUP($B91,'INPUT '!$D$16:$D$116)),LOOKUP($B91,'INPUT '!$D$16:$D$116,'INPUT '!$E$16:$E$116),"0") -> 0 | D91: =IF(EXACT($B91,LOOKUP($B91,'INPUT '!$D$16:$D$116)),LOOKUP($B91,'INPUT '!$D$16:$D$116,'INPUT '!$F$16:$F$116),"0") -> 0 | E91: LID OF PLASTIC ( Pieces Only ) | F91: PIECE | H91: 9900000463 | I91: 0 | J91: 0 | M91: 0 | P91: 0 | S91: 0 | V91: 0 | Y91: 0
A92: 9900010464 | B92: =Data!$A92-9900010000 -> 464 | C92: =IF(EXACT($B92,LOOKUP($B92,'INPUT '!$D$16:$D$116)),LOOKUP($B92,'INPUT '!$D$16:$D$116,'INPUT '!$E$16:$E$116),"0") -> 0 | D92: =IF(EXACT($B92,LOOKUP($B92,'INPUT '!$D$16:$D$116)),LOOKUP($B92,'INPUT '!$D$16:$D$116,'INPUT '!$F$16:$F$116),"0") -> 0 | E92: SLEEVE OF PLASTIC ( ESD) | F92: Euro | H92: 9900000464 | I92: 0 | J92: 0 | M92: 0 | P92: 0 | S92: 0 | V92: 0 | Y92: 0
A93: 9900010465 | B93: =Data!$A93-9900010000 -> 465 | C93: =IF(EXACT($B93,LOOKUP($B93,'INPUT '!$D$16:$D$116)),LOOKUP($B93,'INPUT '!$D$16:$D$116,'INPUT '!$E$16:$E$116),"0") -> 0 | D93: =IF(EXACT($B93,LOOKUP($B93,'INPUT '!$D$16:$D$116)),LOOKUP($B93,'INPUT '!$D$16:$D$116,'INPUT '!$F$16:$F$116),"0") -> 0 | E93: PALLET OF PLASTIC (ESD) | F93: Euro | H93: 9900020465 | I93: 1 | J93: 0 | M93: 0 | P93: 0 | S93: 0 | V93: 0 | Y93: 0
A94: 9900010466 | B94: =Data!$A94-9900010000 -> 466 | C94: =IF(EXACT($B94,LOOKUP($B94,'INPUT '!$D$16:$D$116)),LOOKUP($B94,'INPUT '!$D$16:$D$116,'INPUT '!$E$16:$E$116),"0") -> 0 | D94: =IF(EXACT($B94,LOOKUP($B94,'INPUT '!$D$16:$D$116)),LOOKUP($B94,'INPUT '!$D$16:$D$116,'INPUT '!$F$16:$F$116),"0") -> 0 | E94: LID OF PLASTIC (ESD) | F94: Euro | H94: 9900000466 | I94: 0 | J94: 0 | M94: 0 | P94: 0 | S94: 0 | V94: 0 | Y94: 0
A95: 9900010467 | B95: =Data!$A95-9900010000 -> 467 | C95: =IF(EXACT($B95,LOOKUP($B95,'INPUT '!$D$16:$D$116)),LOOKUP($B95,'INPUT '!$D$16:$D$116,'INPUT '!$E$16:$E$116),"0") -> 0 | D95: =IF(EXACT($B95,LOOKUP($B95,'INPUT '!$D$16:$D$116)),LOOKUP($B95,'INPUT '!$D$16:$D$116,'INPUT '!$F$16:$F$116),"0") -> 0 | E95: SLEEVE OF PLASTIC | H95: 9900000467 | I95: 0 | J95: 0 | M95: 0 | P95: 0 | S95: 0 | V95: 0 | Y95: 0
A96: 9900010468 | B96: =Data!$A96-9900010000 -> 468 | C96: =IF(EXACT($B96,LOOKUP($B96,'INPUT '!$D$16:$D$116)),LOOKUP($B96,'INPUT '!$D$16:$D$116,'INPUT '!$E$16:$E$116),"0") -> 0 | D96: =IF(EXACT($B96,LOOKUP($B96,'INPUT '!$D$16:$D$116)),LOOKUP($B96,'INPUT '!$D$16:$D$116,'INPUT '!$F$16:$F$116),"0") -> 0 | E96: PALLET OF PLASTIC | H96: 9900020468 | I96: 1 | J96: 0 | M96: 0 | P96: 0 | S96: 0 | V96: 0 | Y96: 0
A97: 9900010469 | B97: =Data!$A97-9900010000 -> 469 | C97: =IF(EXACT($B97,LOOKUP($B97,'INPUT '!$D$16:$D$116)),LOOKUP($B97,'INPUT '!$D$16:$D$116,'INPUT '!$E$16:$E$116),"0") -> 0 | D97: =IF(EXACT($B97,LOOKUP($B97,'INPUT '!$D$16:$D$116)),LOOKUP($B97,'INPUT '!$D$16:$D$116,'INPUT '!$F$16:$F$116),"0") -> 0 | E97: LID OF PLASTIC | H97: 9900000469 | I97: 0 | J97: 0 | M97: 0 | P97: 0 | S97: 0 | V97: 0 | Y97: 0
A98: 9900010480 | B98: =Data!$A98-9900010000 -> 480 | C98: =IF(EXACT($B98,LOOKUP($B98,'INPUT '!$D$16:$D$116)),LOOKUP($B98,'INPUT '!$D$16:$D$116,'INPUT '!$E$16:$E$116),"0") -> 0 | D98: =IF(EXACT($B98,LOOKUP($B98,'INPUT '!$D$16:$D$116)),LOOKUP($B98,'INPUT '!$D$16:$D$116,'INPUT '!$F$16:$F$116),"0") -> 0 | E98: COMBITAINER OF PLASTIC/STEEL | F98: L | H98: 9900000480 | I98: 4 | J98: 0 | K98: 9900000110 | L98: 4 | M98: 0 | N98: 9900000001 | O98: 4 | P98: 0 | R98: 0 | S98: 0 | T98: 9900000991 | U98: 4 | V98: 0 | Y98: 0
A99: 9900010482 | B99: =Data!$A99-9900010000 -> 482 | C99: =IF(EXACT($B99,LOOKUP($B99,'INPUT '!$D$16:$D$116)),LOOKUP($B99,'INPUT '!$D$16:$D$116,'INPUT '!$E$16:$E$116),"0") -> 0 | D99: =IF(EXACT($B99,LOOKUP($B99,'INPUT '!$D$16:$D$116)),LOOKUP($B99,'INPUT '!$D$16:$D$116,'INPUT '!$F$16:$F$116),"0") -> 0 | E99: SPACER OF FOAMED PLASTIC | H99: 9900000482 | I99: 14 | J99: =I99*C99 -> 0 | K99: 9900020141 | L99: 1 | M99: =L99*C99 -> 0 | P99: =O99*C99 -> 0 | S99: =R99*C99 -> 0 | V99: =U99*C99 -> 0 | Y99: =X99*C99 -> 0
A100: 9900010490 | B100: =Data!$A100-9900010000 -> 490 | C100: =IF(EXACT($B100,LOOKUP($B100,'INPUT '!$D$16:$D$116)),LOOKUP($B100,'INPUT '!$D$16:$D$116,'INPUT '!$E$16:$E$116),"0") -> 0 | D100: =IF(EXACT($B100,LOOKUP($B100,'INPUT '!$D$16:$D$116)),LOOKUP($B100,'INPUT '!$D$16:$D$116,'INPUT '!$F$16:$F$116),"0") -> 0 | E100: RACK OF STEEL | H100: 9900000490 | I100: 1 | J100: 0 | M100: 0 | P100: 0 | S100: 0 | V100: 0 | Y100: 0
A101: 9900010500 | B101: =Data!$A101-9900010000 -> 500 | C101: =IF(EXACT($B101,LOOKUP($B101,'INPUT '!$D$16:$D$116)),LOOKUP($B101,'INPUT '!$D$16:$D$116,'INPUT '!$E$16:$E$116),"0") -> 0 | D101: =IF(EXACT($B101,LOOKUP($B101,'INPUT '!$D$16:$D$116)),LOOKUP($B101,'INPUT '!$D$16:$D$116,'INPUT '!$F$16:$F$116),"0") -> 0 | E101: BOX OF PLASTIC | F101: K | H101: 9900000500 | I101: 88 | J101: 0 | M101: 0 | N101: 9900000002 | O101: 1 | P101: 0 | S101: 0 | T101: 9900000092 | U101: 1 | V101: 0 | Y101: 0
A102: 9900010501 | B102: =Data!$A102-9900010000 -> 501 | C102: =IF(EXACT($B102,LOOKUP($B102,'INPUT '!$D$16:$D$116)),LOOKUP($B102,'INPUT '!$D$16:$D$116,'INPUT '!$E$16:$E$116),"0") -> 0 | D102: =IF(EXACT($B102,LOOKUP($B102,'INPUT '!$D$16:$D$116)),LOOKUP($B102,'INPUT '!$D$16:$D$116,'INPUT '!$F$16:$F$116),"0") -> 0 | E102: LID OF PLASTIC | F102: K | H102: 9900000501 | I102: 800 | J102: 0 | M102: 0 | N102: 9900000002 | O102: 1 | P102: 0 | S102: 0 | T102: 9900000092 | U102: 1 | V102: 0 | Y102: 0
A103: 9900010520 | B103: =Data!$A103-9900010000 -> 520 | C103: =IF(EXACT($B103,LOOKUP($B103,'INPUT '!$D$16:$D$116)),LOOKUP($B103,'INPUT '!$D$16:$D$116,'INPUT '!$E$16:$E$116),"0") -> 0 | D103: =IF(EXACT($B103,LOOKUP($B103,'INPUT '!$D$16:$D$116)),LOOKUP($B103,'INPUT '!$D$16:$D$116,'INPUT '!$F$16:$F$116),"0") -> 0 | E103: FOIL OF PLASTIC | H103: 9900000520 | I103: 6250 | J103: =I103*C103 -> 0 | M103: =L103*C103 -> 0 | N103: 9900000001 | O103: 1 | P103: =O103*C103 -> 0 | S103: 0 | V103: =U103*C103 -> 0 | Y103: =X103*C103 -> 0
A104: 9900010556 | B104: =Data!$A104-9900010000 -> 556 | C104: =IF(EXACT($B104,LOOKUP($B104,'INPUT '!$D$16:$D$116)),LOOKUP($B104,'INPUT '!$D$16:$D$116,'INPUT '!$E$16:$E$116),"0") -> 0 | D104: =IF(EXACT($B104,LOOKUP($B104,'INPUT '!$D$16:$D$116)),LOOKUP($B104,'INPUT '!$D$16:$D$116,'INPUT '!$F$16:$F$116),"0") -> 0 | E104: SPACER OF FOAMED PLASTIC | F104: L | H104: 9900000556 | I104: 200 | J104: 0 | M104: 0 | N104: 9900000001 | O104: 1 | P104: 0 | Q104: 9900000021 | R104: 3 | S104: 0 | T104: 9900000071 | U104: 1 | V104: 0 | W104: 9900001021 | X104: 1 | Y104: 0
A105: 9900010575 | B105: =Data!$A105-9900010000 -> 575 | C105: =IF(EXACT($B105,LOOKUP($B105,'INPUT '!$D$16:$D$116)),LOOKUP($B105,'INPUT '!$D$16:$D$116,'INPUT '!$E$16:$E$116),"0") -> 0 | D105: =IF(EXACT($B105,LOOKUP($B105,'INPUT '!$D$16:$D$116)),LOOKUP($B105,'INPUT '!$D$16:$D$116,'INPUT '!$F$16:$F$116),"0") -> 0 | E105: BATTENS OF WOOD | F105: L | H105: 9900000575 | I105: 225 | J105: 0 | M105: 0 | N105: 9900000001 | O105: 1 | P105: 0 | Q105: 9900000021 | R105: 4 | S105: 0 | T105: 9900000071 | U105: 1 | V105: 0 | Y105: 0
A106: 9900010576 | B106: =Data!$A106-9900010000 -> 576 | C106: =IF(EXACT($B106,LOOKUP($B106,'INPUT '!$D$16:$D$116)),LOOKUP($B106,'INPUT '!$D$16:$D$116,'INPUT '!$E$16:$E$116),"0") -> 0 | D106: =IF(EXACT($B106,LOOKUP($B106,'INPUT '!$D$16:$D$116)),LOOKUP($B106,'INPUT '!$D$16:$D$116,'INPUT '!$F$16:$F$116),"0") -> 0 | E106: BATTEN OF WOOD | F106: L | H106: 9900000576 | I106: 100 | J106: 0 | M106: 0 | N106: 9900000001 | O106: 1 | P106: 0 | Q106: 9900000021 | R106: 3 | S106: 0 | T106: 9900000071 | U106: 1 | V106: 0 | Y106: 0
A107: 9900010577 | B107: =Data!$A107-9900010000 -> 577 | C107: =IF(EXACT($B107,LOOKUP($B107,'INPUT '!$D$16:$D$116)),LOOKUP($B107,'INPUT '!$D$16:$D$116,'INPUT '!$E$16:$E$116),"0") -> 0 | D107: =IF(EXACT($B107,LOOKUP($B107,'INPUT '!$D$16:$D$116)),LOOKUP($B107,'INPUT '!$D$16:$D$116,'INPUT '!$F$16:$F$116),"0") -> 0 | E107: BATTEN OF WOOD | F107: L | H107: 9900000577 | I107: 100 | J107: =I107*C107 -> 0 | M107: =L107*C107 -> 0 | N107: 9900000001 | O107: 1 | P107: =O107*C107 -> 0 | Q107: 9900000021 | R107: 3 | S107: 0 | T107: 9900000071 | U107: 1 | V107: =U107*C107 -> 0 | Y107: =X107*C107 -> 0
A108: 9900010579 | B108: =Data!$A108-9900010000 -> 579 | C108: =IF(EXACT($B108,LOOKUP($B108,'INPUT '!$D$16:$D$116)),LOOKUP($B108,'INPUT '!$D$16:$D$116,'INPUT '!$E$16:$E$116),"0") -> 0 | D108: =IF(EXACT($B108,LOOKUP($B108,'INPUT '!$D$16:$D$116)),LOOKUP($B108,'INPUT '!$D$16:$D$116,'INPUT '!$F$16:$F$116),"0") -> 0 | E108: BATTEN OF WOOD | F108: L | H108: 9900000579 | I108: 30 | J108: =I108*C108 -> 0 | M108: =L108*C108 -> 0 | N108: 9900000001 | O108: 1 | P108: =O108*C108 -> 0 | Q108: 9900000021 | R108: 1 | S108: =R108*C108 -> 0 | T108: 9900000071 | U108: 1 | V108: =U108*C108 -> 0 | Y108: =X108*C108 -> 0
A109: 9900010580 | B109: =Data!$A109-9900010000 -> 580 | C109: =IF(EXACT($B109,LOOKUP($B109,'INPUT '!$D$16:$D$116)),LOOKUP($B109,'INPUT '!$D$16:$D$116,'INPUT '!$E$16:$E$116),"0") -> 0 | D109: =IF(EXACT($B109,LOOKUP($B109,'INPUT '!$D$16:$D$116)),LOOKUP($B109,'INPUT '!$D$16:$D$116,'INPUT '!$F$16:$F$116),"0") -> 0 | E109: BATTEN OF WOOD | F109: L | H109: 9900000580 | I109: 21 | J109: =I109*C109 -> 0 | M109: =L109*C109 -> 0 | N109: 9900000006 | O109: 1 | P109: =O109*C109 -> 0 | Q109: 9900000026 | R109: 1 | S109: =R109*C109 -> 0 | T109: 9900000076 | U109: 1 | V109: =U109*C109 -> 0 | Y109: =X109*C109 -> 0
A110: 9900010586 | B110: =Data!$A110-9900010000 -> 586 | C110: =IF(EXACT($B110,LOOKUP($B110,'INPUT '!$D$16:$D$116)),LOOKUP($B110,'INPUT '!$D$16:$D$116,'INPUT '!$E$16:$E$116),"0") -> 0 | D110: =IF(EXACT($B110,LOOKUP($B110,'INPUT '!$D$16:$D$116)),LOOKUP($B110,'INPUT '!$D$16:$D$116,'INPUT '!$F$16:$F$116),"0") -> 0 | E110: RACK OF STEEL | H110: 9900000586 | I110: 1 | J110: =I110*C110 -> 0 | M110: =L110*C110 -> 0 | P110: =O110*C110 -> 0 | S110: 0 | V110: =U110*C110 -> 0 | Y110: =X110*C110 -> 0
A111: 9900010595 | B111: =Data!$A111-9900010000 -> 595 | C111: =IF(EXACT($B111,LOOKUP($B111,'INPUT '!$D$16:$D$116)),LOOKUP($B111,'INPUT '!$D$16:$D$116,'INPUT '!$E$16:$E$116),"0") -> 0 | D111: =IF(EXACT($B111,LOOKUP($B111,'INPUT '!$D$16:$D$116)),LOOKUP($B111,'INPUT '!$D$16:$D$116,'INPUT '!$F$16:$F$116),"0") -> 0 | E111: BATTENS OF WOOD | F111: L | H111: 9900000595 | I111: 99 | J111: 0 | M111: 0 | N111: 9900000001 | O111: 1 | P111: 0 | Q111: 9900000021 | R111: 4 | S111: 0 | T111: 9900000071 | U111: 1 | V111: 0 | Y111: 0
A112: 9900010600 | B112: =Data!$A112-9900010000 -> 600 | C112: =IF(EXACT($B112,LOOKUP($B112,'INPUT '!$D$16:$D$116)),LOOKUP($B112,'INPUT '!$D$16:$D$116,'INPUT '!$E$16:$E$116),"0") -> 0 | D112: =IF(EXACT($B112,LOOKUP($B112,'INPUT '!$D$16:$D$116)),LOOKUP($B112,'INPUT '!$D$16:$D$116,'INPUT '!$F$16:$F$116),"0") -> 0 | E112: BOX OF PLASTIC | F112: K | H112: 9900000600 | I112: 44 | J112: 0 | M112: 0 | N112: 9900000002 | O112: 1 | P112: 0 | S112: 0 | T112: 9900000092 | U112: 1 | V112: 0 | Y112: 0
A113: 9900010601 | B113: =Data!$A113-9900010000 -> 601 | C113: =IF(EXACT($B113,LOOKUP($B113,'INPUT '!$D$16:$D$116)),LOOKUP($B113,'INPUT '!$D$16:$D$116,'INPUT '!$E$16:$E$116),"0") -> 0 | D113: =IF(EXACT($B113,LOOKUP($B113,'INPUT '!$D$16:$D$116)),LOOKUP($B113,'INPUT '!$D$16:$D$116,'INPUT '!$F$16:$F$116),"0") -> 0 | E113: LID OF PLASTIC | F113: K | H113: 9900000601 | I113: 400 | J113: 0 | M113: 0 | N113: 9900000002 | O113: 1 | P113: 0 | S113: 0 | T113: 9900000092 | U113: 1 | V113: 0 | Y113: 0
A114: 9900010647 | B114: =Data!$A114-9900010000 -> 647 | C114: =IF(EXACT($B114,LOOKUP($B114,'INPUT '!$D$16:$D$116)),LOOKUP($B114,'INPUT '!$D$16:$D$116,'INPUT '!$E$16:$E$116),"0") -> 0 | D114: =IF(EXACT($B114,LOOKUP($B114,'INPUT '!$D$16:$D$116)),LOOKUP($B114,'INPUT '!$D$16:$D$116,'INPUT '!$F$16:$F$116),"0") -> 0 | E114: LID OF PLYWOOD AND WOOD FIBRE | H114: 9900000647 | J114: 0 | M114: 0 | N114: 9900000107 | O114: 1 | P114: 0 | S114: 0 | T114: 9900000647 | U114: 50 | V114: 0 | Y114: 0
A115: 9900010662 | B115: =Data!$A115-9900010000 -> 662 | C115: =IF(EXACT($B115,LOOKUP($B115,'INPUT '!$D$16:$D$116)),LOOKUP($B115,'INPUT '!$D$16:$D$116,'INPUT '!$E$16:$E$116),"0") -> 0 | D115: =IF(EXACT($B115,LOOKUP($B115,'INPUT '!$D$16:$D$116)),LOOKUP($B115,'INPUT '!$D$16:$D$116,'INPUT '!$F$16:$F$116),"0") -> 0 | E115: FIXING SPACER OF PLASTIC | F115: L | H115: 9900000662 | I115: 48 | J115: 0 | M115: 0 | N115: 9900000001 | O115: 1 | P115: 0 | Q115: 9900000021 | R115: 4 | S115: 0 | T115: 9900000071 | U115: 1 | V115: 0 | Y115: 0
A116: 9900010670 | B116: =Data!$A116-9900010000 -> 670 | C116: =IF(EXACT($B116,LOOKUP($B116,'INPUT '!$D$16:$D$116)),LOOKUP($B116,'INPUT '!$D$16:$D$116,'INPUT '!$E$16:$E$116),"0") -> 0 | D116: =IF(EXACT($B116,LOOKUP($B116,'INPUT '!$D$16:$D$116)),LOOKUP($B116,'INPUT '!$D$16:$D$116,'INPUT '!$F$16:$F$116),"0") -> 0 | E116: LID OF PLYWOOD | H116: 9900000670 | I116: 10 | J116: 0 | M116: 0 | N116: 9900000836 | O116: 1 | P116: 0 | S116: 0 | V116: 0 | Y116: 0
A117: 9900010701 | B117: =Data!$A117-9900010000 -> 701 | C117: =IF(EXACT($B117,LOOKUP($B117,'INPUT '!$D$16:$D$116)),LOOKUP($B117,'INPUT '!$D$16:$D$116,'INPUT '!$E$16:$E$116),"0") -> 0 | D117: =IF(EXACT($B117,LOOKUP($B117,'INPUT '!$D$16:$D$116)),LOOKUP($B117,'INPUT '!$D$16:$D$116,'INPUT '!$F$16:$F$116),"0") -> 0 | E117: PALLET OF WOOD | F117: 700 | H117: 9900000701 | J117: 0 | M117: 0 | N117: 9900000701 | O117: 1 | P117: 0 | S117: 0 | V117: 0 | Y117: 0
A118: 9900010702 | B118: =Data!$A118-9900010000 -> 702 | C118: =IF(EXACT($B118,LOOKUP($B118,'INPUT '!$D$16:$D$116)),LOOKUP($B118,'INPUT '!$D$16:$D$116,'INPUT '!$E$16:$E$116),"0") -> 0 | D118: =IF(EXACT($B118,LOOKUP($B118,'INPUT '!$D$16:$D$116)),LOOKUP($B118,'INPUT '!$D$16:$D$116,'INPUT '!$F$16:$F$116),"0") -> 0 | E118: FRAME OF WOOD | F118: 700 | H118: 9900000702 | J118: 0 | M118: 0 | N118: 9900000701 | O118: 1 | P118: 0 | Q118: 9900000702 | R118: 20 | S118: 0 | V118: 0 | Y118: 0
A119: 9900010706 | B119: =Data!$A119-9900010000 -> 706 | C119: =IF(EXACT($B119,LOOKUP($B119,'INPUT '!$D$16:$D$116)),LOOKUP($B119,'INPUT '!$D$16:$D$116,'INPUT '!$E$16:$E$116),"0") -> 0 | D119: =IF(EXACT($B119,LOOKUP($B119,'INPUT '!$D$16:$D$116)),LOOKUP($B119,'INPUT '!$D$16:$D$116,'INPUT '!$F$16:$F$116),"0") -> 0 | E119: LID OF PLYWOOD | F119: 700 | H119: 9900000706 | J119: 0 | M119: 0 | N119: 9900000701 | O119: 1 | P119: 0 | S119: 0 | T119: 9900000706 | U119: 25 | V119: 0 | Y119: 0
A120: 9900010711 | B120: =Data!$A120-9900010000 -> 711 | C120: =IF(EXACT($B120,LOOKUP($B120,'INPUT '!$D$16:$D$116)),LOOKUP($B120,'INPUT '!$D$16:$D$116,'INPUT '!$E$16:$E$116),"0") -> 0 | D120: =IF(EXACT($B120,LOOKUP($B120,'INPUT '!$D$16:$D$116)),LOOKUP($B120,'INPUT '!$D$16:$D$116,'INPUT '!$F$16:$F$116),"0") -> 0 | E120: PALLET OF WOOD | H120: 9900000711 | J120: =I120*C120 -> 0 | M120: =L120*C120 -> 0 | N120: 9900000711 | O120: 1 | P120: =O120*C120 -> 0 | S120: =R120*C120 -> 0 | V120: =U120*C120 -> 0 | Y120: =X120*C120 -> 0
A121: 9900010712 | B121: =Data!$A121-9900010000 -> 712 | C121: =IF(EXACT($B121,LOOKUP($B121,'INPUT '!$D$16:$D$116)),LOOKUP($B121,'INPUT '!$D$16:$D$116,'INPUT '!$E$16:$E$116),"0") -> 0 | D121: =IF(EXACT($B121,LOOKUP($B121,'INPUT '!$D$16:$D$116)),LOOKUP($B121,'INPUT '!$D$16:$D$116,'INPUT '!$F$16:$F$116),"0") -> 0 | E121: FRAME OF WOOD | H121: 9900000712 | J121: =I121*C121 -> 0 | M121: =L121*C121 -> 0 | N121: 9900000711 | O121: 1 | P121: =O121*C121 -> 0 | Q121: 9900000712 | R121: 18 | S121: =R121*C121 -> 0 | V121: =U121*C121 -> 0 | Y121: =X121*C121 -> 0
A122: 9900010713 | B122: =Data!$A122-9900010000 -> 713 | C122: =IF(EXACT($B122,LOOKUP($B122,'INPUT '!$D$16:$D$116)),LOOKUP($B122,'INPUT '!$D$16:$D$116,'INPUT '!$E$16:$E$116),"0") -> 0 | D122: =IF(EXACT($B122,LOOKUP($B122,'INPUT '!$D$16:$D$116)),LOOKUP($B122,'INPUT '!$D$16:$D$116,'INPUT '!$F$16:$F$116),"0") -> 0 | E122: LID OF PLYWOOD | H122: 9900000713 | J122: =I122*C122 -> 0 | M122: =L122*C122 -> 0 | N122: 9900000711 | O122: 1 | P122: =O122*C122 -> 0 | S122: =R122*C122 -> 0 | T122: 9900000713 | U122: 25 | V122: =U122*C122 -> 0 | Y122: =X122*C122 -> 0
A123: 9900010724 | B123: =Data!$A123-9900010000 -> 724 | C123: =IF(EXACT($B123,LOOKUP($B123,'INPUT '!$D$16:$D$116)),LOOKUP($B123,'INPUT '!$D$16:$D$116,'INPUT '!$E$16:$E$116),"0") -> 0 | D123: =IF(EXACT($B123,LOOKUP($B123,'INPUT '!$D$16:$D$116)),LOOKUP($B123,'INPUT '!$D$16:$D$116,'INPUT '!$F$16:$F$116),"0") -> 0 | E123: PALLET OF WOOD | F123: 700 | H123: 9900000724 | J123: 0 | M123: 0 | N123: 9900000724 | O123: 1 | P123: 0 | S123: 0 | V123: 0 | Y123: 0
A124: 9900010725 | B124: =Data!$A124-9900010000 -> 725 | C124: =IF(EXACT($B124,LOOKUP($B124,'INPUT '!$D$16:$D$116)),LOOKUP($B124,'INPUT '!$D$16:$D$116,'INPUT '!$E$16:$E$116),"0") -> 0 | D124: =IF(EXACT($B124,LOOKUP($B124,'INPUT '!$D$16:$D$116)),LOOKUP($B124,'INPUT '!$D$16:$D$116,'INPUT '!$F$16:$F$116),"0") -> 0 | E124: FRAME OF WOOD | F124: 700 | H124: 9900000725 | J124: 0 | M124: 0 | N124: 9900000724 | O124: 1 | P124: 0 | Q124: 9900000725 | R124: 10 | S124: 0 | V124: 0 | Y124: 0
A125: 9900010726 | B125: =Data!$A125-9900010000 -> 726 | C125: =IF(EXACT($B125,LOOKUP($B125,'INPUT '!$D$16:$D$116)),LOOKUP($B125,'INPUT '!$D$16:$D$116,'INPUT '!$E$16:$E$116),"0") -> 0 | D125: =IF(EXACT($B125,LOOKUP($B125,'INPUT '!$D$16:$D$116)),LOOKUP($B125,'INPUT '!$D$16:$D$116,'INPUT '!$F$16:$F$116),"0") -> 0 | E125: LID OF PLYWOOD ( 2 PARTS ) | F125: 700 | H125: 9900000726 | J125: 0 | M125: 0 | N125: 9900000724 | O125: 1 | P125: 0 | S125: 0 | T125: 9900000726 | U125: 5 | V125: 0 | Y125: 0
A126: 9900010727 | B126: =Data!$A126-9900010000 -> 727 | C126: =IF(EXACT($B126,LOOKUP($B126,'INPUT '!$D$16:$D$116)),LOOKUP($B126,'INPUT '!$D$16:$D$116,'INPUT '!$E$16:$E$116),"0") -> 0 | D126: =IF(EXACT($B126,LOOKUP($B126,'INPUT '!$D$16:$D$116)),LOOKUP($B126,'INPUT '!$D$16:$D$116,'INPUT '!$F$16:$F$116),"0") -> 0 | E126: SPACER OF CARDBOARD | F126: L | H126: 9900000727 | I126: 300 | J126: 0 | M126: 0 | N126: 9900000001 | O126: 1 | P126: 0 | S126: 0 | T126: 9900000071 | U126: 1 | V126: 0 | Y126: 0
A127: 9900010729 | B127: =Data!$A127-9900010000 -> 729 | C127: =IF(EXACT($B127,LOOKUP($B127,'INPUT '!$D$16:$D$116)),LOOKUP($B127,'INPUT '!$D$16:$D$116,'INPUT '!$E$16:$E$116),"0") -> 0 | D127: =IF(EXACT($B127,LOOKUP($B127,'INPUT '!$D$16:$D$116)),LOOKUP($B127,'INPUT '!$D$16:$D$116,'INPUT '!$F$16:$F$116),"0") -> 0 | E127: SPACER OF WOOD | F127: L | H127: 9900000729 | I127: 25 | J127: 0 | M127: 0 | N127: 9900000001 | O127: 1 | P127: 0 | S127: 0 | V127: 0 | Y127: 0
A128: 9900010737 | B128: =Data!$A128-9900010000 -> 737 | C128: =IF(EXACT($B128,LOOKUP($B128,'INPUT '!$D$16:$D$116)),LOOKUP($B128,'INPUT '!$D$16:$D$116,'INPUT '!$E$16:$E$116),"0") -> 0 | D128: =IF(EXACT($B128,LOOKUP($B128,'INPUT '!$D$16:$D$116)),LOOKUP($B128,'INPUT '!$D$16:$D$116,'INPUT '!$F$16:$F$116),"0") -> 0 | E128: FIXING SPACER OF PLASTIC | F128: L | H128: 9900000737 | I128: 40 | J128: 0 | M128: 0 | N128: 9900000001 | O128: 1 | P128: 0 | Q128: 9900000021 | R128: 4 | S128: 0 | T128: 9900000071 | U128: 1 | V128: 0 | Y128: 0
A129: 9900010747 | B129: =Data!$A129-9900010000 -> 747 | C129: =IF(EXACT($B129,LOOKUP($B129,'INPUT '!$D$16:$D$116)),LOOKUP($B129,'INPUT '!$D$16:$D$116,'INPUT '!$E$16:$E$116),"0") -> 0 | D129: =IF(EXACT($B129,LOOKUP($B129,'INPUT '!$D$16:$D$116)),LOOKUP($B129,'INPUT '!$D$16:$D$116,'INPUT '!$F$16:$F$116),"0") -> 0 | E129: BATTEN OF WOOD | F129: L | H129: 9900000747 | I129: 89 | J129: 0 | M129: 0 | N129: 9900000001 | O129: 1 | P129: 0 | Q129: 9900000021 | R129: 4 | S129: 0 | T129: 9900000071 | U129: 1 | V129: 0 | Y129: 0
A130: 9900010750 | B130: =Data!$A130-9900010000 -> 750 | C130: =IF(EXACT($B130,LOOKUP($B130,'INPUT '!$D$16:$D$116)),LOOKUP($B130,'INPUT '!$D$16:$D$116,'INPUT '!$E$16:$E$116),"0") -> 0 | D130: =IF(EXACT($B130,LOOKUP($B130,'INPUT '!$D$16:$D$116)),LOOKUP($B130,'INPUT '!$D$16:$D$116,'INPUT '!$F$16:$F$116),"0") -> 0 | E130: Bundle of BOX OF PLASTIC | H130: 9900020750 | I130: 80 | J130: 0 | M130: 0 | N130: 9900000001 | O130: 1 | P130: 0 | S130: 0 | T130: 9900000091 | U130: 1 | V130: 0 | Y130: 0
A131: 9900010751 | B131: =Data!$A131-9900010000 -> 751 | C131: =IF(EXACT($B131,LOOKUP($B131,'INPUT '!$D$16:$D$116)),LOOKUP($B131,'INPUT '!$D$16:$D$116,'INPUT '!$E$16:$E$116),"0") -> 0 | D131: =IF(EXACT($B131,LOOKUP($B131,'INPUT '!$D$16:$D$116)),LOOKUP($B131,'INPUT '!$D$16:$D$116,'INPUT '!$F$16:$F$116),"0") -> 0 | E131: LID OF PLASTIC ( Pieces Only ) | F131: PIECE | H131: 9900000751 | I131: 0 | J131: 0 | M131: 0 | P131: 0 | S131: 0 | V131: 0 | Y131: 0
A132: 9900010757 | B132: =Data!$A132-9900010000 -> 757 | C132: =IF(EXACT($B132,LOOKUP($B132,'INPUT '!$D$16:$D$116)),LOOKUP($B132,'INPUT '!$D$16:$D$116,'INPUT '!$E$16:$E$116),"0") -> 0 | D132: =IF(EXACT($B132,LOOKUP($B132,'INPUT '!$D$16:$D$116)),LOOKUP($B132,'INPUT '!$D$16:$D$116,'INPUT '!$F$16:$F$116),"0") -> 0 | E132: Bundle BOX OF PLASTIC | H132: 9900020757 | I132: 80 | J132: =I132*C132 -> 0 | M132: =L132*C132 -> 0 | N132: 9900000001 | O132: 1 | P132: =O132*C132 -> 0 | S132: 0 | T132: 9900000091 | U132: 1 | V132: =U132*C132 -> 0 | Y132: =X132*C132 -> 0
A133: 9900010766 | B133: =Data!$A133-9900010000 -> 766 | C133: =IF(EXACT($B133,LOOKUP($B133,'INPUT '!$D$16:$D$116)),LOOKUP($B133,'INPUT '!$D$16:$D$116,'INPUT '!$E$16:$E$116),"0") -> 0 | D133: =IF(EXACT($B133,LOOKUP($B133,'INPUT '!$D$16:$D$116)),LOOKUP($B133,'INPUT '!$D$16:$D$116,'INPUT '!$F$16:$F$116),"0") -> 0 | E133: Bundle FOAM SPACER-(disposable) | H133: 9900000766 | I133: 1950 | J133: =I133*C133 -> 0 | M133: =L133*C133 -> 0 | N133: 9900000001 | O133: 1 | P133: =O133*C133 -> 0 | Q133: 9900000021 | R133: 4 | S133: 0 | T133: 9900000071 | U133: 1 | V133: =U133*C133 -> 0 | W133: 9900001041 | X133: 1 | Y133: =X133*C133 -> 0
A134: 9900010780 | B134: =Data!$A134-9900010000 -> 780 | C134: =IF(EXACT($B134,LOOKUP($B134,'INPUT '!$D$16:$D$116)),LOOKUP($B134,'INPUT '!$D$16:$D$116,'INPUT '!$E$16:$E$116),"0") -> 0 | D134: =IF(EXACT($B134,LOOKUP($B134,'INPUT '!$D$16:$D$116)),LOOKUP($B134,'INPUT '!$D$16:$D$116,'INPUT '!$F$16:$F$116),"0") -> 0 | E134: Bundle BOX OF PLASTIC | H134: 9900020780 | I134: 40 | J134: 0 | M134: 0 | N134: 9900000001 | O134: 1 | P134: 0 | S134: 0 | T134: 9900000071 | U134: 1 | V134: 0 | Y134: 0
A135: 9900010781 | B135: =Data!$A135-9900010000 -> 781 | C135: =IF(EXACT($B135,LOOKUP($B135,'INPUT '!$D$16:$D$116)),LOOKUP($B135,'INPUT '!$D$16:$D$116,'INPUT '!$E$16:$E$116),"0") -> 0 | D135: =IF(EXACT($B135,LOOKUP($B135,'INPUT '!$D$16:$D$116)),LOOKUP($B135,'INPUT '!$D$16:$D$116,'INPUT '!$F$16:$F$116),"0") -> 0 | E135: LID OF PLASTIC ( Pieces Only ) | F135: PIECE | H135: 9900000781 | I135: 0 | J135: 0 | M135: 0 | P135: 0 | S135: 0 | V135: 0 | Y135: 0
A136: 9900010787 | B136: =Data!$A136-9900010000 -> 787 | C136: =IF(EXACT($B136,LOOKUP($B136,'INPUT '!$D$16:$D$116)),LOOKUP($B136,'INPUT '!$D$16:$D$116,'INPUT '!$E$16:$E$116),"0") -> 0 | D136: =IF(EXACT($B136,LOOKUP($B136,'INPUT '!$D$16:$D$116)),LOOKUP($B136,'INPUT '!$D$16:$D$116,'INPUT '!$F$16:$F$116),"0") -> 0 | E136: Bundle BOX OF PLASTIC | H136: 9900020787 | I136: 40 | J136: =I136*C136 -> 0 | M136: 0 | N136: 9900000001 | O136: 1 | P136: 0 | S136: =R136*C136 -> 0 | T136: 9900000091 | U136: 1 | V136: =U136*C136 -> 0 | Y136: =X136*C136 -> 0
A137: 9900010790 | B137: =Data!$A137-9900010000 -> 790 | C137: =IF(EXACT($B137,LOOKUP($B137,'INPUT '!$D$16:$D$116)),LOOKUP($B137,'INPUT '!$D$16:$D$116,'INPUT '!$E$16:$E$116),"0") -> 0 | D137: =IF(EXACT($B137,LOOKUP($B137,'INPUT '!$D$16:$D$116)),LOOKUP($B137,'INPUT '!$D$16:$D$116,'INPUT '!$F$16:$F$116),"0") -> 0 | E137: Bundle BOX OF PLASTIC | H137: 9900020790 | I137: 8 | J137: 0 | M137: 0 | N137: 9900000001 | O137: 1 | P137: 0 | S137: 0 | T137: 9900000071 | U137: 1 | V137: 0 | Y137: 0
A138: 9900010791 | B138: =Data!$A138-9900010000 -> 791 | C138: =IF(EXACT($B138,LOOKUP($B138,'INPUT '!$D$16:$D$116)),LOOKUP($B138,'INPUT '!$D$16:$D$116,'INPUT '!$E$16:$E$116),"0") -> 0 | D138: =IF(EXACT($B138,LOOKUP($B138,'INPUT '!$D$16:$D$116)),LOOKUP($B138,'INPUT '!$D$16:$D$116,'INPUT '!$F$16:$F$116),"0") -> 0 | E138: LID OF PLASTIC ( Pieces Only ) | F138: PIECE | H138: 9900000791 | I138: 0 | J138: 0 | M138: 0 | P138: 0 | S138: 0 | V138: 0 | Y138: 0
A139: 9900010798 | B139: =Data!$A139-9900010000 -> 798 | C139: =IF(EXACT($B139,LOOKUP($B139,'INPUT '!$D$16:$D$116)),LOOKUP($B139,'INPUT '!$D$16:$D$116,'INPUT '!$E$16:$E$116),"0") -> 0 | D139: =IF(EXACT($B139,LOOKUP($B139,'INPUT '!$D$16:$D$116)),LOOKUP($B139,'INPUT '!$D$16:$D$116,'INPUT '!$F$16:$F$116),"0") -> 0 | E139: SPACER OF PLASTIC | H139: 9900000798 | I139: 120 | J139: 0 | M139: 0 | N139: 9900000001 | O139: 1 | P139: 0 | Q139: 9900000021 | R139: 4 | S139: 0 | T139: 9900000071 | U139: 1 | V139: 0 | Y139: 0
A140: 9900010800 | B140: =Data!$A140-9900010000 -> 800 | C140: =IF(EXACT($B140,LOOKUP($B140,'INPUT '!$D$16:$D$116)),LOOKUP($B140,'INPUT '!$D$16:$D$116,'INPUT '!$E$16:$E$116),"0") -> 0 | D140: =IF(EXACT($B140,LOOKUP($B140,'INPUT '!$D$16:$D$116)),LOOKUP($B140,'INPUT '!$D$16:$D$116,'INPUT '!$F$16:$F$116),"0") -> 0 | E140: Bundle BOX OF PLASTIC | H140: 9900020800 | I140: 40 | J140: 0 | M140: 0 | N140: 9900000001 | O140: 1 | P140: 0 | S140: 0 | T140: 9900000091 | U140: 1 | V140: 0 | Y140: 0
A141: 9900010801 | B141: =Data!$A141-9900010000 -> 801 | C141: =IF(EXACT($B141,LOOKUP($B141,'INPUT '!$D$16:$D$116)),LOOKUP($B141,'INPUT '!$D$16:$D$116,'INPUT '!$E$16:$E$116),"0") -> 0 | D141: =IF(EXACT($B141,LOOKUP($B141,'INPUT '!$D$16:$D$116)),LOOKUP($B141,'INPUT '!$D$16:$D$116,'INPUT '!$F$16:$F$116),"0") -> 0 | E141: LID OF PLASTIC ( Pieces Only ) | F141: PIECE | H141: 9900000801 | I141: 0 | J141: 0 | M141: 0 | P141: 0 | S141: 0 | V141: 0 | Y141: 0
A142: 9900010814 | B142: =Data!$A142-9900010000 -> 814 | C142: =IF(EXACT($B142,LOOKUP($B142,'INPUT '!$D$16:$D$116)),LOOKUP($B142,'INPUT '!$D$16:$D$116,'INPUT '!$E$16:$E$116),"0") -> 0 | D142: =IF(EXACT($B142,LOOKUP($B142,'INPUT '!$D$16:$D$116)),LOOKUP($B142,'INPUT '!$D$16:$D$116,'INPUT '!$F$16:$F$116),"0") -> 0 | E142: COMBITAINER | H142: 9900000814 | I142: 10 | J142: 0 | M142: 0 | N142: 9900000836 | O142: 1 | P142: 0 | S142: 0 | V142: 0 | Y142: 0
A143: 9900010836 | B143: =Data!$A143-9900010000 -> 836 | C143: =IF(EXACT($B143,LOOKUP($B143,'INPUT '!$D$16:$D$116)),LOOKUP($B143,'INPUT '!$D$16:$D$116,'INPUT '!$E$16:$E$116),"0") -> 0 | D143: =IF(EXACT($B143,LOOKUP($B143,'INPUT '!$D$16:$D$116)),LOOKUP($B143,'INPUT '!$D$16:$D$116,'INPUT '!$F$16:$F$116),"0") -> 0 | E143: PALLET OF STEEL | H143: 9900000836 | I143: 1 | J143: 0 | M143: 0 | P143: 0 | S143: 0 | V143: 0 | Y143: 0
A144: 9900010840 | B144: =Data!$A144-9900010000 -> 840 | C144: =IF(EXACT($B144,LOOKUP($B144,'INPUT '!$D$16:$D$116)),LOOKUP($B144,'INPUT '!$D$16:$D$116,'INPUT '!$E$16:$E$116),"0") -> 0 | D144: =IF(EXACT($B144,LOOKUP($B144,'INPUT '!$D$16:$D$116)),LOOKUP($B144,'INPUT '!$D$16:$D$116,'INPUT '!$F$16:$F$116),"0") -> 0 | E144: Bundle BOX OF PLASTIC | H144: 9900020840 | I144: 20 | J144: 0 | M144: 0 | N144: 9900000001 | O144: 1 | P144: 0 | S144: 0 | T144: 9900000071 | U144: 1 | V144: 0 | Y144: 0
A145: 9900010841 | B145: =Data!$A145-9900010000 -> 841 | C145: =IF(EXACT($B145,LOOKUP($B145,'INPUT '!$D$16:$D$116)),LOOKUP($B145,'INPUT '!$D$16:$D$116,'INPUT '!$E$16:$E$116),"0") -> 0 | D145: =IF(EXACT($B145,LOOKUP($B145,'INPUT '!$D$16:$D$116)),LOOKUP($B145,'INPUT '!$D$16:$D$116,'INPUT '!$F$16:$F$116),"0") -> 0 | E145: LID OF PLASTIC ( Pieces Only ) | F145: PIECE | H145: 9900000841 | I145: 0 | J145: 0 | M145: 0 | P145: 0 | S145: 0 | V145: 0 | Y145: 0
A146: 9900010859 | B146: =Data!$A146-9900010000 -> 859 | C146: =IF(EXACT($B146,LOOKUP($B146,'INPUT '!$D$16:$D$116)),LOOKUP($B146,'INPUT '!$D$16:$D$116,'INPUT '!$E$16:$E$116),"0") -> 0 | D146: =IF(EXACT($B146,LOOKUP($B146,'INPUT '!$D$16:$D$116)),LOOKUP($B146,'INPUT '!$D$16:$D$116,'INPUT '!$F$16:$F$116),"0") -> 0 | E146: Bundle BOX OF PLASTIC | H146: 9900000859 | I146: 100 | J146: =I146*C146 -> 0 | M146: =L146*C146 -> 0 | N146: 9900000001 | O146: 1 | P146: =O146*C146 -> 0 | S146: =R146*C146 -> 0 | T146: 9900000091 | U146: 1 | V146: =U146*C146 -> 0 | Y146: =X146*C146 -> 0
A147: 9900010890 | B147: =Data!$A147-9900010000 -> 890 | C147: =IF(EXACT($B147,LOOKUP($B147,'INPUT '!$D$16:$D$116)),LOOKUP($B147,'INPUT '!$D$16:$D$116,'INPUT '!$E$16:$E$116),"0") -> 0 | D147: =IF(EXACT($B147,LOOKUP($B147,'INPUT '!$D$16:$D$116)),LOOKUP($B147,'INPUT '!$D$16:$D$116,'INPUT '!$F$16:$F$116),"0") -> 0 | E147: SPACER OF PLASTIC | H147: 9900000890 | I147: 18 | J147: =I147*C147 -> 0 | K147: 9900000061 | L147: 1 | M147: =L147*C147 -> 0 | N147: 9900000001 | O147: 1 | P147: =O147*C147 -> 0 | Q147: 9900000021 | R147: 4 | S147: 0 | T147: 9900000071 | U147: 1 | V147: =U147*C147 -> 0 | W147: 9900001041 | X147: 1 | Y147: 0
A148: 9900011021 | B148: =Data!$A148-9900010000 -> 1021 | C148: =IF(EXACT($B148,LOOKUP($B148,'INPUT '!$D$16:$D$116)),LOOKUP($B148,'INPUT '!$D$16:$D$116,'INPUT '!$E$16:$E$116),"0") -> 0 | D148: =IF(EXACT($B148,LOOKUP($B148,'INPUT '!$D$16:$D$116)),LOOKUP($B148,'INPUT '!$D$16:$D$116,'INPUT '!$F$16:$F$116),"0") -> 0 | E148: PLASTIC COVER, PALLET BOX L | F148: L | H148: 9900001021 | I148: 250 | J148: 0 | M148: 0 | N148: 9900000001 | O148: 1 | P148: 0 | S148: 0 | V148: 0 | Y148: 0
A149: 9900011022 | B149: =Data!$A149-9900010000 -> 1022 | C149: =IF(EXACT($B149,LOOKUP($B149,'INPUT '!$D$16:$D$116)),LOOKUP($B149,'INPUT '!$D$16:$D$116,'INPUT '!$E$16:$E$116),"0") -> 0 | D149: =IF(EXACT($B149,LOOKUP($B149,'INPUT '!$D$16:$D$116)),LOOKUP($B149,'INPUT '!$D$16:$D$116,'INPUT '!$F$16:$F$116),"0") -> 0 | E149: PLASTIC COVER, PALLET BOX K2 | F149: K | H149: 9900001022 | I149: 200 | J149: 0 | M149: 0 | N149: 9900000002 | O149: 1 | P149: 0 | S149: 0 | V149: 0 | Y149: 0
A150: 9900011025 | B150: =Data!$A150-9900010000 -> 1025 | C150: =IF(EXACT($B150,LOOKUP($B150,'INPUT '!$D$16:$D$116)),LOOKUP($B150,'INPUT '!$D$16:$D$116,'INPUT '!$E$16:$E$116),"0") -> 0 | D150: =IF(EXACT($B150,LOOKUP($B150,'INPUT '!$D$16:$D$116)),LOOKUP($B150,'INPUT '!$D$16:$D$116,'INPUT '!$F$16:$F$116),"0") -> 0 | E150: PLASTIC COVER, PALLET BOX F2 | F150: F | H150: 9900001025 | I150: 250 | J150: 0 | M150: 0 | N150: 9900000005 | O150: 1 | P150: 0 | S150: 0 | V150: 0 | Y150: 0
A151: 9900011026 | B151: =Data!$A151-9900010000 -> 1026 | C151: =IF(EXACT($B151,LOOKUP($B151,'INPUT '!$D$16:$D$116)),LOOKUP($B151,'INPUT '!$D$16:$D$116,'INPUT '!$E$16:$E$116),"0") -> 0 | D151: =IF(EXACT($B151,LOOKUP($B151,'INPUT '!$D$16:$D$116)),LOOKUP($B151,'INPUT '!$D$16:$D$116,'INPUT '!$F$16:$F$116),"0") -> 0 | E151: PLASTIC COVER, PALLET BOX G2 | F151: G | H151: 9900001026 | I151: 250 | J151: 0 | M151: 0 | N151: 9900000006 | O151: 1 | P151: 0 | S151: 0 | V151: 0 | Y151: 0
A152: 9900011029 | B152: =Data!$A152-9900010000 -> 1029 | C152: =IF(EXACT($B152,LOOKUP($B152,'INPUT '!$D$16:$D$116)),LOOKUP($B152,'INPUT '!$D$16:$D$116,'INPUT '!$E$16:$E$116),"0") -> 0 | D152: =IF(EXACT($B152,LOOKUP($B152,'INPUT '!$D$16:$D$116)),LOOKUP($B152,'INPUT '!$D$16:$D$116,'INPUT '!$F$16:$F$116),"0") -> 0 | E152: PLASTIC COVER, PALLET BOX H2 | F152: H | H152: 9900001029 | I152: 250 | J152: 0 | M152: 0 | N152: 9900000009 | O152: 1 | P152: 0 | S152: 0 | V152: 0 | Y152: 0
A153: 9900011031 | B153: =Data!$A153-9900010000 -> 1031 | C153: =IF(EXACT($B153,LOOKUP($B153,'INPUT '!$D$16:$D$116)),LOOKUP($B153,'INPUT '!$D$16:$D$116,'INPUT '!$E$16:$E$116),"0") -> 0 | D153: =IF(EXACT($B153,LOOKUP($B153,'INPUT '!$D$16:$D$116)),LOOKUP($B153,'INPUT '!$D$16:$D$116,'INPUT '!$F$16:$F$116),"0") -> 0 | E153: PLASTIC COVER, PALLET BOXL3 | F153: L | H153: 9900001031 | I153: 250 | J153: =I153*C153 -> 0 | M153: =L153*C153 -> 0 | N153: 9900000001 | O153: 1 | P153: =O153*C153 -> 0 | S153: 0 | V153: =U153*C153 -> 0 | Y153: =X153*C153 -> 0
A154: 9900011041 | B154: =Data!$A154-9900010000 -> 1041 | C154: =IF(EXACT($B154,LOOKUP($B154,'INPUT '!$D$16:$D$116)),LOOKUP($B154,'INPUT '!$D$16:$D$116,'INPUT '!$E$16:$E$116),"0") -> 0 | D154: =IF(EXACT($B154,LOOKUP($B154,'INPUT '!$D$16:$D$116)),LOOKUP($B154,'INPUT '!$D$16:$D$116,'INPUT '!$F$16:$F$116),"0") -> 0 | E154: PLASTIC COVER, PALLET BOX L4 | F154: L | H154: 9900001041 | I154: 200 | J154: =I154*C154 -> 0 | M154: 0 | N154: 9900000001 | O154: 1 | P154: 0 | S154: 0 | V154: 0 | Y154: 0
A155: 9900011046 | B155: =Data!$A155-9900010000 -> 1046 | C155: =IF(EXACT($B155,LOOKUP($B155,'INPUT '!$D$16:$D$116)),LOOKUP($B155,'INPUT '!$D$16:$D$116,'INPUT '!$E$16:$E$116),"0") -> 0 | D155: =IF(EXACT($B155,LOOKUP($B155,'INPUT '!$D$16:$D$116)),LOOKUP($B155,'INPUT '!$D$16:$D$116,'INPUT '!$F$16:$F$116),"0") -> 0 | E155: PLASTIC COVER, PALLET BOX G4 | F155: G | H155: 9900001046 | I155: 200 | J155: 0 | M155: 0 | N155: 9900000006 | O155: 1 | P155: 0 | S155: 0 | V155: 0 | Y155: 0
A156: 9900011055 | B156: =Data!$A156-9900010000 -> 1055 | C156: =IF(EXACT($B156,LOOKUP($B156,'INPUT '!$D$16:$D$116)),LOOKUP($B156,'INPUT '!$D$16:$D$116,'INPUT '!$E$16:$E$116),"0") -> 0 | D156: =IF(EXACT($B156,LOOKUP($B156,'INPUT '!$D$16:$D$116)),LOOKUP($B156,'INPUT '!$D$16:$D$116,'INPUT '!$F$16:$F$116),"0") -> 0 | E156: RACK OF STEEL | H156: 9900001055 | I156: 1 | J156: =I156*C156 -> 0 | M156: =L156*C156 -> 0 | P156: =O156*C156 -> 0 | S156: 0 | V156: =U156*C156 -> 0 | Y156: =X156*C156 -> 0
A157: 9900011107 | B157: =Data!$A157-9900010000 -> 1107 | C157: =IF(EXACT($B157,LOOKUP($B157,'INPUT '!$D$16:$D$116)),LOOKUP($B157,'INPUT '!$D$16:$D$116,'INPUT '!$E$16:$E$116),"0") -> 0 | D157: =IF(EXACT($B157,LOOKUP($B157,'INPUT '!$D$16:$D$116)),LOOKUP($B157,'INPUT '!$D$16:$D$116,'INPUT '!$F$16:$F$116),"0") -> 0 | E157: FIXING SPACER OF PLASTIC | H157: 9900001107 | I157: 30 | J157: 0 | M157: 0 | N157: 9900000001 | O157: 1 | P157: 0 | Q157: 9900000021 | R157: 3 | S157: 0 | T157: 9900000071 | U157: 1 | V157: 0 | Y157: 0
A158: 9900011109 | B158: =Data!$A158-9900010000 -> 1109 | C158: =IF(EXACT($B158,LOOKUP($B158,'INPUT '!$D$16:$D$116)),LOOKUP($B158,'INPUT '!$D$16:$D$116,'INPUT '!$E$16:$E$116),"0") -> 0 | D158: =IF(EXACT($B158,LOOKUP($B158,'INPUT '!$D$16:$D$116)),LOOKUP($B158,'INPUT '!$D$16:$D$116,'INPUT '!$F$16:$F$116),"0") -> 0 | E158: RACK OF STEEL | H158: 9900001109 | I158: 1 | J158: 0 | M158: 0 | P158: 0 | S158: 0 | V158: 0 | Y158: 0
A159: 9900011113 | B159: =Data!$A159-9900010000 -> 1113 | C159: =IF(EXACT($B159,LOOKUP($B159,'INPUT '!$D$16:$D$116)),LOOKUP($B159,'INPUT '!$D$16:$D$116,'INPUT '!$E$16:$E$116),"0") -> 0 | D159: =IF(EXACT($B159,LOOKUP($B159,'INPUT '!$D$16:$D$116)),LOOKUP($B159,'INPUT '!$D$16:$D$116,'INPUT '!$F$16:$F$116),"0") -> 0 | E159: RACK OF STEEL | H159: 9900001113 | I159: 1 | J159: =I159*C159 -> 0 | M159: =L159*C159 -> 0 | P159: =O159*C159 -> 0 | S159: 0 | V159: =U159*C159 -> 0 | Y159: =X159*C159 -> 0
A160: 9900011120 | B160: =Data!$A160-9900010000 -> 1120 | C160: =IF(EXACT($B160,LOOKUP($B160,'INPUT '!$D$16:$D$116)),LOOKUP($B160,'INPUT '!$D$16:$D$116,'INPUT '!$E$16:$E$116),"0") -> 0 | D160: =IF(EXACT($B160,LOOKUP($B160,'INPUT '!$D$16:$D$116)),LOOKUP($B160,'INPUT '!$D$16:$D$116,'INPUT '!$F$16:$F$116),"0") -> 0 | E160: SUPPORT OF STEEL | H160: 9900001120 | I160: 14 | J160: =I160*C160 -> 0 | M160: =L160*C160 -> 0 | N160: 9900000002 | O160: 1 | P160: =O160*C160 -> 0 | Q160: 9900000022 | R160: 1 | S160: 0 | T160: 9900000072 | U160: 1 | V160: =U160*C160 -> 0 | Y160: =X160*C160 -> 0
A161: 9900011121 | B161: =Data!$A161-9900010000 -> 1121 | C161: =IF(EXACT($B161,LOOKUP($B161,'INPUT '!$D$16:$D$116)),LOOKUP($B161,'INPUT '!$D$16:$D$116,'INPUT '!$E$16:$E$116),"0") -> 0 | D161: =IF(EXACT($B161,LOOKUP($B161,'INPUT '!$D$16:$D$116)),LOOKUP($B161,'INPUT '!$D$16:$D$116,'INPUT '!$F$16:$F$116),"0") -> 0 | E161: SUPPORT OF STEEL | H161: 9900001121 | I161: 14 | J161: =I161*C161 -> 0 | M161: =L161*C161 -> 0 | N161: 9900000002 | O161: 1 | P161: =O161*C161 -> 0 | Q161: 9900000022 | R161: 1 | S161: =R161*C161 -> 0 | T161: 9900000072 | U161: 1 | V161: =U161*C161 -> 0 | Y161: =X161*C161 -> 0
A162: 9900011114 | B162: =Data!$A162-9900010000 -> 1114 | C162: =IF(EXACT($B162,LOOKUP($B162,'INPUT '!$D$16:$D$116)),LOOKUP($B162,'INPUT '!$D$16:$D$116,'INPUT '!$E$16:$E$116),"0") -> 0 | D162: =IF(EXACT($B162,LOOKUP($B162,'INPUT '!$D$16:$D$116)),LOOKUP($B162,'INPUT '!$D$16:$D$116,'INPUT '!$F$16:$F$116),"0") -> 0 | E162: RACK OF STEEL | H162: 9900001114 | I162: 1 | J162: =I162*C162 -> 0 | M162: =L162*C162 -> 0 | P162: =O162*C162 -> 0 | S162: 0 | V162: =U162*C162 -> 0 | Y162: =X162*C162 -> 0
A163: 9900011124 | B163: =Data!$A163-9900010000 -> 1124 | C163: =IF(EXACT($B163,LOOKUP($B163,'INPUT '!$D$16:$D$116)),LOOKUP($B163,'INPUT '!$D$16:$D$116,'INPUT '!$E$16:$E$116),"0") -> 0 | D163: =IF(EXACT($B163,LOOKUP($B163,'INPUT '!$D$16:$D$116)),LOOKUP($B163,'INPUT '!$D$16:$D$116,'INPUT '!$F$16:$F$116),"0") -> 0 | E163: FIXING SPACER OF PLASTIC | H163: 9900001124 | I163: 30 | J163: 0 | M163: 0 | N163: 9900000001 | O163: 1 | P163: 0 | Q163: 9900000021 | R163: 3 | S163: 0 | T163: 9900000071 | U163: 1 | V163: 0 | Y163: 0
A164: 9900011136 | B164: =Data!$A164-9900010000 -> 1136 | C164: =IF(EXACT($B164,LOOKUP($B164,'INPUT '!$D$16:$D$116)),LOOKUP($B164,'INPUT '!$D$16:$D$116,'INPUT '!$E$16:$E$116),"0") -> 0 | D164: =IF(EXACT($B164,LOOKUP($B164,'INPUT '!$D$16:$D$116)),LOOKUP($B164,'INPUT '!$D$16:$D$116,'INPUT '!$F$16:$F$116),"0") -> 0 | E164: RACK OF STEEL | H164: 9900001136 | I164: 1 | J164: 0 | M164: 0 | P164: 0 | S164: 0 | V164: 0 | Y164: 0
A165: 9900011171 | B165: =Data!$A165-9900010000 -> 1171 | C165: =IF(EXACT($B165,LOOKUP($B165,'INPUT '!$D$16:$D$116)),LOOKUP($B165,'INPUT '!$D$16:$D$116,'INPUT '!$E$16:$E$116),"0") -> 0 | D165: =IF(EXACT($B165,LOOKUP($B165,'INPUT '!$D$16:$D$116)),LOOKUP($B165,'INPUT '!$D$16:$D$116,'INPUT '!$F$16:$F$116),"0") -> 0 | E165: LID OF PLASTIC | F165: L | H165: 9900001171 | I165: 25 | J165: =I165*C165 -> 0 | M165: =L165*C165 -> 0 | N165: 9900000001 | O165: 1 | P165: =O165*C165 -> 0 | S165: 0 | V165: =U165*C165 -> 0 | Y165: =X165*C165 -> 0
A166: 9900011180 | B166: =Data!$A166-9900010000 -> 1180 | C166: =IF(EXACT($B166,LOOKUP($B166,'INPUT '!$D$16:$D$116)),LOOKUP($B166,'INPUT '!$D$16:$D$116,'INPUT '!$E$16:$E$116),"0") -> 0 | D166: =IF(EXACT($B166,LOOKUP($B166,'INPUT '!$D$16:$D$116)),LOOKUP($B166,'INPUT '!$D$16:$D$116,'INPUT '!$F$16:$F$116),"0") -> 0 | E166: RACK OF STEEL | F166: L | H166: 9900001180 | I166: 1 | J166: =I166*C166 -> 0 | M166: =L166*C166 -> 0 | P166: =O166*C166 -> 0 | S166: =R166*C166 -> 0 | V166: =U166*C166 -> 0 | Y166: =X166*C166 -> 0
A167: 9900011200 | B167: =Data!$A167-9900010000 -> 1200 | C167: =IF(EXACT($B167,LOOKUP($B167,'INPUT '!$D$16:$D$116)),LOOKUP($B167,'INPUT '!$D$16:$D$116,'INPUT '!$E$16:$E$116),"0") -> 0 | D167: =IF(EXACT($B167,LOOKUP($B167,'INPUT '!$D$16:$D$116)),LOOKUP($B167,'INPUT '!$D$16:$D$116,'INPUT '!$F$16:$F$116),"0") -> 0 | E167: BOX OF PLASTIC | F167: L | H167: 9900001200 | I167: 27 | J167: 0 | M167: 0 | N167: 9900000001 | O167: 1 | P167: 0 | S167: 0 | T167: 9900000091 | U167: 1 | V167: 0 | W167: 9900001041 | X167: 1 | Y167: 0
A168: 9900011373 | B168: =Data!$A168-9900010000 -> 1373 | C168: =IF(EXACT($B168,LOOKUP($B168,'INPUT '!$D$16:$D$116)),LOOKUP($B168,'INPUT '!$D$16:$D$116,'INPUT '!$E$16:$E$116),"0") -> 0 | D168: =IF(EXACT($B168,LOOKUP($B168,'INPUT '!$D$16:$D$116)),LOOKUP($B168,'INPUT '!$D$16:$D$116,'INPUT '!$F$16:$F$116),"0") -> 0 | E168: Rack Of Steel | H168: 9900001373 | I168: 1 | J168: 0 | M168: 0 | N168: 0 | P168: 0 | S168: 0 | V168: 0 | Y168: 0
A169: 9900011396 | B169: =Data!$A169-9900010000 -> 1396 | C169: =IF(EXACT($B169,LOOKUP($B169,'INPUT '!$D$16:$D$116)),LOOKUP($B169,'INPUT '!$D$16:$D$116,'INPUT '!$E$16:$E$116),"0") -> 0 | D169: =IF(EXACT($B169,LOOKUP($B169,'INPUT '!$D$16:$D$116)),LOOKUP($B169,'INPUT '!$D$16:$D$116,'INPUT '!$F$16:$F$116),"0") -> 0 | E169: SPACER OF PLASTIC | H169: 9900001396 | I169: 16 | J169: 0 | K169: 9900020840 | L169: 8 | M169: 0 | N169: 9900000001 | O169: 1 | P169: 0 | S169: 0 | V169: 0 | Y169: 0
A170: 9900011397 | B170: =Data!$A170-9900010000 -> 1397 | C170: =IF(EXACT($B170,LOOKUP($B170,'INPUT '!$D$16:$D$116)),LOOKUP($B170,'INPUT '!$D$16:$D$116,'INPUT '!$E$16:$E$116),"0") -> 0 | D170: =IF(EXACT($B170,LOOKUP($B170,'INPUT '!$D$16:$D$116)),LOOKUP($B170,'INPUT '!$D$16:$D$116,'INPUT '!$F$16:$F$116),"0") -> 0 | E170: SPACER OF PLASTIC | H170: 9900001397 | I170: 32 | J170: 0 | K170: 9900020840 | L170: 8 | M170: 0 | N170: 9900000001 | O170: 1 | P170: 0 | S170: 0 | V170: 0 | Y170: 0
A171: 9900011408 | B171: =Data!$A171-9900010000 -> 1408 | C171: =IF(EXACT($B171,LOOKUP($B171,'INPUT '!$D$16:$D$116)),LOOKUP($B171,'INPUT '!$D$16:$D$116,'INPUT '!$E$16:$E$116),"0") -> 0 | D171: =IF(EXACT($B171,LOOKUP($B171,'INPUT '!$D$16:$D$116)),LOOKUP($B171,'INPUT '!$D$16:$D$116,'INPUT '!$F$16:$F$116),"0") -> 0 | E171: BOX OF PLASTIC | H171: 9900001408 | I171: 48 | J171: 0 | K171: 9900000412 | L171: 1 | M171: 0 | N171: 0 | P171: 0 | S171: 0 | V171: 0 | Y171: 0
A172: 9900011414 | B172: =Data!$A172-9900010000 -> 1414 | C172: =IF(EXACT($B172,LOOKUP($B172,'INPUT '!$D$16:$D$116)),LOOKUP($B172,'INPUT '!$D$16:$D$116,'INPUT '!$E$16:$E$116),"0") -> 0 | D172: =IF(EXACT($B172,LOOKUP($B172,'INPUT '!$D$16:$D$116)),LOOKUP($B172,'INPUT '!$D$16:$D$116,'INPUT '!$F$16:$F$116),"0") -> 0 | E172: INSERT OF PLASTIC | H172: 9900001414 | I172: 40 | J172: 0 | K172: 9900020790 | L172: 8 | M172: 0 | N172: 0 | P172: 0 | S172: 0 | V172: 0 | Y172: 0
A173: 9900011415 | B173: =Data!$A173-9900010000 -> 1415 | C173: =IF(EXACT($B173,LOOKUP($B173,'INPUT '!$D$16:$D$116)),LOOKUP($B173,'INPUT '!$D$16:$D$116,'INPUT '!$E$16:$E$116),"0") -> 0 | D173: =IF(EXACT($B173,LOOKUP($B173,'INPUT '!$D$16:$D$116)),LOOKUP($B173,'INPUT '!$D$16:$D$116,'INPUT '!$F$16:$F$116),"0") -> 0 | E173: RACK OF STEEL | H173: 9900001415 | I173: 1 | J173: =I173*C173 -> 0 | M173: =L173*C173 -> 0 | P173: =O173*C173 -> 0 | S173: 0 | V173: =U173*C173 -> 0 | Y173: =X173*C173 -> 0
A174: 9900011416 | B174: =Data!$A174-9900010000 -> 1416 | C174: =IF(EXACT($B174,LOOKUP($B174,'INPUT '!$D$16:$D$116)),LOOKUP($B174,'INPUT '!$D$16:$D$116,'INPUT '!$E$16:$E$116),"0") -> 0 | D174: =IF(EXACT($B174,LOOKUP($B174,'INPUT '!$D$16:$D$116)),LOOKUP($B174,'INPUT '!$D$16:$D$116,'INPUT '!$F$16:$F$116),"0") -> 0 | E174: BATTEN OF WOOD | H174: 9900001416 | I174: 42 | J174: =I174*C174 -> 0 | M174: =L174*C174 -> 0 | N174: 9900000701 | O174: 1 | P174: =O174*C174 -> 0 | S174: 0 | V174: =U174*C174 -> 0 | Y174: =X174*C174 -> 0
A175: 9900011420 | B175: =Data!$A175-9900010000 -> 1420 | C175: =IF(EXACT($B175,LOOKUP($B175,'INPUT '!$D$16:$D$116)),LOOKUP($B175,'INPUT '!$D$16:$D$116,'INPUT '!$E$16:$E$116),"0") -> 0 | D175: =IF(EXACT($B175,LOOKUP($B175,'INPUT '!$D$16:$D$116)),LOOKUP($B175,'INPUT '!$D$16:$D$116,'INPUT '!$F$16:$F$116),"0") -> 0 | E175: RACK OF STEEL | H175: 9900001420 | I175: 1 | J175: =I175*C175 -> 0 | M175: =L175*C175 -> 0 | P175: =O175*C175 -> 0 | S175: =R175*C175 -> 0 | V175: =U175*C175 -> 0 | Y175: =X175*C175 -> 0
A176: 9900011424 | B176: =Data!$A176-9900010000 -> 1424 | C176: =IF(EXACT($B176,LOOKUP($B176,'INPUT '!$D$16:$D$116)),LOOKUP($B176,'INPUT '!$D$16:$D$116,'INPUT '!$E$16:$E$116),"0") -> 0 | D176: =IF(EXACT($B176,LOOKUP($B176,'INPUT '!$D$16:$D$116)),LOOKUP($B176,'INPUT '!$D$16:$D$116,'INPUT '!$F$16:$F$116),"0") -> 0 | E176: RACK OF STEEL | H176: 9900001424 | I176: 1 | J176: 0 | M176: 0 | N176: 0 | P176: 0 | S176: 0 | V176: 0 | Y176: 0
A177: 9900011425 | B177: =Data!$A177-9900010000 -> 1425 | C177: =IF(EXACT($B177,LOOKUP($B177,'INPUT '!$D$16:$D$116)),LOOKUP($B177,'INPUT '!$D$16:$D$116,'INPUT '!$E$16:$E$116),"0") -> 0 | D177: =IF(EXACT($B177,LOOKUP($B177,'INPUT '!$D$16:$D$116)),LOOKUP($B177,'INPUT '!$D$16:$D$116,'INPUT '!$F$16:$F$116),"0") -> 0 | E177: FIXING SPACER OF PLASTIC | H177: 9900001425 | I177: 1 | J177: =I177*C177 -> 0 | K177: 9900000069 | L177: 1 | M177: =L177*C177 -> 0 | N177: 9900000009 | O177: 1 | P177: 0 | Q177: 9900000029 | R177: 5 | S177: 0 | T177: 9900000079 | U177: 1 | V177: =U177*C177 -> 0 | W177: 9900001029 | X177: 1 | Y177: =X177*C177 -> 0
A178: 9900011427 | B178: =Data!$A178-9900010000 -> 1427 | C178: =IF(EXACT($B178,LOOKUP($B178,'INPUT '!$D$16:$D$116)),LOOKUP($B178,'INPUT '!$D$16:$D$116,'INPUT '!$E$16:$E$116),"0") -> 0 | D178: =IF(EXACT($B178,LOOKUP($B178,'INPUT '!$D$16:$D$116)),LOOKUP($B178,'INPUT '!$D$16:$D$116,'INPUT '!$F$16:$F$116),"0") -> 0 | E178: FIXING SPACER OF PLASTIC | H178: 9900001427 | I178: 36 | J178: 0 | M178: 0 | N178: 9900000002 | O178: 1 | P178: 0 | Q178: 9900000022 | R178: 3 | S178: 0 | T178: 9900000072 | U178: 1 | V178: 0 | Y178: 0
A179: 9900011445 | B179: =Data!$A179-9900010000 -> 1445 | C179: =IF(EXACT($B179,LOOKUP($B179,'INPUT '!$D$16:$D$116)),LOOKUP($B179,'INPUT '!$D$16:$D$116,'INPUT '!$E$16:$E$116),"0") -> 0 | D179: =IF(EXACT($B179,LOOKUP($B179,'INPUT '!$D$16:$D$116)),LOOKUP($B179,'INPUT '!$D$16:$D$116,'INPUT '!$F$16:$F$116),"0") -> 0 | E179: FIXING SPACER OF PLASTIC | H179: 9900001445 | I179: 5 | J179: =I179*C179 -> 0 | M179: =L179*C179 -> 0 | N179: 9900000001 | O179: 1 | P179: =O179*C179 -> 0 | Q179: 9900000021 | R179: 2 | S179: 0 | T179: 9900000071 | U179: 1 | V179: =U179*C179 -> 0 | Y179: =X179*C179 -> 0
A180: 9900011447 | B180: =Data!$A180-9900010000 -> 1447 | C180: =IF(EXACT($B180,LOOKUP($B180,'INPUT '!$D$16:$D$116)),LOOKUP($B180,'INPUT '!$D$16:$D$116,'INPUT '!$E$16:$E$116),"0") -> 0 | D180: =IF(EXACT($B180,LOOKUP($B180,'INPUT '!$D$16:$D$116)),LOOKUP($B180,'INPUT '!$D$16:$D$116,'INPUT '!$F$16:$F$116),"0") -> 0 | E180: FIXING SPACER OF PLASTIC | H180: 9900001447 | I180: 30 | J180: =I180*C180 -> 0 | M180: =L180*C180 -> 0 | N180: 9900000001 | O180: 1 | P180: =O180*C180 -> 0 | Q180: 9900000021 | R180: 2 | S180: 0 | T180: 9900000071 | U180: 1 | V180: =U180*C180 -> 0 | Y180: =X180*C180 -> 0
A181: 9900011458 | B181: =Data!$A181-9900010000 -> 1458 | C181: =IF(EXACT($B181,LOOKUP($B181,'INPUT '!$D$16:$D$116)),LOOKUP($B181,'INPUT '!$D$16:$D$116,'INPUT '!$E$16:$E$116),"0") -> 0 | D181: =IF(EXACT($B181,LOOKUP($B181,'INPUT '!$D$16:$D$116)),LOOKUP($B181,'INPUT '!$D$16:$D$116,'INPUT '!$F$16:$F$116),"0") -> 0 | E181: FIXING INSERT OF PLASTIC | F181: L | H181: 9900001458 | I181: 32 | J181: =I181*C181 -> 0 | K181: 9900020840 | L181: 8 | M181: =L181*C181 -> 0 | N181: 9900000001 | O181: 1 | P181: =O181*C181 -> 0 | S181: 0 | V181: =U181*C181 -> 0 | Y181: =X181*C181 -> 0
A182: 9900011462 | B182: =Data!$A182-9900010000 -> 1462 | C182: =IF(EXACT($B182,LOOKUP($B182,'INPUT '!$D$16:$D$116)),LOOKUP($B182,'INPUT '!$D$16:$D$116,'INPUT '!$E$16:$E$116),"0") -> 0 | D182: =IF(EXACT($B182,LOOKUP($B182,'INPUT '!$D$16:$D$116)),LOOKUP($B182,'INPUT '!$D$16:$D$116,'INPUT '!$F$16:$F$116),"0") -> 0 | E182: SPACER OF PLASTIC | F182: L | H182: 9900001462 | I182: 8 | J182: 0 | K182: 9900020840 | L182: 8 | M182: 0 | N182: 9900000001 | O182: 1 | P182: 0 | S182: 0 | V182: 0 | Y182: 0
A183: 9900011463 | B183: =Data!$A183-9900010000 -> 1463 | C183: =IF(EXACT($B183,LOOKUP($B183,'INPUT '!$D$16:$D$116)),LOOKUP($B183,'INPUT '!$D$16:$D$116,'INPUT '!$E$16:$E$116),"0") -> 0 | D183: =IF(EXACT($B183,LOOKUP($B183,'INPUT '!$D$16:$D$116)),LOOKUP($B183,'INPUT '!$D$16:$D$116,'INPUT '!$F$16:$F$116),"0") -> 0 | E183: SPACER OF WOOD | F183: G | H183: 9900001463 | I183: 136 | J183: 0 | M183: 0 | N183: 9900000006 | O183: 1 | P183: 0 | Q183: 9900000026 | R183: 2 | S183: 0 | T183: 9900000076 | U183: 1 | V183: 0 | W183: 9900001026 | X183: 1 | Y183: 0
A184: 9900011464 | B184: =Data!$A184-9900010000 -> 1464 | C184: =IF(EXACT($B184,LOOKUP($B184,'INPUT '!$D$16:$D$116)),LOOKUP($B184,'INPUT '!$D$16:$D$116,'INPUT '!$E$16:$E$116),"0") -> 0 | D184: =IF(EXACT($B184,LOOKUP($B184,'INPUT '!$D$16:$D$116)),LOOKUP($B184,'INPUT '!$D$16:$D$116,'INPUT '!$F$16:$F$116),"0") -> 0 | E184: SPACER OF WOOD | F184: L | H184: 9900001464 | I184: 136 | J184: 0 | M184: 0 | N184: 9900000001 | O184: 1 | P184: 0 | Q184: 9900000021 | R184: 2 | S184: 0 | T184: 9900000071 | U184: 1 | V184: 0 | W184: 9900001021 | X184: 1 | Y184: 0
A185: 9900011475 | B185: =Data!$A185-9900010000 -> 1475 | C185: =IF(EXACT($B185,LOOKUP($B185,'INPUT '!$D$16:$D$116)),LOOKUP($B185,'INPUT '!$D$16:$D$116,'INPUT '!$E$16:$E$116),"0") -> 0 | D185: =IF(EXACT($B185,LOOKUP($B185,'INPUT '!$D$16:$D$116)),LOOKUP($B185,'INPUT '!$D$16:$D$116,'INPUT '!$F$16:$F$116),"0") -> 0 | E185: FIXING SPACER OF PLASTIC | H185: 9900001475 | I185: 30 | J185: =I185*C185 -> 0 | M185: =L185*C185 -> 0 | N185: 9900000001 | O185: 1 | P185: 0 | Q185: 9900000021 | R185: 4 | S185: =R185*C185 -> 0 | T185: 9900000071 | U185: 1 | V185: =U185*C185 -> 0 | Y185: =X185*C185 -> 0
A186: 9900011476 | B186: =Data!$A186-9900010000 -> 1476 | C186: =IF(EXACT($B186,LOOKUP($B186,'INPUT '!$D$16:$D$116)),LOOKUP($B186,'INPUT '!$D$16:$D$116,'INPUT '!$E$16:$E$116),"0") -> 0 | D186: =IF(EXACT($B186,LOOKUP($B186,'INPUT '!$D$16:$D$116)),LOOKUP($B186,'INPUT '!$D$16:$D$116,'INPUT '!$F$16:$F$116),"0") -> 0 | E186: FIXING SPACER OF PLASTIC | F186: L | H186: 9900001476 | I186: 30 | J186: =I186*C186 -> 0 | M186: =L186*C186 -> 0 | N186: 9900000001 | O186: 1 | P186: =O186*C186 -> 0 | Q186: 9900000021 | R186: 4 | S186: 0 | T186: 9900000071 | U186: 1 | V186: =U186*C186 -> 0 | Y186: =X186*C186 -> 0
A187: 9900011477 | B187: =Data!$A187-9900010000 -> 1477 | C187: =IF(EXACT($B187,LOOKUP($B187,'INPUT '!$D$16:$D$116)),LOOKUP($B187,'INPUT '!$D$16:$D$116,'INPUT '!$E$16:$E$116),"0") -> 0 | D187: =IF(EXACT($B187,LOOKUP($B187,'INPUT '!$D$16:$D$116)),LOOKUP($B187,'INPUT '!$D$16:$D$116,'INPUT '!$F$16:$F$116),"0") -> 0 | E187: FIXING SPACER OF PLASTIC | F187: L | H187: 9900001477 | I187: 30 | J187: =I187*C187 -> 0 | M187: =L187*C187 -> 0 | N187: 9900000001 | O187: 1 | P187: 0 | Q187: 9900000021 | R187: 4 | S187: 0 | T187: 9900000071 | U187: 1 | V187: 0 | Y187: =X187*C187 -> 0
A188: 9900011479 | B188: =Data!$A188-9900010000 -> 1479 | C188: =IF(EXACT($B188,LOOKUP($B188,'INPUT '!$D$16:$D$116)),LOOKUP($B188,'INPUT '!$D$16:$D$116,'INPUT '!$E$16:$E$116),"0") -> 0 | D188: =IF(EXACT($B188,LOOKUP($B188,'INPUT '!$D$16:$D$116)),LOOKUP($B188,'INPUT '!$D$16:$D$116,'INPUT '!$F$16:$F$116),"0") -> 0 | E188: RACK OF STEEL | H188: 9900001479 | I188: 1 | J188: =I188*C188 -> 0 | M188: =L188*C188 -> 0 | P188: =O188*C188 -> 0 | S188: 0 | V188: =U188*C188 -> 0 | Y188: =X188*C188 -> 0
A189: 9900011480 | B189: =Data!$A189-9900010000 -> 1480 | C189: =IF(EXACT($B189,LOOKUP($B189,'INPUT '!$D$16:$D$116)),LOOKUP($B189,'INPUT '!$D$16:$D$116,'INPUT '!$E$16:$E$116),"0") -> 0 | D189: =IF(EXACT($B189,LOOKUP($B189,'INPUT '!$D$16:$D$116)),LOOKUP($B189,'INPUT '!$D$16:$D$116,'INPUT '!$F$16:$F$116),"0") -> 0 | E189: RACK OF STEEL | H189: 9900001480 | I189: 1 | J189: =I189*C189 -> 0 | M189: =L189*C189 -> 0 | P189: =O189*C189 -> 0 | S189: 0 | V189: =U189*C189 -> 0 | Y189: =X189*C189 -> 0
A190: 9900011481 | B190: =Data!$A190-9900010000 -> 1481 | C190: =IF(EXACT($B190,LOOKUP($B190,'INPUT '!$D$16:$D$116)),LOOKUP($B190,'INPUT '!$D$16:$D$116,'INPUT '!$E$16:$E$116),"0") -> 0 | D190: =IF(EXACT($B190,LOOKUP($B190,'INPUT '!$D$16:$D$116)),LOOKUP($B190,'INPUT '!$D$16:$D$116,'INPUT '!$F$16:$F$116),"0") -> 0 | E190: FIXING SPACER OF PLASTIC | F190: L | H190: 9900001481 | I190: 25 | J190: 0 | M190: 0 | N190: 9900000001 | O190: 1 | P190: 0 | Q190: 9900000021 | R190: 4 | S190: 0 | T190: 9900000071 | U190: 1 | V190: 0 | Y190: 0
A191: 9900011483 | B191: =Data!$A191-9900010000 -> 1483 | C191: =IF(EXACT($B191,LOOKUP($B191,'INPUT '!$D$16:$D$116)),LOOKUP($B191,'INPUT '!$D$16:$D$116,'INPUT '!$E$16:$E$116),"0") -> 0 | D191: =IF(EXACT($B191,LOOKUP($B191,'INPUT '!$D$16:$D$116)),LOOKUP($B191,'INPUT '!$D$16:$D$116,'INPUT '!$F$16:$F$116),"0") -> 0 | E191: FIXING SPACER OF PLASTIC | F191: L | H191: 9900001483 | I191: 10 | J191: 0 | M191: 0 | N191: 9900000001 | O191: 1 | P191: 0 | Q191: 9900000021 | R191: 4 | S191: 0 | T191: 9900000071 | U191: 1 | V191: 0 | W191: 9900001041 | X191: 1 | Y191: 0
A192: 9900011486 | B192: =Data!$A192-9900010000 -> 1486 | C192: =IF(EXACT($B192,LOOKUP($B192,'INPUT '!$D$16:$D$116)),LOOKUP($B192,'INPUT '!$D$16:$D$116,'INPUT '!$E$16:$E$116),"0") -> 0 | D192: =IF(EXACT($B192,LOOKUP($B192,'INPUT '!$D$16:$D$116)),LOOKUP($B192,'INPUT '!$D$16:$D$116,'INPUT '!$F$16:$F$116),"0") -> 0 | E192: FIXING SPACER OF PLASTIC | F192: L | H192: 9900001486 | I192: 10 | J192: =I192*C192 -> 0 | M192: =L192*C192 -> 0 | N192: 9900000001 | O192: 1 | P192: =O192*C192 -> 0 | Q192: 9900000021 | R192: 2 | S192: =R192*C192 -> 0 | T192: 9900000071 | U192: 1 | V192: =U192*C192 -> 0 | Y192: =X192*C192 -> 0
A193: 9900011487 | B193: 1487 | C193: =IF(EXACT($B193,LOOKUP($B193,'INPUT '!$D$16:$D$116)),LOOKUP($B193,'INPUT '!$D$16:$D$116,'INPUT '!$E$16:$E$116),"0") -> 0 | D193: =IF(EXACT($B193,LOOKUP($B193,'INPUT '!$D$16:$D$116)),LOOKUP($B193,'INPUT '!$D$16:$D$116,'INPUT '!$F$16:$F$116),"0") -> 0 | E193: PALLET BOX OF WOOD | H193: 9900001487 | I193: 1 | J193: =I193*C193 -> 0 | K193: 9900001879 | L193: 1 | M193: =L193*C193 -> 0 | P193: =O193*C193 -> 0 | S193: 0 | V193: =U193*C193 -> 0 | Y193: =X193*C193 -> 0
A194: 9900011489 | B194: =Data!$A194-9900010000 -> 1489 | C194: =IF(EXACT($B194,LOOKUP($B194,'INPUT '!$D$16:$D$116)),LOOKUP($B194,'INPUT '!$D$16:$D$116,'INPUT '!$E$16:$E$116),"0") -> 0 | D194: =IF(EXACT($B194,LOOKUP($B194,'INPUT '!$D$16:$D$116)),LOOKUP($B194,'INPUT '!$D$16:$D$116,'INPUT '!$F$16:$F$116),"0") -> 0 | E194: HANGER OF STEEL | H194: 9900001489 | I194: 1 | J194: 0 | M194: 0 | P194: =O194*C194 -> 0 | S194: 0 | V194: =U194*C194 -> 0 | Y194: 0
A195: 9900011490 | B195: =Data!$A195-9900010000 -> 1490 | C195: =IF(EXACT($B195,LOOKUP($B195,'INPUT '!$D$16:$D$116)),LOOKUP($B195,'INPUT '!$D$16:$D$116,'INPUT '!$E$16:$E$116),"0") -> 0 | D195: =IF(EXACT($B195,LOOKUP($B195,'INPUT '!$D$16:$D$116)),LOOKUP($B195,'INPUT '!$D$16:$D$116,'INPUT '!$F$16:$F$116),"0") -> 0 | E195: HANGER OF STEEL | H195: 9900001490 | I195: 1 | J195: 0 | M195: 0 | P195: =O195*C195 -> 0 | S195: 0 | V195: =U195*C195 -> 0 | Y195: 0
A196: 9900011495 | B196: =Data!$A196-9900010000 -> 1495 | C196: =IF(EXACT($B196,LOOKUP($B196,'INPUT '!$D$16:$D$116)),LOOKUP($B196,'INPUT '!$D$16:$D$116,'INPUT '!$E$16:$E$116),"0") -> 0 | D196: =IF(EXACT($B196,LOOKUP($B196,'INPUT '!$D$16:$D$116)),LOOKUP($B196,'INPUT '!$D$16:$D$116,'INPUT '!$F$16:$F$116),"0") -> 0 | E196: FIXING SPACER OF PLASTIC | H196: 9900001495 | I196: 5 | J196: 0 | M196: 0 | N196: 9900000001 | O196: 1 | P196: =O196*C196 -> 0 | Q196: 9900000021 | R196: 2 | S196: 0 | T196: 9900000071 | U196: 1 | V196: =U196*C196 -> 0 | Y196: 0
A197: 9900011498 | B197: =Data!$A197-9900010000 -> 1498 | C197: =IF(EXACT($B197,LOOKUP($B197,'INPUT '!$D$16:$D$116)),LOOKUP($B197,'INPUT '!$D$16:$D$116,'INPUT '!$E$16:$E$116),"0") -> 0 | D197: =IF(EXACT($B197,LOOKUP($B197,'INPUT '!$D$16:$D$116)),LOOKUP($B197,'INPUT '!$D$16:$D$116,'INPUT '!$F$16:$F$116),"0") -> 0 | E197: FIXING SPACER OF PLASTIC | H197: 9900001498 | I197: 32 | J197: 0 | M197: 0 | N197: 9900000005 | O197: 1 | P197: =O197*C197 -> 0 | Q197: 9900000025 | R197: 5 | S197: 0 | T197: 9900000075 | U197: 1 | V197: =U197*C197 -> 0 | Y197: 0
A198: 9900011499 | B198: =Data!$A198-9900010000 -> 1499 | C198: =IF(EXACT($B198,LOOKUP($B198,'INPUT '!$D$16:$D$116)),LOOKUP($B198,'INPUT '!$D$16:$D$116,'INPUT '!$E$16:$E$116),"0") -> 0 | D198: =IF(EXACT($B198,LOOKUP($B198,'INPUT '!$D$16:$D$116)),LOOKUP($B198,'INPUT '!$D$16:$D$116,'INPUT '!$F$16:$F$116),"0") -> 0 | E198: FIXING SPACER OF PLASTIC | H198: 9900001499 | I198: 24 | J198: 0 | M198: 0 | N198: 9900000005 | O198: 1 | P198: =O198*C198 -> 0 | Q198: 9900000419 | R198: 1 | S198: 0 | T198: 9900000236 | U198: 1 | V198: =U198*C198 -> 0 | Y198: 0
A199: 9900011500 | B199: =Data!$A199-9900010000 -> 1500 | C199: =IF(EXACT($B199,LOOKUP($B199,'INPUT '!$D$16:$D$116)),LOOKUP($B199,'INPUT '!$D$16:$D$116,'INPUT '!$E$16:$E$116),"0") -> 0 | D199: =IF(EXACT($B199,LOOKUP($B199,'INPUT '!$D$16:$D$116)),LOOKUP($B199,'INPUT '!$D$16:$D$116,'INPUT '!$F$16:$F$116),"0") -> 0 | E199: FIXING SPACER OF WOOD | F199: L | H199: 9900001500 | I199: 10 | J199: 0 | M199: 0 | N199: 9900000001 | O199: 1 | P199: 0 | Q199: 9900000021 | R199: 1 | S199: 0 | T199: 9900000071 | U199: 1 | V199: 0 | W199: 9900001021 | X199: 1 | Y199: 0
A200: 9900011501 | B200: =Data!$A200-9900010000 -> 1501 | C200: =IF(EXACT($B200,LOOKUP($B200,'INPUT '!$D$16:$D$116)),LOOKUP($B200,'INPUT '!$D$16:$D$116,'INPUT '!$E$16:$E$116),"0") -> 0 | D200: =IF(EXACT($B200,LOOKUP($B200,'INPUT '!$D$16:$D$116)),LOOKUP($B200,'INPUT '!$D$16:$D$116,'INPUT '!$F$16:$F$116),"0") -> 0 | E200: FIXING SPACER OF PLASTIC | F200: L | H200: 9900001501 | I200: 10 | J200: 0 | M200: 0 | N200: 9900000001 | O200: 1 | P200: 0 | Q200: 9900000021 | R200: 1 | S200: 0 | T200: 9900000071 | U200: 1 | V200: 0 | W200: 9900001021 | X200: 1 | Y200: 0
... 637 more rows

Sheet Releaser list (hidden)
A1: Customer | B1: SLOC | C1: Name | D1: City | E1: Cty
A2: 211000325 | B2: 1000 | C2: VOLVO BUS WROCLAW | D2: WROCLAW | E2: PL
A3: 211001492 | B3: 1002 | C3: VOLVO PARTS WROCLAW | D3: WROCLAW | E3: PL
A4: 211003536 | B4: 1003 | C4: RENAULT TRUCKS BLAINVILLE | D4: Blainville-sur-Orne | E4: FR
A5: 211001626 | B5: 1004 | C5: Lundgrens Askim | D5: ASKIM | E5: SE
A6: 211001572 | B6: 1005 | C6: PMC Hyd Askim | D6: ASKIM | E6: SE
A7: 211007383 | B7: 1006 | C7: DBK David+Baader Gmbh | D7: Rülzheim | E7: DE
A8: 211008335 | B8: 1007 | C8: KUMWOO ENG CO.,LTD | D8: JINJU | E8: KR
A9: 211005452 | B9: 1008 | C9: Embtec AB | D9: Stenkullen | E9: SE
A10: 211005267 | B10: 1009 | C10: Ferrero S.P.A | D10: Casalgrasso | E10: IT
A11: 211001486 | B11: 1012 | C11: VOLVO PARTS VENISSIEUX | D11: Vénissieux | E11: FR
A12: 211900256 | B12: 1013 | C12: Volvo Parts Gent | D12: OOSTAKKER | E12: BE
A13: 211002540 | B13: 1014 | C13: DECCAN BANGARAPE | D13: BANGARAPET | E13: IN
A14: 211002564 | B14: 1015 | C14: Sakthi Auto Component Limited | D14: ERODE | E14: IN
A15: 211004378 | B15: 1016 | C15: Donaldson Do Brasil Equip | D15: Atibaia | E15: BR
A16: 211005698 | B16: 1017 | C16: Horton Inc | D16: Britton | E16: US
A17: 211004491 | B17: 1019 | C17: Volvo Equipamentos De Construção | D17: Pederneiras, Sp | E17: BR
A18: 211001382 | B18: 1020 | C18: VOLVO TRUCKS TUVE PROD | D18: Göteborg | E18: SE
A19: 211004421 | B19: 1021 | C19: Volvo Do Brasil Production | D19: Curitiba-Pr | E19: BR
A20: 211900186 | B20: 1022 | C20: Volvo Bussar Ab | D20: Borås | E20: SE
A21: 211000027 | B21: 1024 | C21: VOLVO TRUCKS NEW RIVER VALLEY | D21: DUBLIN | E21: US
A22: 211000016 | B22: 1025 | C22: VOLVO TRUCKS UMEÅ | D22: UMEÅ | E22: SE
A23: 211005455 | B23: 1026 | C23: VOLVO BUS SÄFFLE | D23: Säffle | E23: SE
A24: 211000312 | B24: 1027 | C24: VOLVO TRUCKS GENT | D24: GENT-OOSTAKKER | E24: BE
A25: 211001296 | B25: 1028 | C25: VCE ESKILSTUNA | D25: ESKILSTUNA | E25: SE
A26: 211000054 | B26: 1029 | C26: VCE HALLSBERG CAB DIV | D26: Hallsberg | E26: SE
A27: 211005699 | B27: 1031 | C27: Triple Cities Mack Parts | D27: Pittston | E27: US
A28: 211005700 | B28: 1032 | C28: Diemer Diesel Service | D28: Batesville | E28: US
A29: 211005701 | B29: 1033 | C29: M A Caribbean Corporation | D29: Caguas, Pr | E29: US
A30: 211005702 | B30: 1034 | C30: Gulf Coast Truck & Equip | D30: Mobile | E30: US
A31: 211005703 | B31: 1035 | C31: Rees Truck & Trailer Inc | D31: Lawton | E31: US
A32: 211005704 | B32: 1036 | C32: Stang Sales & Service Com | D32: Menominee | E32: US
A33: 211005705 | B33: 1037 | C33: Performance Truck-Lufkin | D33: Lufkin | E33: US
A34: 211005706 | B34: 1038 | C34: Tucker'S Truck Inc Fordyc | D34: Fordyce | E34: US
A35: 211005707 | B35: 1039 | C35: French-Ellison Trk Ctr Lt | D35: Laredo | E35: US
A36: 211005708 | B36: 1040 | C36: Bruckner Truck Sales | D36: Dallas | E36: US
A37: 211005709 | B37: 1041 | C37: Kearny Mesa Truck Center | D37: San Diego | E37: US
A38: 211005710 | B38: 1042 | C38: Tec La Mirada | D38: La Mirada | E38: US
A39: 211005711 | B39: 1043 | C39: Mack Trucks Inc Tm Yard | D39: Macungie | E39: US
A40: 211004409 | B40: 1044 | C40: Dex Pecas E Componentes P | D40: Curitiba | E40: BR
A41: 211004464 | B41: 1045 | C41: Stema Ind. E Com. Ltda | D41: Jau | E41: BR
A42: 211004528 | B42: 1046 | C42: Kondor Ind Mecanica Ltda. | D42: Sao Paulo | E42: BR
A43: 211004517 | B43: 1047 | C43: Gage Do Brasil Ltda | D43: Maua | E43: BR
A44: 211004463 | B44: 1048 | C44: Wiest S.A | D44: Jaragua Do Sul, | E44: BR
A45: 211004525 | B45: 1049 | C45: Mvc Componentes Plasticos | D45: São Jose Dos Pinhais | E45: BR
A46: 211004544 | B46: 1050 | C46: Zf Do Brasil Sa | D46: Sorocaba | E46: BR
A47: 211004372 | B47: 1051 | C47: Moltec Molas De Precisao | D47: Araucaria | E47: BR
A48: 211004488 | B48: 1052 | C48: Bruning Tecnometal Ltda. | D48: Panambi-Rs | E48: BR
A49: 211004393 | B49: 1053 | C49: Robert Bosch Ltda. | D49: Campinas-Sp | E49: BR
A50: 211004458 | B50: 1054 | C50: Schrader Bridgeport Brasi | D50: Jacarei - Sp. | E50: BR
A51: 211004483 | B51: 1055 | C51: Alka3 Industria De Autope | D51: Osasco | E51: BR
A52: 211004470 | B52: 1056 | C52: Neumayer | D52: Jundiai | E52: BR
A53: 211004509 | B53: 1057 | C53: Coml E Indl Auto Pecas Ci | D53: S.Caetano Sul - Sp | E53: BR
A54: 211004432 | B54: 1058 | C54: Dana S.A.Industria Ltda | D54: Diadema-Sp | E54: BR
A55: 211004479 | B55: 1059 | C55: Tecnocurva Ind.Pecas Auto | D55: Mogi Das Cruzes | E55: BR
A56: 211004457 | B56: 1060 | C56: Industrias Mangotex Ltda. | D56: Itu-Sp | E56: BR
A57: 211004443 | B57: 1061 | C57: Vdo Do Brasil Medidores | D57: Guarulhos-Sp | E57: BR
A58: 211004545 | B58: 1062 | C58: Johnson Controls Ps Do Br | D58: Sorocaba | E58: BR
A59: 211004486 | B59: 1063 | C59: Meritor Do Brasil Ltda. | D59: Osasco-Sp | E59: BR
A60: 211004448 | B60: 1064 | C60: Filtros Mann Ltda. | D60: Indaiatuba-Sp | E60: BR
A61: 211900033 | B61: 1065 | C61: Sachs Automotive Ltda. | D61: S.B.Do Campo-Sp | E61: BR
A62: 211004516 | B62: 1066 | C62: Rassini-Nhk Autopecas Ltd | D62: Sao Ber Do Camp | E62: BR
A63: 211004540 | B63: 1067 | C63: Thyssen Group Hoesch | D63: Sao Paulo-Sp | E63: BR
A64: 211004386 | B64: 1068 | C64: Teksid Do Brasil Ltda. | D64: Betim-Mg | E64: BR
A65: 211004510 | B65: 1069 | C65: Magius Metalurgica Indust | D65: S.Jose Pinhais - Pr | E65: BR
A66: 211004422 | B66: 1070 | C66: Robert Bosch Ltda. | D66: Curitiba-Pr | E66: BR
A67: 211004529 | B67: 1071 | C67: Torcomp Usinagem E Compon | D67: Sao Paulo | E67: BR
A68: 211004438 | B68: 1072 | C68: Dana Industrias Ltda | D68: Gravatai | E68: BR
A69: 211004410 | B69: 1073 | C69: Ibratec Ind. Bras. Art. | D69: Curitiba | E69: BR
A70: 211004473 | B70: 1074 | C70: Hellerman Do Brasil Ind.C | D70: Jundiai -Sp | E70: BR
A71: 211000352 | B71: 1075 | C71: MAQUINAS AGRICOLAS | D71: POMPEIA | E71: BR
A72: 211004474 | B72: 1076 | C72: Sifco Sa | D72: Jundiai-Sp | E72: BR
A73: 211004553 | B73: 1077 | C73: Wabco Do Brasil Ind E Com | D73: Sumare | E73: BR
A74: 211004424 | B74: 1078 | C74: Freudenberg Componentes | D74: Diadema | E74: BR
A75: 211004530 | B75: 1079 | C75: Delga Industria E Com S/A | D75: Sao Paulo | E75: BR
A76: 211004431 | B76: 1081 | C76: Toro Ind Com | D76: Diadema - Sp | E76: BR
A77: 211004536 | B77: 1082 | C77: Imi Norgren Herion Ltda/F | D77: Sao Paulo - Sp | E77: BR
A78: 211004538 | B78: 1083 | C78: Voith Turbo Automotive Lt | D78: Sao Paulo - Sp | E78: BR
A79: 211004408 | B79: 1084 | C79: Lalberti Industria Mecan | D79: Colombo-Pr | E79: BR
A80: 211004391 | B80: 1085 | C80: Pilkington Brasil Ltda. | D80: Cacapava Sp | E80: BR
A81: 211004518 | B81: 1086 | C81: Basf Sa | D81: São Bernardo Do Campo | E81: BR
A82: 211004439 | B82: 1087 | C82: Thermoglass Ind.Com.Ltda | D82: Guarulhos | E82: BR
A83: 211004472 | B83: 1088 | C83: Plascar Ind. De Comp Plás | D83: Jundiaí | E83: BR
A84: 211004411 | B84: 1089 | C84: Denso Do Brasil | D84: Curitiba | E84: BR
A85: 211004475 | B85: 1090 | C85: Alpino Industria Metalurg | D85: Jundiai-Sp | E85: BR
A86: 211004425 | B86: 1091 | C86: Isringhausen Industrial | D86: Diadema | E86: BR
A87: 211906179 | B87: 1092 | C87: Henkel | D87: Jundiai | E87: BR
A88: 211004380 | B88: 1094 | C88: Du Pont Do Brasil S.A. | D88: Barra Mansa-Rj | E88: BR
A89: 211004377 | B89: 1095 | C89: Mahle Behr | D89: Aruja | E89: BR
A90: 211000351 | B90: 1096 | C90: SCHULZ S.A. | D90: Joinville, SC | E90: BR
A91: 211004401 | B91: 1097 | C91: Jost Brasil Sistemas Auto | D91: Caxias Do Sul | E91: BR
A92: 211004507 | B92: 1098 | C92: Mahle Metal Leve | D92: S.B.Do Campo-Sp | E92: BR
A93: 211004521 | B93: 1099 | C93: Eaton Ltda | D93: Sao Jose Dos Campos | E93: BR
A94: 211900034 | B94: 1100 | C94: Tkm Indústria De Artefato | D94: Diadema-Sp | E94: BR
A95: 211004539 | B95: 1101 | C95: Refal Ind.E Com.De Rebite | D95: Sao Paulo - Sp | E95: BR
A96: 211004412 | B96: 1102 | C96: Pk Cables Do Brasil Ind | D96: Curitiba | E96: BR
A97: 211004413 | B97: 1104 | C97: Vexilom Emblemas Tecnicos | D97: Curitiba | E97: BR
A98: 211004559 | B98: 1105 | C98: Plascar Ind De Comp Plást | D98: Varginha | E98: BR
A99: 211004440 | B99: 1106 | C99: Lepe Industria E Comercio | D99: Guarulhos | E99: BR
A100: 211004508 | B100: 1107 | C100: Tecnoperfil Taurus Ltda | D100: Sao Bernardo do Campo | E100: BR
A101: 211004427 | B101: 1108 | C101: Resil Ind E Com | D101: Diadema | E101: BR
A102: 211004444 | B102: 1109 | C102: Cummins Brasil Ltda.- Hol | D102: Guarulhos-Sp | E102: BR
A103: 211004541 | B103: 1110 | C103: Valeo Sistemas Automot.Lt | D103: Sao Paulo-Sp | E103: BR
A104: 211004406 | B104: 1111 | C104: Fras-Le S.A. | D104: Caxias Do Sul - Rs | E104: BR
A105: 211004505 | B105: 1112 | C105: Rieter Ello Artf.Fib.Tex. | D105: S.B. Do Campo - Sp | E105: BR
A106: 211004519 | B106: 1113 | C106: Luksnova S.As. Industria | D106: Sao Bernardo Do | E106: BR
A107: 211004542 | B107: 1114 | C107: Knorr Bremse Sistemas,Bra | D107: Sao Paulo-Sp | E107: BR
A108: 211004480 | B108: 1115 | C108: Mahle Metal Leve Ltda | D108: Mogi-Guacu-Sp | E108: BR
A109: 211004434 | B109: 1116 | C109: Fagor Ederlan Brasileira | D109: Extrema, Mg | E109: BR
A110: 211004428 | B110: 1117 | C110: Tirreno Ind E Com Prod Qu | D110: Diadema | E110: BR
A111: 211004441 | B111: 1118 | C111: Honeywell Indústria Autom | D111: Guarulhos | E111: BR
A112: 211004396 | B112: 1119 | C112: Thyssenkrupp Metalurgica | D112: Campo Limpo Pau | E112: BR
A113: 211004462 | B113: 1120 | C113: Wiest Sa | D113: Jaragua Do Sul | E113: BR
A114: 211004465 | B114: 1121 | C114: Metalurgica Wetzel Sa | D114: Joinville | E114: BR
A115: 211004554 | B115: 1122 | C115: Cinpal Cia Indl De Peças | D115: Taboao Da Serra | E115: BR
A116: 211004376 | B116: 1123 | C116: Hubner Ind Mecanica Ltda | D116: Araucaria, Pr | E116: BR
A117: 211004384 | B117: 1124 | C117: Farina Componentes Automo | D117: Bento Goncalves | E117: BR
A118: 211900036 | B118: 1125 | C118: Parker Hannifing Ind.Com | D118: São José Dos Ca | E118: BR
A119: 211004447 | B119: 1126 | C119: Metalurgica Hassmann Sa | D119: Imigrante | E119: BR
A120: 211004402 | B120: 1127 | C120: Master Sistemas Automotiv | D120: Caxias Do Sul | E120: BR
A121: 211004551 | B121: 1128 | C121: Lang Mekra Do Brasil Ltda | D121: Sorocaba- Sp | E121: BR
A122: 211004549 | B122: 1129 | C122: Robert Bosch Direção Autom. | D122: Sorocaba - Sp | E122: BR
A123: 211004481 | B123: 1130 | C123: Martinrea Honsel Brasil | D123: Monte Mor | E123: BR
A124: 211004371 | B124: 1131 | C124: Sachs Autom.Brasil Ltda. | D124: Araraquara - Sp | E124: BR
A125: 211004452 | B125: 1132 | C125: Stabilus Ltda | D125: Itajuba - Mg | E125: BR
A126: 211004449 | B126: 1133 | C126: Progeral Ind De Art Plast | D126: Ipero | E126: BR
A127: 211004471 | B127: 1134 | C127: Kongsberg Automotive | D127: Jundiai | E127: BR
A128: 211004550 | B128: 1135 | C128: Lemforder Do Brasil Ltda. | D128: Sorocaba - Sp. | E128: BR
A129: 211004487 | B129: 1136 | C129: Cidade Clima De Pal. Com | D129: Palmeira | E129: BR
A130: 211004375 | B130: 1137 | C130: Starsprings Do Brasil Ltd | D130: Araucaria - Pr. | E130: BR
A131: 211004522 | B131: 1138 | C131: Prolind Industrial Ltda | D131: Sao Jose Dos Ca | E131: BR
A132: 211001285 | B132: 1139 | C132: Hydro Extrusion Sweden AB | D132: VETLANDA | E132: SE
A133: 211004537 | B133: 1140 | C133: Sabo Sistemas Automotivos | D133: São Paulo - S | E133: BR
A134: 211005456 | B134: 1141 | C134: Volvo Penta Dealers Swede | E134: SE
A135: 211005107 | B135: 1142 | C135: Volvo Penta Dealers Franc | E135: FR
A136: 211005642 | B136: 1145 | C136: Volvo Penta Dealers Slova SKXX | E136: SK
A137: 211005223 | B137: 1148 | C137: Volvo Penta Dealers Hunga | E137: HU
A138: 211004561 | B138: 1149 | C138: Volvo Penta Dealers Austr | D138: Austria | E138: AT
A139: 211004562 | B139: 1150 | C139: Volvo Penta Dealers Spain | D139: Spain | E139: AT
A140: 211004414 | B140: 1151 | C140: Embrart | D140: Curitiba | E140: BR
A141: 211004382 | B141: 1152 | C141: JHD Componentes Mecanicos | D141: Bauru | E141: BR
A142: 211004489 | B142: 1153 | C142: Ind Com Maq.E Equip.Pedro | D142: Pederneiras | E142: BR
A143: 211004383 | B143: 1154 | C143: Ind. Tudor Sp De Baterias | D143: Bauru | E143: BR
A144: 211004496 | B144: 1155 | C144: Requiph Ind.Com.Equip.Hid | D144: Piracicaba - Sp | E144: BR
A145: 211004370 | B145: 1156 | C145: Tecnoroad Rodas Pneus Lt | D145: Americana | E145: BR
A146: 211004556 | B146: 1157 | C146: Resfri Ar Climat Equip | D146: Vacaria | E146: BR
A147: 211004531 | B147: 1158 | C147: Metokote Brasil Ltda | D147: Sao Paulo | E147: BR
A148: 211004552 | B148: 1159 | C148: Metalac S.A.Ind.E Comerci | D148: Sorocaba-Sp | E148: BR
A149: 211004403 | B149: 1160 | C149: Randon S.A. Implementos E | D149: Caxias Do Sul | E149: BR
A150: 211004557 | B150: 1161 | C150: Eaton Ltda | D150: Valinhos | E150: BR
A151: 211004398 | B151: 1162 | C151: International Ind Automot | D151: Canoas | E151: BR
A152: 211004392 | B152: 1163 | C152: Ab Sistemas De Freios | D152: Campinas, Sp | E152: BR
A153: 211004415 | B153: 1164 | C153: Fontaine | D153: Curitiba | E153: BR
A154: 211004532 | B154: 1166 | C154: International Indústria | D154: Sao Paulo | E154: BR
A155: 211004546 | B155: 1167 | C155: Schaeffler Brasil Ltda | D155: Sorocaba | E155: BR
A156: 211004469 | B156: 1169 | C156: Daytec Ltda | D156: Juatuba - Mg | E156: BR
A157: 211004381 | B157: 1170 | C157: Melco Automotive Do Brasi | D157: Barueri - Sp | E157: BR
A158: 211004407 | B158: 1171 | C158: Betenheuserömontanini Ltd | D158: Colombo - Pr. | E158: BR
A159: 211004543 | B159: 1172 | C159: Ask Do Brasil Ltda | D159: Sete Lagoas | E159: BR
A160: 211004547 | B160: 1173 | C160: Dana Industrias Ltda | D160: Sorocaba | E160: BR
A161: 211004369 | B161: 1175 | C161: Quantum Ind. E Com. De Eq | D161: Alm. Tamandaré | E161: BR
A162: 211004429 | B162: 1177 | C162: Truck Bus BRDID 117 | D162: Diadema | E162: BR
A163: 211004405 | B163: 1178 | C163: Dambroz Ind. Mec. E Matal | D163: Caxias Do Sul, | E163: BR
A164: 211004527 | B164: 1179 | C164: Aksys Do Brasil Ltda | D164: São Jose Dos Pinhais | E164: BR
A165: 211004513 | B165: 1180 | C165: Trw Automotive Ltda | D165: Santo Andre | E165: BR
A166: 211004494 | B166: 1181 | C166: Elring Klinger Do Brasil | D166: Piracicaba | E166: BR
A167: 211004451 | B167: 1182 | C167: Mahle Metal Leve S/A | D167: Itajuba | E167: BR
A168: 211004482 | B168: 1183 | C168: Kspg Automotive Brasil | D168: Nova Odessa Sp | E168: BR
A169: 211004533 | B169: 1184 | C169: Tecnotubo Ind Peças Tubul | D169: Sao Paulo | E169: BR
A170: 211004442 | B170: 1185 | C170: Eaton Divisão Ghd | D170: Guarulhos - Sp | E170: BR
A171: 211004478 | B171: 1186 | C171: Mocdrol Hidraulica Ltda | D171: Mococa | E171: BR
A172: 211004461 | B172: 1188 | C172: Ind Brasileira Componente | D172: Jaguariuna Sp | E172: BR
A173: 211004476 | B173: 1189 | C173: Ccs Tecnologia E Servicos | D173: Limeira | E173: BR
A174: 211004490 | B174: 1190 | C174: Pedertractor, Ind.E Com.D | D174: Pederneiras | E174: BR
A175: 211004515 | B175: 1191 | C175: Fundimisa Fundição Usinag | D175: Santo Angelo | E175: BR
A176: 211004548 | B176: 1192 | C176: Manuli Hidraulica Brasil | D176: Sorocaba | E176: BR
A177: 211004495 | B177: 1193 | C177: Rkm Equip Hidraulicos Lt | D177: Piracicaba | E177: BR
A178: 211004388 | B178: 1194 | C178: Ethos Industrial Ltda. | D178: Boituva, Sp | E178: BR
A179: 211004436 | B179: 1195 | C179: Dini Textil In | D179: Ferraz De Vasco | E179: BR
A180: 211004390 | B180: 1196 | C180: V. S. De Lima & Cia Ltda | D180: Bragança Paulis | E180: BR
A181: 211004455 | B181: 1197 | C181: Maxbolt Ind. E Com. De Me | D181: Itupeva | E181: BR
A182: 211004555 | B182: 1198 | C182: Autoneum Brasil Texteis | D182: Taubate, Sp | E182: BR
A183: 211004456 | B183: 1199 | C183: Fomeco Do Brasil Ind. Met | D183: Itupeva, Sp | E183: BR
A184: 211004395 | B184: 1200 | C184: Metalsa Brasil Ind Com Au | D184: Campo Largo Pr | E184: BR
A185: 211004477 | B185: 1201 | C185: Pro-Metal Industrial Ltda | D185: Limeira | E185: BR
A186: 211004497 | B186: 1202 | C186: Obenaus Ind E Com De Mola | D186: Pomerode | E186: BR
A187: 211004450 | B187: 1203 | C187: Yazaki Do Brasil Ltda | D187: Irati | E187: BR
A188: 211004399 | B188: 1205 | C188: Maxiforja Componentes Aut | D188: Canoas | E188: BR
A189: 211004394 | B189: 1206 | C189: Pk Cables Brazil | D189: Campo Alegre, S | E189: BR
A190: 211004460 | B190: 1207 | C190: Titanx Refrigeração De Mo | D190: Jaguariuna | E190: BR
A191: 211004373 | B191: 1208 | C191: Leax Do Brasil Ltda | D191: Araucaria | E191: BR
A192: 211004512 | B192: 1209 | C192: MGI Coutier | D192: Jundiaí | E192: BR
A193: 211004466 | B193: 1210 | C193: Tupy S.A | D193: Joinville | E193: BR
A194: 211004416 | B194: 1211 | C194: Kimadeiras Industria Come | D194: Curitiba | E194: BR
A195: 211004374 | B195: 1212 | C195: Chevron Brasil Lubrifican | D195: Araucaria | E195: BR
A196: 211004520 | B196: 1213 | C196: Manserv - Montagem E Man | D196: Sao Caetano Do | E196: BR
A197: 211004430 | B197: 1215 | C197: Elanders Artcopy Rep De | D197: Diadema | E197: BR
A198: 211004397 | B198: 1216 | C198: Soluemba Embalagens Indus | D198: Campo Magro, Pr | E198: BR
A199: 211004417 | B199: 1217 | C199: Bras Onda Papelao Ondulad | D199: Curitiba | E199: BR
A200: 211004468 | B200: 1219 | C200: Wetzel S.A - Divisao Ferr | D200: Joinville, Sc | E200: BR
... 5746 more rows
